{"text_format":"1","workbook":"xlsx","n_sheets":10,"sheets":["الرصيد 3 (9)","Sheet11","الرصيد 3 (8)","الرصيد 3 (7)","الرصيد 3 (6)","الرصيد 3 (5)","الرصيد 3 (4)","الرصيد 3 (3)","الرصيد 3 (2)","الرصيد 3"],"not_rendered":{"charts":0,"images":0,"macros":1,"external_links":0,"defined_names":0,"comments":0,"pivot_tables":0},"unopened":[],"bounds":{"document_bytes":16777216,"sheet_cells":100000,"rows_first":2000,"rows_last":500,"rows_between":2000,"halvings":0,"cell_chars":16384,"cell_head_chars":4096},"cells_cut":0,"cells_raw":0,"read":"whole","date_system":"1900"}

{"sheet":"الرصيد 3 (9)","index":0,"n_rows":117,"n_cols":41,"rows_kept":117,"cut":false,"hidden":false,"merged":[[1,22,1,38],[1,39,2,39],[112,0,112,4],[0,0,0,21],[0,22,0,38],[1,0,2,0],[1,1,2,1],[1,2,2,2],[1,3,2,3],[1,4,2,4],[1,5,2,5],[1,11,1,19],[1,21,2,21]]}
["رصيد توكيل (   توكيل نجع حمادى    ) عن يوم (   الخميس 9/13  )",null,null,null,null,null,null,null,null,null,null,null,null,null,null,null,null,null,null,null,null,null,"شيت به معادلات عادية "]
["م","الكود","مدة \nالصلاحية","الصنف","الوحدة","الرصيد\n الدفترى\nبالكرتونة\n ",null,null,null,null,null,null,null,null,null,null,null,null,null,null,null,"الرصيد\n الفعلى\nبالكرتونة\n","تنسيق الارقام مع اسم الصنف والتاريخ المقابل لها",null,null,null,null,null,null,null,null,null,null,null,null,null,null,null,null,"الرصيد\n الفعلى\nبالكرتونة\n"]
[null,null,null,null,null,null,"2024-07-01","2024-08-01","2024-09-01","2024-10-01","2024-11-01","2024-12-01","2025-01-01","2025-02-01","2025-03-01","2025-04-01","2025-05-01","2025-06-01","2025-07-01","2025-08-01","2025-09-01",null,"اسم الصنف","الرصيد","2024-07-01","2024-08-01","2024-09-01","2024-10-01","2024-11-01","2024-12-01","2025-01-01","2025-02-01","2025-03-01","2025-04-01","2025-05-01","2025-06-01","2025-07-01","2025-08-01","2025-09-01",null,{"$f":"IFERROR(IF(INDEX($G$4:$U$94,MATCH(SUBSTITUTE(TRIM($W4),CHAR(160),\" \"),SUBSTITUTE(TRIM($D$4:$D$94),CHAR(160),\" \"),0),MATCH(Y$3,$G$3:$U$3,0))=0,\"\",INDEX($G$4:$U$94,MATCH(SUBSTITUTE(TRIM($W4),CHAR(160),\" \"),SUBSTITUTE(TRIM($D$4:$D$94),CHAR(160),\" \"),0),MATCH(Y$3,$G$3:$U$3,0))),\"\")","v":""}]
[1,6222000901529,"سنتان","سوبر فينا 10 كيلو","كرتونة",null,null,null,null,null,null,null,null,null,null,null,null,null,52,50,100,{"$f":"SUM(G4:U4)","v":202},"سوبر فينا 10 كيلو",{"$f":"AN4","v":202},{"$f":"IFERROR(VLOOKUP(TRIM(CLEAN($W4)), $D$4:$U$94, MATCH(Y$3, $D$3:$U$3, 0), FALSE), \"\")","v":0},{"$f":"IFERROR(VLOOKUP(TRIM(CLEAN($W4)), $D$4:$U$94, MATCH(Z$3, $D$3:$U$3, 0), FALSE), \"\")","v":0},0,0,0,0,0,0,0,0,0,0,52,50,100,{"$f":"SUM(Y4:AM4)","v":202},{"$f":"TRIM(CLEAN(SUBSTITUTE(SUBSTITUTE(SUBSTITUTE(W4,CHAR(10),\"\"),CHAR(13),\"\"),CHAR(9),\"\")))","v":"سوبر فينا 10 كيلو"}]
[2,6222000901536,"سنتان","سوبر فينا 10 كيلو نعناع","كرتونة",null,null,null,null,null,null,null,null,null,null,null,null,null,24,null,155,{"$f":"SUM(G5:U5)","v":179},"سولا فواكة فلوباك 10 ك",{"$f":"AN5","v":55},{"$f":"IFERROR(VLOOKUP(TRIM(CLEAN($W5)), $D$4:$U$94, MATCH(Y$3, $D$3:$U$3, 0), FALSE), \"\")","v":0},0,0,0,0,0,0,0,0,0,0,0,0,55,0,{"$f":"SUM(Y5:AM5)","v":55},{"$f":"TRIM(CLEAN(SUBSTITUTE(SUBSTITUTE(SUBSTITUTE(W5,CHAR(10),\"\"),CHAR(13),\"\"),CHAR(9),\"\")))","v":"سولا فواكة فلوباك 10 ك"}]
[3,6222000911733,"سنتان","نعناع 12كيس 50 ق 4جم","كرتونة",null,null,null,null,null,null,null,null,null,null,null,null,null,null,3,null,3,"سولا فواكة 5 ك",0,0,0,0,0,0,0,0,0,0,0,0,0,0,0,0,0,"سولا فواكة 5 ك"]
[4,6222000911764,"سنتان","سولا فواكه 12 كيس * 50 ق","كرتونة",null,null,null,null,null,null,null,null,null,null,null,null,null,null,null,null,0,"سولا فواكه 30 كيس * 28 ق",0,0,0,0,0,0,0,0,0,0,0,0,0,0,0,0,0,"سولا فواكه 30 كيس * 28 ق"]
[5,"6222000917773","سنتان","سولا فواكه 30 كيس * 28 ق","كرتونة",null,null,null,null,null,null,null,null,null,null,null,null,null,null,null,null,0,"سولا فواكه 12 كيس * 50 ق",0,0,0,0,0,0,0,0,0,0,0,0,0,0,0,0,0,"سولا فواكه 12 كيس * 50 ق"]
[6,"6222000917780","سنتان","سولا فواكه 12 كيس * 100 ق","كرتونة",null,null,null,null,null,null,null,null,null,null,null,null,null,null,104,null,104,"سولا فواكه 12 كيس * 100 ق",104,0,0,0,0,0,0,0,0,0,0,0,0,0,104,0,104,"سولا فواكه 12 كيس * 100 ق"]
[7,6222000916295,"سنتان","سولا فواكة 6 كيس * 800 جم","كرتونة",null,null,null,null,null,null,null,null,null,null,null,null,null,null,null,null,0,"سولا ف 12 ع * 200 ق",0,0,0,0,0,0,0,0,0,0,0,0,0,0,0,0,0,"سولا ف 12 ع * 200 ق"]
[8,6222000912525,"سنتان","سولا ف 12 ع * 200 ق","كرتونة",null,null,null,null,null,null,null,null,null,null,null,null,null,null,null,null,0,"سولا ف 12 ع * 240 ق",0,0,0,0,0,0,0,0,0,0,0,0,0,0,0,0,0,"سولا ف 12 ع * 240 ق"]
[9,"6222000912518","سنتان","سولا نعناع 12 ع * 200 ق","كرتونة",null,null,null,null,null,null,null,null,null,null,null,22,null,null,null,null,22,"سولا فواكة 6 كيس * 800 جم",0,0,0,0,0,0,0,0,0,0,0,0,0,0,0,0,0,"سولا فواكة 6 كيس * 800 جم"]
[10,6222000912525,"سنتان","سولا ف 12 ع * 240 ق","كرتونة",null,null,null,null,null,null,null,null,null,null,null,null,null,null,null,null,0,"سوبر فينا 10 كيلو نعناع",179,0,0,0,0,0,0,0,0,0,0,0,0,24,0,155,179,"سوبر فينا 10 كيلو نعناع"]
[11,"6222000908566","سنتان","سولا فواكة 5 ك","كرتونة",null,null,null,null,null,null,null,null,null,null,null,null,null,null,null,null,0,"سولا نعناع فلوباك 10 ك",0,"","","","","","","","","","","","","","","",0,"سولا نعناع فلوباك 10 ك"]
[12,"6222000908573","سنتان","سولا نعناع 5 ك","كرتونة",null,null,null,null,null,null,null,null,59,null,null,null,null,null,null,null,59,"سولا نعناع 5 ك",59,0,0,0,0,0,0,0,59,0,0,0,0,0,0,0,59,"سولا نعناع 5 ك"]
[13,"00743","سنة","قهوة 12 ع * 200 ق","كرتونة",null,null,null,null,null,null,null,null,null,null,null,null,null,null,null,null,0,"سولا نعناع 30 كيس * 28 ق",0,"","","","","","","","","","","","","","","",0,"سولا نعناع 30 كيس * 28 ق"]
[14,"6222000917452","سنة","قهوة 12 ع * 240 ق","كرتونة",null,null,null,null,null,null,null,null,null,null,null,null,null,null,27,null,27,"نعناع 12كيس 50 ق 4جم",3,0,0,0,0,0,0,0,0,0,0,0,0,0,3,0,3,"نعناع 12كيس 50 ق 4جم"]
[15,6222000901758,"سنة","سولا قهوه 10 كيلو","كرتونة",null,null,null,null,null,null,null,null,null,null,null,null,null,15.5,50,null,65.5,"سولا نعناع 12 كيس * 100 ق",0,"","","","","","","","","","","","","","","",0,"سولا نعناع 12 كيس * 100 ق"]
[16,6222000912020,"سنة","قهوة 5 ك","كرتونة",null,null,null,null,null,null,null,null,null,null,null,null,null,null,null,null,0,"سولا نعناع 12 ع * 200 ق",22,0,0,0,0,0,0,0,0,0,0,22,0,0,0,0,22,"سولا نعناع 12 ع * 200 ق"]
[17,6222000909815,"سنة","قهوة 12 كيس * 80 ق / 90 ق","كرتونة",null,null,null,null,null,null,null,null,null,null,null,null,85,null,65,null,150,"نعناع 12 ع * 240 ق",0,0,0,0,0,0,0,0,0,0,0,0,0,0,0,0,0,"نعناع 12 ع * 240 ق"]
[18,6222000908610,"سنة","قهوة 30 كيس * 18 ق / 25 ق","كرتونة",null,null,null,null,null,null,null,null,null,null,null,null,null,null,null,null,0,"سولا قهوه 10 كيلو",65.5,0,0,0,0,0,0,0,0,0,0,0,0,15.5,50,0,65.5,"سولا قهوه 10 كيلو"]
[19,6222000909891,"سنة","قهوة 30 كيس * 12قطعه","كرتونة",null,null,null,null,null,null,null,null,null,null,null,null,null,null,null,null,0,"قهوة 5 ك",0,0,0,0,0,0,0,0,0,0,0,0,0,0,0,0,0,"قهوة 5 ك"]
[20,"00744","سنة","زبدة 12 ع * 200 ق","كرتونة",null,null,null,null,null,null,null,null,null,null,null,null,null,64,null,null,64,"قهوة 30 كيس * 12قطعه",0,0,0,0,0,0,0,0,0,0,0,0,0,0,0,0,0,"قهوة 30 كيس * 12قطعه"]
[21,6222000901642,"سنة","سولا زبده 10 كيلو","كرتونة",null,null,null,null,null,null,null,null,null,null,null,null,null,null,18,null,18,"قهوة 30 كيس * 15قطعه",0,"","","","","","","","","","","","","","","",0,"قهوة 30 كيس * 15قطعه"]
[22,6222000912037,"سنة","زبدة 5 ك","كرتونة",null,null,null,null,null,null,null,null,null,null,null,null,null,null,null,null,0,"قهوة 30 كيس * 18 ق / 25 ق",0,0,0,0,0,0,0,0,0,0,0,0,0,0,0,0,0,"قهوة 30 كيس * 18 ق / 25 ق"]
[23,6222000917124,"سنة","زبدة بالشيكولاته 12 علبة * 240 ق","كرتونة",null,null,null,null,null,null,null,null,null,null,null,null,null,null,64,null,64,"قهوة 12 كيس * 55 ق",0,"","","","","","","","","","","","","","","",0,"قهوة 12 كيس * 55 ق"]
[24,6222000918732,"سنة","زبدة بالشيكولاته 10 ك","كرتونة",null,null,null,null,null,null,null,null,null,null,null,null,null,null,34,null,34,"قهوة 12 كيس * 80 ق / 90 ق",150,0,0,0,0,0,0,0,0,0,0,0,85,0,65,0,150,"قهوة 12 كيس * 80 ق / 90 ق"]
[25,6222000909808,"سنة","زبدة 12 كيس * 80 ق / 90 ق","كرتونة",null,null,null,null,null,null,null,null,null,null,null,null,null,null,null,null,0,"قهوة 12 كيس * 120 ق",0,"","","","","","","","","","","","","","","",0,"قهوة 12 كيس * 120 ق"]
[26,6222000907583,"سنة","زبدة 30 كيس * 18 ق / 25 ق","كرتونة",null,null,null,null,null,null,null,null,null,null,110,null,null,null,null,null,110,"قهوة 12 ع * 200 ق",0,0,0,0,0,0,0,0,0,0,0,0,0,0,0,0,0,"قهوة 12 ع * 200 ق"]
[27,6222000909884,"سنة","زبدة 30 كيس * 12قطعه","كرتونة",null,null,null,null,null,null,null,null,null,null,null,null,null,61,48,null,109,"قهوة 12 ع * 240 ق",27,0,0,0,0,0,0,0,0,0,0,0,0,0,27,0,27,"قهوة 12 ع * 240 ق"]
[28,6222000909884,"سنة","زبدة 30 كيس * 15 قطعه","كرتونة",null,null,null,null,null,null,null,null,null,null,null,null,null,null,null,null,0,"قهوه20كيس*150جرام",0,0,0,0,0,0,0,0,0,0,0,0,0,0,0,0,0,"قهوه20كيس*150جرام"]
[29,6222000905688,"سنة","زبدة 12 كيس * 55 قطعه","كرتونة",null,null,null,null,null,null,null,null,null,null,null,null,null,null,null,null,0,"سولا زبده 10 كيلو",18,0,0,0,0,0,0,0,0,0,0,0,0,0,18,0,18,"سولا زبده 10 كيلو"]
[30,171,"سنة","زبدة 12 كيس * 120 ق","كرتونة",null,null,null,null,null,null,null,null,null,null,null,null,null,41,null,45,86,"زبدة 5 ك",0,0,0,0,0,0,0,0,0,0,0,0,0,0,0,0,0,"زبدة 5 ك"]
[31,6222000910064,"سنة","زبدة 10 شنطة * 800 جم","كرتونة",null,null,null,null,null,null,null,null,null,null,null,null,null,null,null,null,0,"زبدة 30 كيس * 12قطعه",109,0,0,0,0,0,0,0,0,0,0,0,0,61,48,0,109,"زبدة 30 كيس * 12قطعه"]
[32,6222000912501,"9 أشهر","عسلية 12 ع * 200 ق","كرتونة",null,null,null,null,null,null,null,null,null,null,null,null,null,null,null,null,0,"زبدة 30 كيس * 15 قطعه",0,0,0,0,0,0,0,0,0,0,0,0,0,0,0,0,0,"زبدة 30 كيس * 15 قطعه"]
[33,6222000912457,"9 أشهر","عسلية  5 ك","كرتونة",null,null,null,null,null,null,null,null,null,null,null,null,null,null,null,null,0,"زبدة 30 كيس * 18 ق / 25 ق",110,{"$f":"IFERROR(VLOOKUP(TRIM(CLEAN($W36)), $D$4:$U$94, MATCH(Y$3, $D$3:$U$3, 0), FALSE), \"\")","v":0},0,0,0,0,0,0,0,0,110,0,0,0,0,0,110,"زبدة 30 كيس * 18 ق / 25 ق"]
[34,6222000901611,"سنة","اكلير سايب 10 كيلو","كرتونة",null,null,null,null,null,null,null,null,null,null,null,null,null,43,55,null,98,"زبدة 12 كيس * 55 قطعه",0,0,0,0,0,0,0,0,0,0,0,0,0,0,0,0,0,"زبدة 12 كيس * 55 قطعه"]
[35,6222000909907,"سنة","اكلير  30 كيس * 9 ق / 10 ق","كرتونة",null,null,null,null,null,null,null,null,null,null,null,null,null,134,null,null,134,"زبدة 12 كيس * 80 ق / 90 ق",0,0,0,0,0,0,0,0,0,0,0,0,0,0,0,0,0,"زبدة 12 كيس * 80 ق / 90 ق"]
[36,6222000909907,"سنة","اكلير 30 كيس * 12 قطعه","كرتونة",null,null,null,null,null,null,null,null,null,null,null,null,null,null,null,null,0,"زبدة 12 كيس * 120 ق",86,0,0,0,0,0,0,0,0,0,0,0,0,41,0,45,86,"زبدة 12 كيس * 120 ق"]
[37,6222000911498,"سنة","اكلير سولا 5 كيلو ","كرتونة",null,null,null,null,null,null,null,null,null,null,null,null,null,null,null,null,0,"زبدة 12 ع * 200 ق",64,0,0,0,0,0,0,0,0,0,0,0,0,64,0,0,64,"زبدة 12 ع * 200 ق"]
[38,6222000912778,"سنة","اكلير 12كيس * 65 ق / 70 ق","كرتونة",null,null,null,null,null,null,null,null,null,null,null,null,null,null,null,null,0,"زبدة 10 شنطة * 800 جم",0,0,0,0,0,0,0,0,0,0,0,0,0,0,0,0,0,"زبدة 10 شنطة * 800 جم"]
[39,6222000912778,"سنة","اكلير 12 كيس * 100 قطعة","كرتونة",null,null,null,null,null,null,null,null,null,null,null,null,null,137,null,null,137,"زبدة بالشيكولاته 10 ك",34,0,0,0,0,0,0,0,0,0,0,0,0,0,34,0,34,"زبدة بالشيكولاته 10 ك"]
[40,6222000912822,"سنة","اكلير 30 كيس * 15 ق / 20 ق","كرتونة",null,null,null,null,null,null,null,null,null,null,null,null,null,null,null,null,0,"زبدة بالشيكولاته 30 كيس * 15 قطعه",0,"","","","","","","","","","","","","","","",0,"زبدة بالشيكولاته 30 كيس * 15 قطعه"]
[41,6222000905701,"سنة","اكلير 12كيس 45 ق","كرتونة",null,null,null,null,null,null,null,null,null,null,null,null,null,220,null,null,220,"زبدة بالشيكولاته 12 كيس * 55 قطعه",0,"","","","","","","","","","","","","","","",0,"زبدة بالشيكولاته 12 كيس * 55 قطعه"]
[42,6222000912532,"سنة","اكلير 12 علبة * 160 ق","كرتونة",null,null,null,null,null,null,null,null,null,null,null,null,null,null,null,null,0,"زبدة بالشيكولاته 12 كيس * 120 ق",0,"","","","","","","","","","","","","","","",0,"زبدة بالشيكولاته 12 كيس * 120 ق"]
[43,6222000912532,"سنة","اكلير 12 علبة 200 ق","كرتونة",null,null,null,null,null,null,null,null,null,null,null,null,null,35,null,null,35,"زبدة بالشيكولاته 12 علبة * 240 ق",64,0,0,0,0,0,0,0,0,0,0,0,0,0,64,0,64,"زبدة بالشيكولاته 12 علبة * 240 ق"]
[44,6222000901697,"سنة","طوفي 10 كجم","كرتونة",null,null,null,null,null,null,null,null,null,null,null,null,null,38,46,55,139,"عسلية  5 ك",0,"","","","","","","","","","","","","","","",0,"عسلية 5 ك"]
[45,6222000911481,"سنة","طوفي بردايس 5كيلو","كرتونة",null,null,null,null,null,null,null,null,null,null,null,null,null,null,null,null,0,"عسلية 12 ع * 200 ق",0,0,0,0,0,0,0,0,0,0,0,0,0,0,0,0,0,"عسلية 12 ع * 200 ق"]
[46,6222000908276,"سنة","طوفي 30 كيس * 25 قطعه","كرتونة",null,null,null,null,null,null,null,null,null,null,null,null,null,null,null,null,0,"اكلير سايب 10 كيلو",98,0,0,0,0,0,0,0,0,0,0,0,0,43,55,0,98,"اكلير سايب 10 كيلو"]
[47,6222000908276,"سنة","طوفى 30 كيس * 28 ق","كرتونة",null,null,null,null,null,null,null,null,null,null,null,null,null,null,100,null,100,"اكلير  30 كيس * 9 ق / 10 ق",0,"","","","","","","","","","","","","","","",0,"اكلير 30 كيس * 9 ق / 10 ق"]
[48,6222000909921,"سنة","طوفي 30 كيس * 12قطعه","كرتونة",null,null,null,null,null,null,null,null,null,null,null,null,null,null,null,null,0,"اكلير 30 كيس * 12 قطعه",0,0,0,0,0,0,0,0,0,0,0,0,0,0,0,0,0,"اكلير 30 كيس * 12 قطعه"]
[49,6222000909839,"سنة","طوفي 12 كيس * 90 ق","كرتونة",null,null,null,null,null,null,null,null,null,null,null,null,null,null,11,null,11,"اكلير 30 كيس * 15 ق / 20 ق",0,0,0,0,0,0,0,0,0,0,0,0,0,0,0,0,0,"اكلير 30 كيس * 15 ق / 20 ق"]
[50,6222000905718,"سنة","طوفى 12كيس * 100 ق","كرتونة",null,null,null,null,null,null,null,null,null,null,null,null,null,null,97,null,97,"اكلير 12كيس 45 ق",220,{"$f":"IFERROR(VLOOKUP(TRIM(CLEAN($W53)), $D$4:$U$94, MATCH(Y$3, $D$3:$U$3, 0), FALSE), \"\")","v":0},0,0,0,0,0,0,0,0,0,0,0,220,0,0,220,"اكلير 12كيس 45 ق"]
[51,6222000908825,"سنة","طوفى 12 ع * 200 ق","كرتونة",null,null,null,null,null,null,null,null,null,null,null,null,null,null,null,null,0,"اكلير 12كيس * 65 ق / 70 ق",0,0,0,0,0,0,0,0,0,0,0,0,0,0,0,0,0,"اكلير 12كيس * 65 ق / 70 ق"]
[52,6222000912556,"سنة","طوفي 12 علبه * 240 ق","كرتونة",null,null,null,null,null,null,null,null,null,null,null,null,null,29,45,null,74,"اكلير 12 كيس * 100 قطعة",137,0,0,0,0,0,0,0,0,0,0,0,0,137,0,0,137,"اكلير 12 كيس * 100 قطعة"]
[53,6222000907637,"سنة","شيكولاته بوتيك 16 علبه * 50 قطعة","كرتونة",null,null,null,null,null,null,null,null,null,6,null,null,null,null,null,null,6,"اكلير 12 علبة * 160 ق",0,0,0,0,0,0,0,0,0,0,0,0,0,0,0,0,0,"اكلير 12 علبة * 160 ق"]
[54,6222000903295,"سنة","شيكولاته بوتيك 6 علبه * 1.25 كيلو","كرتونة",null,null,null,null,null,null,null,null,null,null,null,null,null,null,null,null,0,"اكلير 12 علبة 200 ق",35,0,0,0,0,0,0,0,0,0,0,0,0,35,0,0,35,"اكلير 12 علبة 200 ق"]
[55,6222000912006,"سنة","شيكولاته بوتيك حليب 4 ك","كرتونة",null,null,null,null,null,null,null,null,null,null,null,null,null,null,null,null,0,"طوفي 10 كجم",139,0,0,0,0,0,0,0,0,0,0,0,0,38,46,55,139,"طوفي 10 كجم"]
[56,6222000911993,"سنة","شيكولاته بوتيك كراميل 4 ك","كرتونة",null,null,null,null,null,null,null,null,null,null,null,null,null,null,null,null,0,"طوفي 30 كيس * 12قطعه",0,0,0,0,0,0,0,0,0,0,0,0,0,0,0,0,0,"طوفي 30 كيس * 12قطعه"]
[57,6222000912013,"سنة","شيكولاته بوتيك بندق 4 ك","كرتونة",null,null,null,null,null,null,null,null,null,null,null,null,null,null,null,null,0,"طوفي 30 كيس * 25 قطعه",0,0,0,0,0,0,0,0,0,0,0,0,0,0,0,0,0,"طوفي 30 كيس * 25 قطعه"]
[58,6222000964197,"سنة","شيكوهند سايب 10 كجم","كرتونة",null,null,null,null,null,null,null,null,null,null,null,null,null,null,null,null,0,"طوفى 30 كيس * 28 ق",100,0,0,0,0,0,0,0,0,0,0,0,0,0,100,0,100,"طوفى 30 كيس * 28 ق"]
[59,6222000906630,"سنة","سوفت شيكوهند 5 ك","كرتونة",null,null,null,null,null,null,null,null,null,null,null,null,null,null,40,null,40,"طوفي 12 كيس * 90 ق",11,0,0,0,0,0,0,0,0,0,0,0,0,0,11,0,11,"طوفي 12 كيس * 90 ق"]
[60,6222000612549,"سنة","شيكوهند سوفت 12 ع * 100 ق","كرتونة",null,null,null,null,null,null,null,null,null,null,null,null,null,null,null,null,0,"طوفى 12كيس * 100 ق",97,0,0,0,0,0,0,0,0,0,0,0,0,0,97,0,97,"طوفى 12كيس * 100 ق"]
[61,6222000915243,"سنة","بار شيكوهند 3 ك","كرتونة",null,null,null,null,null,null,null,null,null,null,null,null,null,null,null,50,50,"طوفى 12 ع * 200 ق",0,0,0,0,0,0,0,0,0,0,0,0,0,0,0,0,0,"طوفى 12 ع * 200 ق"]
[62,6222000902519,"9 أشهر","ويفر ايليت  مغطس بنى 12 *12","كرتونة",null,null,null,null,null,null,null,null,null,null,null,null,null,null,null,null,0,"طوفي 12 علبه * 240 ق",74,0,0,0,0,0,0,0,0,0,0,0,0,29,45,0,74,"طوفي 12 علبه * 240 ق"]
[63,6222000902557,"9 أشهر","ويفر ايليت مغطس ابيض  12 * 12","كرتونة",null,null,null,null,null,null,null,null,null,null,null,null,null,null,null,null,0,"طوفي شيكولاته 12 كيس * 25 ق",0,"","","","","","","","","","","","","","","",0,"طوفي شيكولاته 12 كيس * 25 ق"]
[64,6222000902564,"9 أشهر"," ويفر ايليت مغطس فراولة 12*12","كرتونة",null,null,null,null,null,null,null,null,null,null,null,null,null,null,null,null,0,"طوفي شيكولاته 12 علبة * 100 ق",0,"","","","","","","","","","","","","","","",0,"طوفي شيكولاته 12 علبة * 100 ق"]
[65,6222000910200,"9 أشهر","ايليت ماكس سادة ش 12 باكو 6 قطع","كرتونة",null,null,null,null,null,null,null,null,null,null,null,null,null,263,null,null,263,"طوفي زبدة 12 كيس * 25 ق",0,"","","","","","","","","","","","","","","",0,"طوفي زبدة 12 كيس * 25 ق"]
[66,6222000910514,"9 أشهر","ايليت  ماكس سادة فانيليا 12 باكو * 6 قطع","كرتونة",null,null,null,null,null,null,null,null,null,null,null,null,null,215,null,null,{"$f":"SUM(G69:U69)","v":215},"طوفي زبدة 12 علبة * 100 ق",{"$f":"AN69","v":0},"","","","","","","","","","","","","","","",{"$f":"SUM(Y69:AM69)","v":0},{"$f":"TRIM(CLEAN(SUBSTITUTE(SUBSTITUTE(SUBSTITUTE(W69,CHAR(10),\"\"),CHAR(13),\"\"),CHAR(9),\"\")))","v":"طوفي زبدة 12 علبة * 100 ق"}]
[67,6222000909976,"9 أشهر","ويفر مربع  3 كيلو ايليت  ابيض","كرتونة",null,null,null,null,null,null,null,null,null,null,null,74,null,null,50,null,124,"شيكولاته بوتيك 16 علبه * 50 قطعة",6,{"$f":"IFERROR(VLOOKUP(TRIM(CLEAN($W70)), $D$4:$U$94, MATCH(Y$3, $D$3:$U$3, 0), FALSE), \"\")","v":0},0,0,0,0,0,0,0,6,0,0,0,0,0,0,6,"شيكولاته بوتيك 16 علبه * 50 قطعة"]
[68,6222000909983,"9 أشهر","ويفر مربع  3 كيلو ايليت  شيكولاته","كرتونة",null,null,null,null,null,null,null,null,null,null,null,null,null,null,null,null,0,"شيكولاته بوتيك 6 علبه * 1.25 كيلو",0,0,0,0,0,0,0,0,0,0,0,0,0,0,0,0,0,"شيكولاته بوتيك 6 علبه * 1.25 كيلو"]
[69,6222000909969,"9 أشهر","ويفر مربع  3 كيلو ايليت  فراوله","كرتونة",null,null,null,null,null,null,null,null,null,null,null,69,null,null,50,null,119,"شيكولاته بوتيك حليب 4 ك",0,0,0,0,0,0,0,0,0,0,0,0,0,0,0,0,0,"شيكولاته بوتيك حليب 4 ك"]
[70,6888000909953,"9 أشهر","ويفر مربع 3 كيلو ايليت جوز هند","كرتونة",null,null,null,null,null,null,null,null,null,null,null,null,null,null,null,null,0,"شيكولاته بوتيك كراميل 4 ك",0,0,0,0,0,0,0,0,0,0,0,0,0,0,0,0,0,"شيكولاته بوتيك كراميل 4 ك"]
[71,622200097116,"9 أشهر","ويفر فرحه 5 كيلو","كرتونة",null,null,null,null,null,null,null,null,null,null,null,36,null,null,null,null,36,"شيكولاته بوتيك بندق 4 ك",0,0,0,0,0,0,0,0,0,0,0,0,0,0,0,0,0,"شيكولاته بوتيك بندق 4 ك"]
[72,6222000912372,"9 أشهر","ويفر ايليت مربع بايتس 3 ك بني","كرتونة",null,null,null,null,null,null,null,null,null,null,null,null,null,null,null,null,0,"شيكوهند سايب 10 كجم",0,0,0,0,0,0,0,0,0,0,0,0,0,0,0,0,0,"شيكوهند سايب 10 كجم"]
[73,6222000912488,"9 أشهر","بسكوت اكشن سادة شاي 6 ع * 12 ق","كرتونة",null,null,null,null,null,null,null,null,null,null,null,null,null,null,null,null,0,"سوفت شيكوهند 5 ك",40,0,0,0,0,0,0,0,0,0,0,0,0,0,40,0,40,"سوفت شيكوهند 5 ك"]
[74,6222000914383,"9 أشهر","بسكوت اكشن سادة شاي 6 ع * 12 ق ( نباتى )","كرتونة",null,null,null,null,null,null,null,null,null,null,null,null,null,null,null,null,0,"شيكوهند سوفت 12 كيس * 28 ق",0,"","","","","","","","","","","","","","","",0,"شيكوهند سوفت 12 كيس * 28 ق"]
[75,6222000916165,"9 أشهر","ويفر اكشن مغطس بنى 12ع * 12 ق ( 5 جنية )","كرتونة",null,null,null,null,null,null,null,null,null,null,28,null,null,null,null,null,28,"شيكوهند سوفت 12 كيس * 60 ق",0,"","","","","","","","","","","","","","","",0,"شيكوهند سوفت 12 كيس * 60 ق"]
[76,6222000916172,"9 أشهر","ويفر اكشن مغطس أبيض 12ع * 12 ق ( 5 جنية )","كرتونة",null,null,null,null,null,null,null,null,null,null,null,null,null,null,null,null,0,"شيكوهند سوفت 12 ع * 100 ق",0,0,0,0,0,0,0,0,0,0,0,0,0,0,0,0,0,"شيكوهند سوفت 12 ع * 100 ق"]
[77,2810,"9 أشهر","ويفر اكشن مغطس أبيض 8ع * 12 ق ( 5 جنية )","كرتونة",null,null,null,null,null,null,null,null,null,null,null,null,null,null,null,null,0,"بار شيكوهند 3 ك",50,0,0,0,0,0,0,0,0,0,0,0,0,0,0,50,50,"بار شيكوهند 3 ك"]
[78,6222000912365,"9 أشهر","بايتس  مربع 6ع * 50ق  بنى","كرتونة",null,null,null,null,null,null,null,null,null,null,29,null,null,null,null,null,29,"ويفر ايليت  مغطس بنى 12 *12",0,"","","","","","","","","","","","","","","",0,"ويفر ايليت مغطس بنى 12 *12"]
[79,6222000902083,"9 أشهر","بايتس مربع 6 ع * 50 ق ابيض ","كرتونة",null,null,null,null,null,null,null,null,null,null,null,null,null,null,null,null,0,"ويفر ايليت مغطس ابيض  12 * 12",0,"","","","","","","","","","","","","","","",0,"ويفر ايليت مغطس ابيض 12 * 12"]
[80,6222000913904,"9 أشهر","بايتس مربع 6 ع * 50 ق فراولة ","كرتونة",null,null,null,null,null,null,null,null,null,null,null,null,null,null,null,null,0," ويفر ايليت مغطس فراولة 12*12",0,"","","","","","","","","","","","","","","",0,"ويفر ايليت مغطس فراولة 12*12"]
[81,"6222000916738","9 أشهر","ويفر بوتيك مربع 9 كيس * 500 جم","كرتونة",null,null,null,null,null,null,null,null,null,null,null,null,null,null,null,null,0,"ايليت ماكس سادة ش 12 باكو 6 قطع",263,0,0,0,0,0,0,0,0,0,0,0,0,263,0,0,263,"ايليت ماكس سادة ش 12 باكو 6 قطع"]
[82,"002797","4 أشهر","كورن عائلي 15 كيس","كرتونة",null,null,null,null,null,null,null,null,null,null,null,null,null,211,null,null,{"$f":"SUM(G85:U85)","v":211},"ايليت  ماكس سادة فانيليا 12 باكو * 6 قطع",0,"","","","","","","","","","","","","","","",0,"ايليت ماكس سادة فانيليا 12 باكو * 6 قطع"]
[83,"002796","6 أشهر","فاير فنجرز 15 كيس","كرتونة",null,null,null,null,null,null,null,null,null,null,null,null,null,254,null,null,254,"ويفر مربع  3 كيلو ايليت  ابيض",0,"","","","","","","","","","","","","","","",0,"ويفر مربع 3 كيلو ايليت ابيض"]
[84,"001766","6 أشهر","اسبيشيال أطعم  15 كيس","كرتونة",null,null,null,null,null,null,null,null,null,null,null,213,null,null,null,null,213,"ويفر مربع  3 كيلو ايليت  شيكولاته",0,{"$f":"IFERROR(VLOOKUP(TRIM(CLEAN($W87)), $D$4:$U$94, MATCH(Y$3, $D$3:$U$3, 0), FALSE), \"\")","v":""},"","","","","","","","","","","","","","",0,"ويفر مربع 3 كيلو ايليت شيكولاته"]
[85,"EG-670026743-3002","6 أشهر","شيل أوت شيبس 15 كيس سعر الكيس 10 جنية","كرتونة",null,null,null,null,null,null,null,null,null,null,null,2,null,187,null,null,189,"ويفر مربع  3 كيلو ايليت  فراوله",0,"","","","","","","","","","","","","","","",0,"ويفر مربع 3 كيلو ايليت فراوله"]
[86,"6224001574221","سنة","زى كولا مشروب غازى 275 حلى","كرتونة",null,null,null,null,null,null,null,null,null,null,254,null,null,700,null,null,954,"ويفر مربع 3 كيلو ايليت جوز هند",0,0,0,0,0,0,0,0,0,0,0,0,0,0,0,0,0,"ويفر مربع 3 كيلو ايليت جوز هند"]
[87,"2798","9 أشهر","اهلا بالعيد 8 كيس * 660 جم","كرتونة",null,null,null,null,null,null,null,null,null,null,null,null,null,null,null,null,0,"ويفر فرحه 5 كيلو",36,0,0,0,0,0,0,0,0,0,0,36,0,0,0,0,36,"ويفر فرحه 5 كيلو"]
[88,"00695","سنة","قهوه20كيس*150جرام","كرتونة",null,null,null,null,null,null,null,null,null,null,null,null,null,null,null,null,0,"ويفر ايليت مربع بايتس 3 ك بني",0,0,0,0,0,0,0,0,0,0,0,0,0,0,0,0,0,"ويفر ايليت مربع بايتس 3 ك بني"]
[89,"6222000912518","سنتان","نعناع 12 ع * 240 ق","كرتونة",null,null,null,null,null,null,null,null,null,null,null,null,null,null,null,null,0,"بسكوت اكشن سادة شاي 6 ع * 12 ق",0,0,0,0,0,0,0,0,0,0,0,0,0,0,0,0,0,"بسكوت اكشن سادة شاي 6 ع * 12 ق"]
[90,"002827",null,"سولا فواكة فلوباك 10 ك","كرتونة",null,null,null,null,null,null,null,null,null,null,null,null,null,null,55,null,55,"بسكوت اكشن سادة شاي 6 ع * 12 ق ( نباتى )",0,0,0,0,0,0,0,0,0,0,0,0,0,0,0,0,0,"بسكوت اكشن سادة شاي 6 ع * 12 ق ( نباتى )"]
[91,null,null,null,null,null,null,null,null,null,null,null,null,null,null,null,null,null,null,null,null,0,"ويفر اكشن مغطس بنى 12ع * 12 ق ( 5 جنية )",28,0,0,0,0,0,0,0,0,0,28,0,0,0,0,0,28,"ويفر اكشن مغطس بنى 12ع * 12 ق ( 5 جنية )"]
[92,null,null,null,null,null,null,null,null,null,null,null,null,null,null,null,null,null,null,null,null,0,"ويفر اكشن مغطس أبيض 12ع * 12 ق ( 5 جنية )",0,0,0,0,0,0,0,0,0,0,0,0,0,0,0,0,0,"ويفر اكشن مغطس أبيض 12ع * 12 ق ( 5 جنية )"]
[93,null,null,null,null,null,null,null,null,null,null,null,null,null,null,null,null,null,null,null,null,0,"ويفر اكشن مغطس أبيض 8ع * 12 ق ( 5 جنية )",0,0,0,0,0,0,0,0,0,0,0,0,0,0,0,0,0,"ويفر اكشن مغطس أبيض 8ع * 12 ق ( 5 جنية )"]
[94,null,null,null,null,null,null,null,null,null,null,null,null,null,null,null,null,null,null,null,null,0,"بايتس  مربع 6ع * 50ق  بنى",0,"","","","","","","","","","","","","","","",0,"بايتس مربع 6ع * 50ق بنى"]
[95,null,null,null,null,null,null,null,null,null,null,null,null,null,null,null,null,null,null,null,null,0,"بايتس مربع 6 ع * 50 ق ابيض ",0,"","","","","","","","","","","","","","","",0,"بايتس مربع 6 ع * 50 ق ابيض"]
[96,null,null,null,null,null,null,null,null,null,null,null,null,null,null,null,null,null,null,null,null,0,"ويفر  4 علبه * 50 قطعه ابيض بايتس",0,"","","","","","","","","","","","","","","",0,"ويفر 4 علبه * 50 قطعه ابيض بايتس"]
[97,null,null,null,null,null,null,null,null,null,null,null,null,null,null,null,null,null,null,null,null,0,"ويفر  5 علبه * 50 قطعه ابيض بايتس",0,"","","","","","","","","","","","","","","",0,"ويفر 5 علبه * 50 قطعه ابيض بايتس"]
[98,null,null,null,null,null,null,null,null,null,null,null,null,null,null,null,null,null,null,null,null,0,"ويفر  7 علبه * 50 قطعه ابيض بايتس",0,"","","","","","","","","","","","","","","",0,"ويفر 7 علبه * 50 قطعه ابيض بايتس"]
[99,null,null,null,null,null,null,null,null,null,null,null,null,null,null,null,null,null,null,null,null,0,"بايتس مربع 6 ع * 50 ق فراولة ",0,"","","","","","","","","","","","","","","",0,"بايتس مربع 6 ع * 50 ق فراولة"]
[100,null,null,null,null,null,null,null,null,null,null,null,null,null,null,null,null,null,null,null,null,0,"ويفر  4 علبه * 50 قطعه فراولة بايتس",0,"","","","","","","","","","","","","","","",0,"ويفر 4 علبه * 50 قطعه فراولة بايتس"]
[101,null,null,null,null,null,null,null,null,null,null,null,null,null,null,null,null,null,null,null,null,0,"ويفر بوتيك مربع 9 كيس * 500 جم",0,{"$f":"IFERROR(VLOOKUP(TRIM(CLEAN($W104)), $D$4:$U$94, MATCH(Y$3, $D$3:$U$3, 0), FALSE), \"\")","v":0},0,0,0,0,0,0,0,0,0,0,0,0,0,0,0,"ويفر بوتيك مربع 9 كيس * 500 جم"]
[102,null,null,null,null,null,null,null,null,null,null,null,null,null,null,null,null,null,null,null,null,0,"ايليت عرض خاص ",0,"","","","","","","","","","","","","","","",0,"ايليت عرض خاص"]
[103,null,null,null,null,null,null,null,null,null,null,null,null,null,null,null,null,null,null,null,null,0,"اهلا بالعيد 8 كيس * 660 جم",0,0,0,0,0,0,0,0,0,0,0,0,0,0,0,0,0,"اهلا بالعيد 8 كيس * 660 جم"]
[104,null,null,null,null,null,null,null,null,null,null,null,null,null,null,null,null,null,null,null,null,0,"كورن عائلي 15 كيس",211,0,0,0,0,0,0,0,0,0,0,0,0,211,0,0,211,"كورن عائلي 15 كيس"]
[105,null,null,null,null,null,null,null,null,null,null,null,null,null,null,null,null,null,null,null,null,0,"فاير فنجرز 15 كيس",254,0,0,0,0,0,0,0,0,0,0,0,0,254,0,0,254,"فاير فنجرز 15 كيس"]
[106,null,null,null,null,null,null,null,null,null,null,null,null,null,null,null,null,null,null,null,null,0,"اسبيشيال أطعم  15 كيس",0,"","","","","","","","","","","","","","","",0,"اسبيشيال أطعم 15 كيس"]
[107,null,null,null,null,null,null,null,null,null,null,null,null,null,null,null,null,null,null,null,null,0,"شيل أوت شيبس 15 كيس سعر الكيس 10 جنية",189,0,0,0,0,0,0,0,0,0,0,2,0,187,0,0,189,"شيل أوت شيبس 15 كيس سعر الكيس 10 جنية"]
[null,null,null,null,null,null,null,null,null,null,null,null,null,null,null,null,null,null,null,null,null,0,"زى كولا مشروب غازى 275 حلى",954,0,0,0,0,0,0,0,0,0,254,0,0,700,0,0,954,"زى كولا مشروب غازى 275 حلى"]
[108,null,null,null,null,null,null,null,null,null,null,null,null,null,null,null,null,null,null,null,null,0,"زبدة 12 علبة * 240 ق",0,"","","","","","","","","","","","","","","",0,"زبدة 12 علبة * 240 ق"]
["الاجمالى",null,null,null,null,{"$f":"SUM(F4:F112)","v":0},0,0,0,0,0,0,0,59,6,421,416,85,2723.5,1012,{"$f":"SUM(U4:U112)","v":405},{"$f":"SUM(V4:V111)","v":5127.5},null,{"$f":"SUM(X4:X112)","v":4293.5},{"$f":"SUM(Y4:Y112)","v":0},{"$f":"SUM(Z4:Z112)","v":0},0,0,0,0,0,59,6,392,60,85,2374.5,912,405,{"$f":"SUM(AN4:AN112)","v":4293.5}]
[]
[null,null,null,null,null,null,null,null,null,null,null,null,null,null,null,null,null,null,null,null,null,null,null,null,null,null,null,null,null,null,null,null,null,{"$f":"P113-AH113","v":29},{"$f":"Q113-AI113","v":356},null,{"$f":"S113-AK113","v":349},{"$f":"T113-AL113","v":100}]
[]
[null,null,null,null,null,null,null,null,null,null,null,null,null,null,null,null,null,null,null,null,null,{"$f":"V113-AN113","v":834}]

{"sheet":"Sheet11","index":1,"n_rows":7,"n_cols":6,"rows_kept":7,"cut":false,"hidden":false,"merged":[]}
[]
[]
[]
["بايتس  مربع 6ع * 50ق  بنى","بايتس  مربع 6ع * 50ق  بنى",null,{"$f":"TRIM(CLEAN(A4:A4))","v":"بايتس مربع 6ع * 50ق بنى"},{"$f":"A4=D4","v":false},{"$f":"LEN(TRIM(CLEAN(E4)))","v":5}]
[]
[]
[null,null,null,null,false]

{"sheet":"الرصيد 3 (8)","index":2,"n_rows":117,"n_cols":41,"rows_kept":117,"cut":false,"hidden":false,"merged":[[1,22,1,38],[1,39,2,39],[112,0,112,4],[0,0,0,21],[0,22,0,38],[1,0,2,0],[1,1,2,1],[1,2,2,2],[1,3,2,3],[1,4,2,4],[1,5,2,5],[1,11,1,19],[1,21,2,21]]}
["رصيد توكيل (   توكيل نجع حمادى    ) عن يوم (   الخميس 9/13  )",null,null,null,null,null,null,null,null,null,null,null,null,null,null,null,null,null,null,null,null,null,"شيت به معادلات عادية "]
["م","الكود","مدة \nالصلاحية","الصنف","الوحدة","الرصيد\n الدفترى\nبالكرتونة\n ",null,null,null,null,null,null,null,null,null,null,null,null,null,null,null,"الرصيد\n الفعلى\nبالكرتونة\n","تنسيق الارقام مع اسم الصنف والتاريخ المقابل لها",null,null,null,null,null,null,null,null,null,null,null,null,null,null,null,null,"الرصيد\n الفعلى\nبالكرتونة\n"]
[null,null,null,null,null,null,"2024-07-01","2024-08-01","2024-09-01","2024-10-01","2024-11-01","2024-12-01","2025-01-01","2025-02-01","2025-03-01","2025-04-01","2025-05-01","2025-06-01","2025-07-01","2025-08-01","2025-09-01",null,"اسم الصنف","الرصيد","2024-07-01","2024-08-01","2024-09-01","2024-10-01","2024-11-01","2024-12-01","2025-01-01","2025-02-01","2025-03-01","2025-04-01","2025-05-01","2025-06-01","2025-07-01","2025-08-01","2025-09-01",null,{"$f":"IFERROR(IF(INDEX($G$4:$U$94,MATCH(SUBSTITUTE(TRIM($W4),CHAR(160),\" \"),SUBSTITUTE(TRIM($D$4:$D$94),CHAR(160),\" \"),0),MATCH(Y$3,$G$3:$U$3,0))=0,\"\",INDEX($G$4:$U$94,MATCH(SUBSTITUTE(TRIM($W4),CHAR(160),\" \"),SUBSTITUTE(TRIM($D$4:$D$94),CHAR(160),\" \"),0),MATCH(Y$3,$G$3:$U$3,0))),\"\")","v":""}]
[1,6222000901529,"سنتان","سوبر فينا 10 كيلو","كرتونة",null,null,null,null,null,null,null,null,null,null,null,null,null,52,50,100,{"$f":"SUM(G4:U4)","v":202},"سوبر فينا 10 كيلو",{"$f":"AN4","v":0},{"$f":"IFERROR(IF(OR(INDEX($G$4:$U$94, MATCH(TRIM(CLEAN($W4)), $F$4:$F$94, 0), MATCH(Y$3, $G$3:$U$3, 0))=0, INDEX($G$4:$U$94, MATCH(TRIM(CLEAN($W4)), $F$4:$F$94, 0), MATCH(Y$3, $G$3:$U$3, 0))=\"\"), \"\", INDEX($G$4:$U$94, MATCH(TRIM(CLEAN($W4)), $F$4:$F$94, 0), MATCH(Y$3, $G$3:$U$3, 0))), \"\")","v":""},{"$f":"IFERROR(IF(OR(INDEX($G$4:$U$94, MATCH(TRIM(CLEAN($W4)), $F$4:$F$94, 0), MATCH(Z$3, $G$3:$U$3, 0))=0, INDEX($G$4:$U$94, MATCH(TRIM(CLEAN($W4)), $F$4:$F$94, 0), MATCH(Z$3, $G$3:$U$3, 0))=\"\"), \"\", INDEX($G$4:$U$94, MATCH(TRIM(CLEAN($W4)), $F$4:$F$94, 0), MATCH(Z$3, $G$3:$U$3, 0))), \"\")","v":""},"","","","","","","","","","","","","",{"$f":"SUM(Y4:AM4)","v":0},{"$f":"TRIM(CLEAN(SUBSTITUTE(SUBSTITUTE(SUBSTITUTE(W4,CHAR(10),\"\"),CHAR(13),\"\"),CHAR(9),\"\")))","v":"سوبر فينا 10 كيلو"}]
[2,6222000901536,"سنتان","سوبر فينا 10 كيلو نعناع","كرتونة",null,null,null,null,null,null,null,null,null,null,null,null,null,24,null,155,{"$f":"SUM(G5:U5)","v":179},"سولا فواكة فلوباك 10 ك",{"$f":"AN5","v":55},{"$f":"IFERROR(IF(OR(INDEX($G$4:$U$94, MATCH(TRIM(CLEAN($W5)), $D$4:$D$94, 0), MATCH(Y$3, $G$3:$U$3, 0))=0, INDEX($G$4:$U$94, MATCH(TRIM(CLEAN($W5)), $D$4:$D$94, 0), MATCH(Y$3, $G$3:$U$3, 0))=\"\"), \"\", INDEX($G$4:$U$94, MATCH(TRIM(CLEAN($W5)), $D$4:$D$94, 0), MATCH(Y$3, $G$3:$U$3, 0))), \"\")","v":""},{"$f":"IFERROR(IF(OR(INDEX($G$4:$U$94, MATCH(TRIM(CLEAN($W5)), $D$4:$D$94, 0), MATCH(Z$3, $G$3:$U$3, 0))=0, INDEX($G$4:$U$94, MATCH(TRIM(CLEAN($W5)), $D$4:$D$94, 0), MATCH(Z$3, $G$3:$U$3, 0))=\"\"), \"\", INDEX($G$4:$U$94, MATCH(TRIM(CLEAN($W5)), $D$4:$D$94, 0), MATCH(Z$3, $G$3:$U$3, 0))), \"\")","v":""},"","","","","","","","","","","",55,"",{"$f":"SUM(Y5:AM5)","v":55},{"$f":"TRIM(CLEAN(SUBSTITUTE(SUBSTITUTE(SUBSTITUTE(W5,CHAR(10),\"\"),CHAR(13),\"\"),CHAR(9),\"\")))","v":"سولا فواكة فلوباك 10 ك"}]
[3,6222000911733,"سنتان","نعناع 12كيس 50 ق 4جم","كرتونة",null,null,null,null,null,null,null,null,null,null,null,null,null,null,3,null,3,"سولا فواكة 5 ك",0,"","","","","","","","","","","","","","","",0,"سولا فواكة 5 ك"]
[4,6222000911764,"سنتان","سولا فواكه 12 كيس * 50 ق","كرتونة",null,null,null,null,null,null,null,null,null,null,null,null,null,null,null,null,0,"سولا فواكه 30 كيس * 28 ق",0,"","","","","","","","","","","","","","","",0,"سولا فواكه 30 كيس * 28 ق"]
[5,"6222000917773","سنتان","سولا فواكه 30 كيس * 28 ق","كرتونة",null,null,null,null,null,null,null,null,null,null,null,null,null,null,null,null,0,"سولا فواكه 12 كيس * 50 ق",0,"","","","","","","","","","","","","","","",0,"سولا فواكه 12 كيس * 50 ق"]
[6,"6222000917780","سنتان","سولا فواكه 12 كيس * 100 ق","كرتونة",null,null,null,null,null,null,null,null,null,null,null,null,null,null,104,null,104,"سولا فواكه 12 كيس * 100 ق",104,"","","","","","","","","","","","","",104,"",104,"سولا فواكه 12 كيس * 100 ق"]
[7,6222000916295,"سنتان","سولا فواكة 6 كيس * 800 جم","كرتونة",null,null,null,null,null,null,null,null,null,null,null,null,null,null,null,null,0,"سولا ف 12 ع * 200 ق",0,"","","","","","","","","","","","","","","",0,"سولا ف 12 ع * 200 ق"]
[8,6222000912525,"سنتان","سولا ف 12 ع * 200 ق","كرتونة",null,null,null,null,null,null,null,null,null,null,null,null,null,null,null,null,0,"سولا ف 12 ع * 240 ق",0,"","","","","","","","","","","","","","","",0,"سولا ف 12 ع * 240 ق"]
[9,"6222000912518","سنتان","سولا نعناع 12 ع * 200 ق","كرتونة",null,null,null,null,null,null,null,null,null,null,null,22,null,null,null,null,22,"سولا فواكة 6 كيس * 800 جم",0,"","","","","","","","","","","","","","","",0,"سولا فواكة 6 كيس * 800 جم"]
[10,6222000912525,"سنتان","سولا ف 12 ع * 240 ق","كرتونة",null,null,null,null,null,null,null,null,null,null,null,null,null,null,null,null,0,"سوبر فينا 10 كيلو نعناع",179,"","","","","","","","","","","","",24,"",155,179,"سوبر فينا 10 كيلو نعناع"]
[11,"6222000908566","سنتان","سولا فواكة 5 ك","كرتونة",null,null,null,null,null,null,null,null,null,null,null,null,null,null,null,null,0,"سولا نعناع فلوباك 10 ك",0,"","","","","","","","","","","","","","","",0,"سولا نعناع فلوباك 10 ك"]
[12,"6222000908573","سنتان","سولا نعناع 5 ك","كرتونة",null,null,null,null,null,null,null,null,59,null,null,null,null,null,null,null,59,"سولا نعناع 5 ك",59,"","","","","","","",59,"","","","","","","",59,"سولا نعناع 5 ك"]
[13,"00743","سنة","قهوة 12 ع * 200 ق","كرتونة",null,null,null,null,null,null,null,null,null,null,null,null,null,null,null,null,0,"سولا نعناع 30 كيس * 28 ق",0,"","","","","","","","","","","","","","","",0,"سولا نعناع 30 كيس * 28 ق"]
[14,"6222000917452","سنة","قهوة 12 ع * 240 ق","كرتونة",null,null,null,null,null,null,null,null,null,null,null,null,null,null,27,null,27,"نعناع 12كيس 50 ق 4جم",3,"","","","","","","","","","","","","",3,"",3,"نعناع 12كيس 50 ق 4جم"]
[15,6222000901758,"سنة","سولا قهوه 10 كيلو","كرتونة",null,null,null,null,null,null,null,null,null,null,null,null,null,15.5,50,null,65.5,"سولا نعناع 12 كيس * 100 ق",0,"","","","","","","","","","","","","","","",0,"سولا نعناع 12 كيس * 100 ق"]
[16,6222000912020,"سنة","قهوة 5 ك","كرتونة",null,null,null,null,null,null,null,null,null,null,null,null,null,null,null,null,0,"سولا نعناع 12 ع * 200 ق",22,"","","","","","","","","","",22,"","","","",22,"سولا نعناع 12 ع * 200 ق"]
[17,6222000909815,"سنة","قهوة 12 كيس * 80 ق / 90 ق","كرتونة",null,null,null,null,null,null,null,null,null,null,null,null,85,null,65,null,150,"نعناع 12 ع * 240 ق",0,"","","","","","","","","","","","","","","",0,"نعناع 12 ع * 240 ق"]
[18,6222000908610,"سنة","قهوة 30 كيس * 18 ق / 25 ق","كرتونة",null,null,null,null,null,null,null,null,null,null,null,null,null,null,null,null,0,"سولا قهوه 10 كيلو",65.5,"","","","","","","","","","","","",15.5,50,"",65.5,"سولا قهوه 10 كيلو"]
[19,6222000909891,"سنة","قهوة 30 كيس * 12قطعه","كرتونة",null,null,null,null,null,null,null,null,null,null,null,null,null,null,null,null,0,"قهوة 5 ك",0,"","","","","","","","","","","","","","","",0,"قهوة 5 ك"]
[20,"00744","سنة","زبدة 12 ع * 200 ق","كرتونة",null,null,null,null,null,null,null,null,null,null,null,null,null,64,null,null,64,"قهوة 30 كيس * 12قطعه",0,"","","","","","","","","","","","","","","",0,"قهوة 30 كيس * 12قطعه"]
[21,6222000901642,"سنة","سولا زبده 10 كيلو","كرتونة",null,null,null,null,null,null,null,null,null,null,null,null,null,null,18,null,18,"قهوة 30 كيس * 15قطعه",0,"","","","","","","","","","","","","","","",0,"قهوة 30 كيس * 15قطعه"]
[22,6222000912037,"سنة","زبدة 5 ك","كرتونة",null,null,null,null,null,null,null,null,null,null,null,null,null,null,null,null,0,"قهوة 30 كيس * 18 ق / 25 ق",0,"","","","","","","","","","","","","","","",0,"قهوة 30 كيس * 18 ق / 25 ق"]
[23,6222000917124,"سنة","زبدة بالشيكولاته 12 علبة * 240 ق","كرتونة",null,null,null,null,null,null,null,null,null,null,null,null,null,null,64,null,64,"قهوة 12 كيس * 55 ق",0,"","","","","","","","","","","","","","","",0,"قهوة 12 كيس * 55 ق"]
[24,6222000918732,"سنة","زبدة بالشيكولاته 10 ك","كرتونة",null,null,null,null,null,null,null,null,null,null,null,null,null,null,34,null,34,"قهوة 12 كيس * 80 ق / 90 ق",150,"","","","","","","","","","","",85,"",65,"",150,"قهوة 12 كيس * 80 ق / 90 ق"]
[25,6222000909808,"سنة","زبدة 12 كيس * 80 ق / 90 ق","كرتونة",null,null,null,null,null,null,null,null,null,null,null,null,null,null,null,null,0,"قهوة 12 كيس * 120 ق",0,"","","","","","","","","","","","","","","",0,"قهوة 12 كيس * 120 ق"]
[26,6222000907583,"سنة","زبدة 30 كيس * 18 ق / 25 ق","كرتونة",null,null,null,null,null,null,null,null,null,null,110,null,null,null,null,null,110,"قهوة 12 ع * 200 ق",0,"","","","","","","","","","","","","","","",0,"قهوة 12 ع * 200 ق"]
[27,6222000909884,"سنة","زبدة 30 كيس * 12قطعه","كرتونة",null,null,null,null,null,null,null,null,null,null,null,null,null,61,48,null,109,"قهوة 12 ع * 240 ق",27,"","","","","","","","","","","","","",27,"",27,"قهوة 12 ع * 240 ق"]
[28,6222000909884,"سنة","زبدة 30 كيس * 15 قطعه","كرتونة",null,null,null,null,null,null,null,null,null,null,null,null,null,null,null,null,0,"قهوه20كيس*150جرام",0,"","","","","","","","","","","","","","","",0,"قهوه20كيس*150جرام"]
[29,6222000905688,"سنة","زبدة 12 كيس * 55 قطعه","كرتونة",null,null,null,null,null,null,null,null,null,null,null,null,null,null,null,null,0,"سولا زبده 10 كيلو",18,"","","","","","","","","","","","","",18,"",18,"سولا زبده 10 كيلو"]
[30,171,"سنة","زبدة 12 كيس * 120 ق","كرتونة",null,null,null,null,null,null,null,null,null,null,null,null,null,41,null,45,86,"زبدة 5 ك",0,"","","","","","","","","","","","","","","",0,"زبدة 5 ك"]
[31,6222000910064,"سنة","زبدة 10 شنطة * 800 جم","كرتونة",null,null,null,null,null,null,null,null,null,null,null,null,null,null,null,null,0,"زبدة 30 كيس * 12قطعه",109,"","","","","","","","","","","","",61,48,"",109,"زبدة 30 كيس * 12قطعه"]
[32,6222000912501,"9 أشهر","عسلية 12 ع * 200 ق","كرتونة",null,null,null,null,null,null,null,null,null,null,null,null,null,null,null,null,0,"زبدة 30 كيس * 15 قطعه",0,"","","","","","","","","","","","","","","",0,"زبدة 30 كيس * 15 قطعه"]
[33,6222000912457,"9 أشهر","عسلية  5 ك","كرتونة",null,null,null,null,null,null,null,null,null,null,null,null,null,null,null,null,0,"زبدة 30 كيس * 18 ق / 25 ق",110,{"$f":"IFERROR(IF(OR(INDEX($G$4:$U$94, MATCH(TRIM(CLEAN($W36)), $D$4:$D$94, 0), MATCH(Y$3, $G$3:$U$3, 0))=0, INDEX($G$4:$U$94, MATCH(TRIM(CLEAN($W36)), $D$4:$D$94, 0), MATCH(Y$3, $G$3:$U$3, 0))=\"\"), \"\", INDEX($G$4:$U$94, MATCH(TRIM(CLEAN($W36)), $D$4:$D$94, 0), MATCH(Y$3, $G$3:$U$3, 0))), \"\")","v":""},"","","","","","","","",110,"","","","","",110,"زبدة 30 كيس * 18 ق / 25 ق"]
[34,6222000901611,"سنة","اكلير سايب 10 كيلو","كرتونة",null,null,null,null,null,null,null,null,null,null,null,null,null,43,55,null,98,"زبدة 12 كيس * 55 قطعه",0,"","","","","","","","","","","","","","","",0,"زبدة 12 كيس * 55 قطعه"]
[35,6222000909907,"سنة","اكلير  30 كيس * 9 ق / 10 ق","كرتونة",null,null,null,null,null,null,null,null,null,null,null,null,null,134,null,null,134,"زبدة 12 كيس * 80 ق / 90 ق",0,"","","","","","","","","","","","","","","",0,"زبدة 12 كيس * 80 ق / 90 ق"]
[36,6222000909907,"سنة","اكلير 30 كيس * 12 قطعه","كرتونة",null,null,null,null,null,null,null,null,null,null,null,null,null,null,null,null,0,"زبدة 12 كيس * 120 ق",86,"","","","","","","","","","","","",41,"",45,86,"زبدة 12 كيس * 120 ق"]
[37,6222000911498,"سنة","اكلير سولا 5 كيلو ","كرتونة",null,null,null,null,null,null,null,null,null,null,null,null,null,null,null,null,0,"زبدة 12 ع * 200 ق",64,"","","","","","","","","","","","",64,"","",64,"زبدة 12 ع * 200 ق"]
[38,6222000912778,"سنة","اكلير 12كيس * 65 ق / 70 ق","كرتونة",null,null,null,null,null,null,null,null,null,null,null,null,null,null,null,null,0,"زبدة 10 شنطة * 800 جم",0,"","","","","","","","","","","","","","","",0,"زبدة 10 شنطة * 800 جم"]
[39,6222000912778,"سنة","اكلير 12 كيس * 100 قطعة","كرتونة",null,null,null,null,null,null,null,null,null,null,null,null,null,137,null,null,137,"زبدة بالشيكولاته 10 ك",34,"","","","","","","","","","","","","",34,"",34,"زبدة بالشيكولاته 10 ك"]
[40,6222000912822,"سنة","اكلير 30 كيس * 15 ق / 20 ق","كرتونة",null,null,null,null,null,null,null,null,null,null,null,null,null,null,null,null,0,"زبدة بالشيكولاته 30 كيس * 15 قطعه",0,"","","","","","","","","","","","","","","",0,"زبدة بالشيكولاته 30 كيس * 15 قطعه"]
[41,6222000905701,"سنة","اكلير 12كيس 45 ق","كرتونة",null,null,null,null,null,null,null,null,null,null,null,null,null,220,null,null,220,"زبدة بالشيكولاته 12 كيس * 55 قطعه",0,"","","","","","","","","","","","","","","",0,"زبدة بالشيكولاته 12 كيس * 55 قطعه"]
[42,6222000912532,"سنة","اكلير 12 علبة * 160 ق","كرتونة",null,null,null,null,null,null,null,null,null,null,null,null,null,null,null,null,0,"زبدة بالشيكولاته 12 كيس * 120 ق",0,"","","","","","","","","","","","","","","",0,"زبدة بالشيكولاته 12 كيس * 120 ق"]
[43,6222000912532,"سنة","اكلير 12 علبة 200 ق","كرتونة",null,null,null,null,null,null,null,null,null,null,null,null,null,35,null,null,35,"زبدة بالشيكولاته 12 علبة * 240 ق",64,"","","","","","","","","","","","","",64,"",64,"زبدة بالشيكولاته 12 علبة * 240 ق"]
[44,6222000901697,"سنة","طوفي 10 كجم","كرتونة",null,null,null,null,null,null,null,null,null,null,null,null,null,38,46,55,139,"عسلية  5 ك",0,"","","","","","","","","","","","","","","",0,"عسلية 5 ك"]
[45,6222000911481,"سنة","طوفي بردايس 5كيلو","كرتونة",null,null,null,null,null,null,null,null,null,null,null,null,null,null,null,null,0,"عسلية 12 ع * 200 ق",0,"","","","","","","","","","","","","","","",0,"عسلية 12 ع * 200 ق"]
[46,6222000908276,"سنة","طوفي 30 كيس * 25 قطعه","كرتونة",null,null,null,null,null,null,null,null,null,null,null,null,null,null,null,null,0,"اكلير سايب 10 كيلو",98,"","","","","","","","","","","","",43,55,"",98,"اكلير سايب 10 كيلو"]
[47,6222000908276,"سنة","طوفى 30 كيس * 28 ق","كرتونة",null,null,null,null,null,null,null,null,null,null,null,null,null,null,100,null,100,"اكلير  30 كيس * 9 ق / 10 ق",0,"","","","","","","","","","","","","","","",0,"اكلير 30 كيس * 9 ق / 10 ق"]
[48,6222000909921,"سنة","طوفي 30 كيس * 12قطعه","كرتونة",null,null,null,null,null,null,null,null,null,null,null,null,null,null,null,null,0,"اكلير 30 كيس * 12 قطعه",0,"","","","","","","","","","","","","","","",0,"اكلير 30 كيس * 12 قطعه"]
[49,6222000909839,"سنة","طوفي 12 كيس * 90 ق","كرتونة",null,null,null,null,null,null,null,null,null,null,null,null,null,null,11,null,11,"اكلير 30 كيس * 15 ق / 20 ق",0,"","","","","","","","","","","","","","","",0,"اكلير 30 كيس * 15 ق / 20 ق"]
[50,6222000905718,"سنة","طوفى 12كيس * 100 ق","كرتونة",null,null,null,null,null,null,null,null,null,null,null,null,null,null,97,null,97,"اكلير 12كيس 45 ق",220,{"$f":"IFERROR(IF(OR(INDEX($G$4:$U$94, MATCH(TRIM(CLEAN($W53)), $D$4:$D$94, 0), MATCH(Y$3, $G$3:$U$3, 0))=0, INDEX($G$4:$U$94, MATCH(TRIM(CLEAN($W53)), $D$4:$D$94, 0), MATCH(Y$3, $G$3:$U$3, 0))=\"\"), \"\", INDEX($G$4:$U$94, MATCH(TRIM(CLEAN($W53)), $D$4:$D$94, 0), MATCH(Y$3, $G$3:$U$3, 0))), \"\")","v":""},"","","","","","","","","","","",220,"","",220,"اكلير 12كيس 45 ق"]
[51,6222000908825,"سنة","طوفى 12 ع * 200 ق","كرتونة",null,null,null,null,null,null,null,null,null,null,null,null,null,null,null,null,0,"اكلير 12كيس * 65 ق / 70 ق",0,"","","","","","","","","","","","","","","",0,"اكلير 12كيس * 65 ق / 70 ق"]
[52,6222000912556,"سنة","طوفي 12 علبه * 240 ق","كرتونة",null,null,null,null,null,null,null,null,null,null,null,null,null,29,45,null,74,"اكلير 12 كيس * 100 قطعة",137,"","","","","","","","","","","","",137,"","",137,"اكلير 12 كيس * 100 قطعة"]
[53,6222000907637,"سنة","شيكولاته بوتيك 16 علبه * 50 قطعة","كرتونة",null,null,null,null,null,null,null,null,null,6,null,null,null,null,null,null,6,"اكلير 12 علبة * 160 ق",0,"","","","","","","","","","","","","","","",0,"اكلير 12 علبة * 160 ق"]
[54,6222000903295,"سنة","شيكولاته بوتيك 6 علبه * 1.25 كيلو","كرتونة",null,null,null,null,null,null,null,null,null,null,null,null,null,null,null,null,0,"اكلير 12 علبة 200 ق",35,"","","","","","","","","","","","",35,"","",35,"اكلير 12 علبة 200 ق"]
[55,6222000912006,"سنة","شيكولاته بوتيك حليب 4 ك","كرتونة",null,null,null,null,null,null,null,null,null,null,null,null,null,null,null,null,0,"طوفي 10 كجم",139,"","","","","","","","","","","","",38,46,55,139,"طوفي 10 كجم"]
[56,6222000911993,"سنة","شيكولاته بوتيك كراميل 4 ك","كرتونة",null,null,null,null,null,null,null,null,null,null,null,null,null,null,null,null,0,"طوفي 30 كيس * 12قطعه",0,"","","","","","","","","","","","","","","",0,"طوفي 30 كيس * 12قطعه"]
[57,6222000912013,"سنة","شيكولاته بوتيك بندق 4 ك","كرتونة",null,null,null,null,null,null,null,null,null,null,null,null,null,null,null,null,0,"طوفي 30 كيس * 25 قطعه",0,"","","","","","","","","","","","","","","",0,"طوفي 30 كيس * 25 قطعه"]
[58,6222000964197,"سنة","شيكوهند سايب 10 كجم","كرتونة",null,null,null,null,null,null,null,null,null,null,null,null,null,null,null,null,0,"طوفى 30 كيس * 28 ق",100,"","","","","","","","","","","","","",100,"",100,"طوفى 30 كيس * 28 ق"]
[59,6222000906630,"سنة","سوفت شيكوهند 5 ك","كرتونة",null,null,null,null,null,null,null,null,null,null,null,null,null,null,40,null,40,"طوفي 12 كيس * 90 ق",11,"","","","","","","","","","","","","",11,"",11,"طوفي 12 كيس * 90 ق"]
[60,6222000612549,"سنة","شيكوهند سوفت 12 ع * 100 ق","كرتونة",null,null,null,null,null,null,null,null,null,null,null,null,null,null,null,null,0,"طوفى 12كيس * 100 ق",97,"","","","","","","","","","","","","",97,"",97,"طوفى 12كيس * 100 ق"]
[61,6222000915243,"سنة","بار شيكوهند 3 ك","كرتونة",null,null,null,null,null,null,null,null,null,null,null,null,null,null,null,50,50,"طوفى 12 ع * 200 ق",0,"","","","","","","","","","","","","","","",0,"طوفى 12 ع * 200 ق"]
[62,6222000902519,"9 أشهر","ويفر ايليت  مغطس بنى 12 *12","كرتونة",null,null,null,null,null,null,null,null,null,null,null,null,null,null,null,null,0,"طوفي 12 علبه * 240 ق",74,"","","","","","","","","","","","",29,45,"",74,"طوفي 12 علبه * 240 ق"]
[63,6222000902557,"9 أشهر","ويفر ايليت مغطس ابيض  12 * 12","كرتونة",null,null,null,null,null,null,null,null,null,null,null,null,null,null,null,null,0,"طوفي شيكولاته 12 كيس * 25 ق",0,"","","","","","","","","","","","","","","",0,"طوفي شيكولاته 12 كيس * 25 ق"]
[64,6222000902564,"9 أشهر"," ويفر ايليت مغطس فراولة 12*12","كرتونة",null,null,null,null,null,null,null,null,null,null,null,null,null,null,null,null,0,"طوفي شيكولاته 12 علبة * 100 ق",0,"","","","","","","","","","","","","","","",0,"طوفي شيكولاته 12 علبة * 100 ق"]
[65,6222000910200,"9 أشهر","ايليت ماكس سادة ش 12 باكو 6 قطع","كرتونة",null,null,null,null,null,null,null,null,null,null,null,null,null,263,null,null,263,"طوفي زبدة 12 كيس * 25 ق",0,"","","","","","","","","","","","","","","",0,"طوفي زبدة 12 كيس * 25 ق"]
[66,6222000910514,"9 أشهر","ايليت  ماكس سادة فانيليا 12 باكو * 6 قطع","كرتونة",null,null,null,null,null,null,null,null,null,null,null,null,null,215,null,null,{"$f":"SUM(G69:U69)","v":215},"طوفي زبدة 12 علبة * 100 ق",{"$f":"AN69","v":0},"","","","","","","","","","","","","","","",{"$f":"SUM(Y69:AM69)","v":0},{"$f":"TRIM(CLEAN(SUBSTITUTE(SUBSTITUTE(SUBSTITUTE(W69,CHAR(10),\"\"),CHAR(13),\"\"),CHAR(9),\"\")))","v":"طوفي زبدة 12 علبة * 100 ق"}]
[67,6222000909976,"9 أشهر","ويفر مربع  3 كيلو ايليت  ابيض","كرتونة",null,null,null,null,null,null,null,null,null,null,null,74,null,null,50,null,124,"شيكولاته بوتيك 16 علبه * 50 قطعة",6,{"$f":"IFERROR(IF(OR(INDEX($G$4:$U$94, MATCH(TRIM(CLEAN($W70)), $D$4:$D$94, 0), MATCH(Y$3, $G$3:$U$3, 0))=0, INDEX($G$4:$U$94, MATCH(TRIM(CLEAN($W70)), $D$4:$D$94, 0), MATCH(Y$3, $G$3:$U$3, 0))=\"\"), \"\", INDEX($G$4:$U$94, MATCH(TRIM(CLEAN($W70)), $D$4:$D$94, 0), MATCH(Y$3, $G$3:$U$3, 0))), \"\")","v":""},"","","","","","","",6,"","","","","","",6,"شيكولاته بوتيك 16 علبه * 50 قطعة"]
[68,6222000909983,"9 أشهر","ويفر مربع  3 كيلو ايليت  شيكولاته","كرتونة",null,null,null,null,null,null,null,null,null,null,null,null,null,null,null,null,0,"شيكولاته بوتيك 6 علبه * 1.25 كيلو",0,"","","","","","","","","","","","","","","",0,"شيكولاته بوتيك 6 علبه * 1.25 كيلو"]
[69,6222000909969,"9 أشهر","ويفر مربع  3 كيلو ايليت  فراوله","كرتونة",null,null,null,null,null,null,null,null,null,null,null,69,null,null,50,null,119,"شيكولاته بوتيك حليب 4 ك",0,"","","","","","","","","","","","","","","",0,"شيكولاته بوتيك حليب 4 ك"]
[70,6888000909953,"9 أشهر","ويفر مربع 3 كيلو ايليت جوز هند","كرتونة",null,null,null,null,null,null,null,null,null,null,null,null,null,null,null,null,0,"شيكولاته بوتيك كراميل 4 ك",0,"","","","","","","","","","","","","","","",0,"شيكولاته بوتيك كراميل 4 ك"]
[71,622200097116,"9 أشهر","ويفر فرحه 5 كيلو","كرتونة",null,null,null,null,null,null,null,null,null,null,null,36,null,null,null,null,36,"شيكولاته بوتيك بندق 4 ك",0,"","","","","","","","","","","","","","","",0,"شيكولاته بوتيك بندق 4 ك"]
[72,6222000912372,"9 أشهر","ويفر ايليت مربع بايتس 3 ك بني","كرتونة",null,null,null,null,null,null,null,null,null,null,null,null,null,null,null,null,0,"شيكوهند سايب 10 كجم",0,"","","","","","","","","","","","","","","",0,"شيكوهند سايب 10 كجم"]
[73,6222000912488,"9 أشهر","بسكوت اكشن سادة شاي 6 ع * 12 ق","كرتونة",null,null,null,null,null,null,null,null,null,null,null,null,null,null,null,null,0,"سوفت شيكوهند 5 ك",40,"","","","","","","","","","","","","",40,"",40,"سوفت شيكوهند 5 ك"]
[74,6222000914383,"9 أشهر","بسكوت اكشن سادة شاي 6 ع * 12 ق ( نباتى )","كرتونة",null,null,null,null,null,null,null,null,null,null,null,null,null,null,null,null,0,"شيكوهند سوفت 12 كيس * 28 ق",0,"","","","","","","","","","","","","","","",0,"شيكوهند سوفت 12 كيس * 28 ق"]
[75,6222000916165,"9 أشهر","ويفر اكشن مغطس بنى 12ع * 12 ق ( 5 جنية )","كرتونة",null,null,null,null,null,null,null,null,null,null,28,null,null,null,null,null,28,"شيكوهند سوفت 12 كيس * 60 ق",0,"","","","","","","","","","","","","","","",0,"شيكوهند سوفت 12 كيس * 60 ق"]
[76,6222000916172,"9 أشهر","ويفر اكشن مغطس أبيض 12ع * 12 ق ( 5 جنية )","كرتونة",null,null,null,null,null,null,null,null,null,null,null,null,null,null,null,null,0,"شيكوهند سوفت 12 ع * 100 ق",0,"","","","","","","","","","","","","","","",0,"شيكوهند سوفت 12 ع * 100 ق"]
[77,2810,"9 أشهر","ويفر اكشن مغطس أبيض 8ع * 12 ق ( 5 جنية )","كرتونة",null,null,null,null,null,null,null,null,null,null,null,null,null,null,null,null,0,"بار شيكوهند 3 ك",50,"","","","","","","","","","","","","","",50,50,"بار شيكوهند 3 ك"]
[78,6222000912365,"9 أشهر","بايتس  مربع 6ع * 50ق  بنى","كرتونة",null,null,null,null,null,null,null,null,null,null,29,null,null,null,null,null,29,"ويفر ايليت  مغطس بنى 12 *12",0,"","","","","","","","","","","","","","","",0,"ويفر ايليت مغطس بنى 12 *12"]
[79,6222000902083,"9 أشهر","بايتس مربع 6 ع * 50 ق ابيض ","كرتونة",null,null,null,null,null,null,null,null,null,null,null,null,null,null,null,null,0,"ويفر ايليت مغطس ابيض  12 * 12",0,"","","","","","","","","","","","","","","",0,"ويفر ايليت مغطس ابيض 12 * 12"]
[80,6222000913904,"9 أشهر","بايتس مربع 6 ع * 50 ق فراولة ","كرتونة",null,null,null,null,null,null,null,null,null,null,null,null,null,null,null,null,0," ويفر ايليت مغطس فراولة 12*12",0,"","","","","","","","","","","","","","","",0,"ويفر ايليت مغطس فراولة 12*12"]
[81,"6222000916738","9 أشهر","ويفر بوتيك مربع 9 كيس * 500 جم","كرتونة",null,null,null,null,null,null,null,null,null,null,null,null,null,null,null,null,0,"ايليت ماكس سادة ش 12 باكو 6 قطع",263,"","","","","","","","","","","","",263,"","",263,"ايليت ماكس سادة ش 12 باكو 6 قطع"]
[82,"002797","4 أشهر","كورن عائلي 15 كيس","كرتونة",null,null,null,null,null,null,null,null,null,null,null,null,null,211,null,null,{"$f":"SUM(G85:U85)","v":211},"ايليت  ماكس سادة فانيليا 12 باكو * 6 قطع",0,"","","","","","","","","","","","","","","",0,"ايليت ماكس سادة فانيليا 12 باكو * 6 قطع"]
[83,"002796","6 أشهر","فاير فنجرز 15 كيس","كرتونة",null,null,null,null,null,null,null,null,null,null,null,null,null,254,null,null,254,"ويفر مربع  3 كيلو ايليت  ابيض",0,"","","","","","","","","","","","","","","",0,"ويفر مربع 3 كيلو ايليت ابيض"]
[84,"001766","6 أشهر","اسبيشيال أطعم  15 كيس","كرتونة",null,null,null,null,null,null,null,null,null,null,null,213,null,null,null,null,213,"ويفر مربع  3 كيلو ايليت  شيكولاته",0,{"$f":"IFERROR(IF(OR(INDEX($G$4:$U$94, MATCH(TRIM(CLEAN($W87)), $D$4:$D$94, 0), MATCH(Y$3, $G$3:$U$3, 0))=0, INDEX($G$4:$U$94, MATCH(TRIM(CLEAN($W87)), $D$4:$D$94, 0), MATCH(Y$3, $G$3:$U$3, 0))=\"\"), \"\", INDEX($G$4:$U$94, MATCH(TRIM(CLEAN($W87)), $D$4:$D$94, 0), MATCH(Y$3, $G$3:$U$3, 0))), \"\")","v":""},"","","","","","","","","","","","","","",0,"ويفر مربع 3 كيلو ايليت شيكولاته"]
[85,"EG-670026743-3002","6 أشهر","شيل أوت شيبس 15 كيس سعر الكيس 10 جنية","كرتونة",null,null,null,null,null,null,null,null,null,null,null,2,null,187,null,null,189,"ويفر مربع  3 كيلو ايليت  فراوله",0,"","","","","","","","","","","","","","","",0,"ويفر مربع 3 كيلو ايليت فراوله"]
[86,"6224001574221","سنة","زى كولا مشروب غازى 275 حلى","كرتونة",null,null,null,null,null,null,null,null,null,null,254,null,null,700,null,null,954,"ويفر مربع 3 كيلو ايليت جوز هند",0,"","","","","","","","","","","","","","","",0,"ويفر مربع 3 كيلو ايليت جوز هند"]
[87,"2798","9 أشهر","اهلا بالعيد 8 كيس * 660 جم","كرتونة",null,null,null,null,null,null,null,null,null,null,null,null,null,null,null,null,0,"ويفر فرحه 5 كيلو",36,"","","","","","","","","","",36,"","","","",36,"ويفر فرحه 5 كيلو"]
[88,"00695","سنة","قهوه20كيس*150جرام","كرتونة",null,null,null,null,null,null,null,null,null,null,null,null,null,null,null,null,0,"ويفر ايليت مربع بايتس 3 ك بني",0,"","","","","","","","","","","","","","","",0,"ويفر ايليت مربع بايتس 3 ك بني"]
[89,"6222000912518","سنتان","نعناع 12 ع * 240 ق","كرتونة",null,null,null,null,null,null,null,null,null,null,null,null,null,null,null,null,0,"بسكوت اكشن سادة شاي 6 ع * 12 ق",0,"","","","","","","","","","","","","","","",0,"بسكوت اكشن سادة شاي 6 ع * 12 ق"]
[90,"002827",null,"سولا فواكة فلوباك 10 ك","كرتونة",null,null,null,null,null,null,null,null,null,null,null,null,null,null,55,null,55,"بسكوت اكشن سادة شاي 6 ع * 12 ق ( نباتى )",0,"","","","","","","","","","","","","","","",0,"بسكوت اكشن سادة شاي 6 ع * 12 ق ( نباتى )"]
[91,null,null,null,null,null,null,null,null,null,null,null,null,null,null,null,null,null,null,null,null,0,"ويفر اكشن مغطس بنى 12ع * 12 ق ( 5 جنية )",28,"","","","","","","","","",28,"","","","","",28,"ويفر اكشن مغطس بنى 12ع * 12 ق ( 5 جنية )"]
[92,null,null,null,null,null,null,null,null,null,null,null,null,null,null,null,null,null,null,null,null,0,"ويفر اكشن مغطس أبيض 12ع * 12 ق ( 5 جنية )",0,"","","","","","","","","","","","","","","",0,"ويفر اكشن مغطس أبيض 12ع * 12 ق ( 5 جنية )"]
[93,null,null,null,null,null,null,null,null,null,null,null,null,null,null,null,null,null,null,null,null,0,"ويفر اكشن مغطس أبيض 8ع * 12 ق ( 5 جنية )",0,"","","","","","","","","","","","","","","",0,"ويفر اكشن مغطس أبيض 8ع * 12 ق ( 5 جنية )"]
[94,null,null,null,null,null,null,null,null,null,null,null,null,null,null,null,null,null,null,null,null,0,"بايتس  مربع 6ع * 50ق  بنى",0,"","","","","","","","","","","","","","","",0,"بايتس مربع 6ع * 50ق بنى"]
[95,null,null,null,null,null,null,null,null,null,null,null,null,null,null,null,null,null,null,null,null,0,"بايتس مربع 6 ع * 50 ق ابيض ",0,"","","","","","","","","","","","","","","",0,"بايتس مربع 6 ع * 50 ق ابيض"]
[96,null,null,null,null,null,null,null,null,null,null,null,null,null,null,null,null,null,null,null,null,0,"ويفر  4 علبه * 50 قطعه ابيض بايتس",0,"","","","","","","","","","","","","","","",0,"ويفر 4 علبه * 50 قطعه ابيض بايتس"]
[97,null,null,null,null,null,null,null,null,null,null,null,null,null,null,null,null,null,null,null,null,0,"ويفر  5 علبه * 50 قطعه ابيض بايتس",0,"","","","","","","","","","","","","","","",0,"ويفر 5 علبه * 50 قطعه ابيض بايتس"]
[98,null,null,null,null,null,null,null,null,null,null,null,null,null,null,null,null,null,null,null,null,0,"ويفر  7 علبه * 50 قطعه ابيض بايتس",0,"","","","","","","","","","","","","","","",0,"ويفر 7 علبه * 50 قطعه ابيض بايتس"]
[99,null,null,null,null,null,null,null,null,null,null,null,null,null,null,null,null,null,null,null,null,0,"بايتس مربع 6 ع * 50 ق فراولة ",0,"","","","","","","","","","","","","","","",0,"بايتس مربع 6 ع * 50 ق فراولة"]
[100,null,null,null,null,null,null,null,null,null,null,null,null,null,null,null,null,null,null,null,null,0,"ويفر  4 علبه * 50 قطعه فراولة بايتس",0,"","","","","","","","","","","","","","","",0,"ويفر 4 علبه * 50 قطعه فراولة بايتس"]
[101,null,null,null,null,null,null,null,null,null,null,null,null,null,null,null,null,null,null,null,null,0,"ويفر بوتيك مربع 9 كيس * 500 جم",0,{"$f":"IFERROR(IF(OR(INDEX($G$4:$U$94, MATCH(TRIM(CLEAN($W104)), $D$4:$D$94, 0), MATCH(Y$3, $G$3:$U$3, 0))=0, INDEX($G$4:$U$94, MATCH(TRIM(CLEAN($W104)), $D$4:$D$94, 0), MATCH(Y$3, $G$3:$U$3, 0))=\"\"), \"\", INDEX($G$4:$U$94, MATCH(TRIM(CLEAN($W104)), $D$4:$D$94, 0), MATCH(Y$3, $G$3:$U$3, 0))), \"\")","v":""},"","","","","","","","","","","","","","",0,"ويفر بوتيك مربع 9 كيس * 500 جم"]
[102,null,null,null,null,null,null,null,null,null,null,null,null,null,null,null,null,null,null,null,null,0,"ايليت عرض خاص ",0,"","","","","","","","","","","","","","","",0,"ايليت عرض خاص"]
[103,null,null,null,null,null,null,null,null,null,null,null,null,null,null,null,null,null,null,null,null,0,"اهلا بالعيد 8 كيس * 660 جم",0,"","","","","","","","","","","","","","","",0,"اهلا بالعيد 8 كيس * 660 جم"]
[104,null,null,null,null,null,null,null,null,null,null,null,null,null,null,null,null,null,null,null,null,0,"كورن عائلي 15 كيس",211,"","","","","","","","","","","","",211,"","",211,"كورن عائلي 15 كيس"]
[105,null,null,null,null,null,null,null,null,null,null,null,null,null,null,null,null,null,null,null,null,0,"فاير فنجرز 15 كيس",254,"","","","","","","","","","","","",254,"","",254,"فاير فنجرز 15 كيس"]
[106,null,null,null,null,null,null,null,null,null,null,null,null,null,null,null,null,null,null,null,null,0,"اسبيشيال أطعم  15 كيس",0,"","","","","","","","","","","","","","","",0,"اسبيشيال أطعم 15 كيس"]
[107,null,null,null,null,null,null,null,null,null,null,null,null,null,null,null,null,null,null,null,null,0,"شيل أوت شيبس 15 كيس سعر الكيس 10 جنية",189,"","","","","","","","","","",2,"",187,"","",189,"شيل أوت شيبس 15 كيس سعر الكيس 10 جنية"]
[null,null,null,null,null,null,null,null,null,null,null,null,null,null,null,null,null,null,null,null,null,0,"زى كولا مشروب غازى 275 حلى",954,"","","","","","","","","",254,"","",700,"","",954,"زى كولا مشروب غازى 275 حلى"]
[108,null,null,null,null,null,null,null,null,null,null,null,null,null,null,null,null,null,null,null,null,0,"زبدة 12 علبة * 240 ق",0,"","","","","","","","","","","","","","","",0,"زبدة 12 علبة * 240 ق"]
["الاجمالى",null,null,null,null,{"$f":"SUM(F4:F112)","v":0},0,0,0,0,0,0,0,59,6,421,416,85,2723.5,1012,{"$f":"SUM(U4:U112)","v":405},{"$f":"SUM(V4:V111)","v":5127.5},null,{"$f":"SUM(X4:X112)","v":4091.5},{"$f":"SUM(Y4:Y112)","v":0},{"$f":"SUM(Z4:Z112)","v":0},0,0,0,0,0,59,6,392,60,85,2322.5,862,305,{"$f":"SUM(AN4:AN112)","v":4091.5}]
[]
[null,null,null,null,null,null,null,null,null,null,null,null,null,null,null,null,null,null,null,null,null,null,null,null,null,null,null,null,null,null,null,null,null,{"$f":"P113-AH113","v":29},{"$f":"Q113-AI113","v":356},null,{"$f":"S113-AK113","v":401},{"$f":"T113-AL113","v":150}]
[]
[null,null,null,null,null,null,null,null,null,null,null,null,null,null,null,null,null,null,null,null,null,{"$f":"V113-AN113","v":1036}]

{"sheet":"الرصيد 3 (7)","index":3,"n_rows":117,"n_cols":41,"rows_kept":117,"cut":false,"hidden":false,"merged":[[1,22,1,38],[1,39,2,39],[112,0,112,4],[0,0,0,21],[0,22,0,38],[1,0,2,0],[1,1,2,1],[1,2,2,2],[1,3,2,3],[1,4,2,4],[1,5,2,5],[1,11,1,19],[1,21,2,21]]}
["رصيد توكيل (   توكيل نجع حمادى    ) عن يوم (   الخميس 9/13  )",null,null,null,null,null,null,null,null,null,null,null,null,null,null,null,null,null,null,null,null,null,"شيت به معادلات عادية "]
["م","الكود","مدة \nالصلاحية","الصنف","الوحدة","الرصيد\n الدفترى\nبالكرتونة\n ",null,null,null,null,null,null,null,null,null,null,null,null,null,null,null,"الرصيد\n الفعلى\nبالكرتونة\n","تنسيق الارقام مع اسم الصنف والتاريخ المقابل لها",null,null,null,null,null,null,null,null,null,null,null,null,null,null,null,null,"الرصيد\n الفعلى\nبالكرتونة\n"]
[null,null,null,null,null,null,"2024-07-01","2024-08-01","2024-09-01","2024-10-01","2024-11-01","2024-12-01","2025-01-01","2025-02-01","2025-03-01","2025-04-01","2025-05-01","2025-06-01","2025-07-01","2025-08-01","2025-09-01",null,"اسم الصنف","الرصيد","2024-07-01","2024-08-01","2024-09-01","2024-10-01","2024-11-01","2024-12-01","2025-01-01","2025-02-01","2025-03-01","2025-04-01","2025-05-01","2025-06-01","2025-07-01","2025-08-01","2025-09-01",null,{"$f":"IFERROR(IF(INDEX($G$4:$U$94,MATCH(SUBSTITUTE(TRIM($W4),CHAR(160),\" \"),SUBSTITUTE(TRIM($D$4:$D$94),CHAR(160),\" \"),0),MATCH(Y$3,$G$3:$U$3,0))=0,\"\",INDEX($G$4:$U$94,MATCH(SUBSTITUTE(TRIM($W4),CHAR(160),\" \"),SUBSTITUTE(TRIM($D$4:$D$94),CHAR(160),\" \"),0),MATCH(Y$3,$G$3:$U$3,0))),\"\")","v":""}]
[1,6222000901529,"سنتان","سوبر فينا 10 كيلو","كرتونة",null,null,null,null,null,null,null,null,null,null,null,null,null,52,50,100,{"$f":"SUM(G4:U4)","v":202},"سوبر فينا 10 كيلو",{"$f":"AN4","v":202},{"$f":"IFERROR(IF(OR(INDEX($G$4:$U$94, MATCH(TRIM(CLEAN($W4)), $D$4:$D$94, 0), MATCH(Y$3, $G$3:$U$3, 0))=0, INDEX($G$4:$U$94, MATCH(TRIM(CLEAN($W4)), $D$4:$D$94, 0), MATCH(Y$3, $G$3:$U$3, 0))=\"\"), \"\", INDEX($G$4:$U$94, MATCH(TRIM(CLEAN($W4)), $D$4:$D$94, 0), MATCH(Y$3, $G$3:$U$3, 0))), \"\")","v":""},{"$f":"IFERROR(IF(OR(INDEX($G$4:$U$94, MATCH(TRIM(CLEAN($W4)), $D$4:$D$94, 0), MATCH(Z$3, $G$3:$U$3, 0))=0, INDEX($G$4:$U$94, MATCH(TRIM(CLEAN($W4)), $D$4:$D$94, 0), MATCH(Z$3, $G$3:$U$3, 0))=\"\"), \"\", INDEX($G$4:$U$94, MATCH(TRIM(CLEAN($W4)), $D$4:$D$94, 0), MATCH(Z$3, $G$3:$U$3, 0))), \"\")","v":""},"","","","","","","","","","",52,50,100,{"$f":"SUM(Y4:AM4)","v":202},{"$f":"TRIM(CLEAN(SUBSTITUTE(SUBSTITUTE(SUBSTITUTE(W4,CHAR(10),\"\"),CHAR(13),\"\"),CHAR(9),\"\")))","v":"سوبر فينا 10 كيلو"}]
[2,6222000901536,"سنتان","سوبر فينا 10 كيلو نعناع","كرتونة",null,null,null,null,null,null,null,null,null,null,null,null,null,24,null,155,{"$f":"SUM(G5:U5)","v":179},"سولا فواكة فلوباك 10 ك",{"$f":"AN5","v":55},{"$f":"IFERROR(IF(OR(INDEX($G$4:$U$94, MATCH(TRIM(CLEAN($W5)), $D$4:$D$94, 0), MATCH(Y$3, $G$3:$U$3, 0))=0, INDEX($G$4:$U$94, MATCH(TRIM(CLEAN($W5)), $D$4:$D$94, 0), MATCH(Y$3, $G$3:$U$3, 0))=\"\"), \"\", INDEX($G$4:$U$94, MATCH(TRIM(CLEAN($W5)), $D$4:$D$94, 0), MATCH(Y$3, $G$3:$U$3, 0))), \"\")","v":""},"","","","","","","","","","","","",55,"",{"$f":"SUM(Y5:AM5)","v":55},{"$f":"TRIM(CLEAN(SUBSTITUTE(SUBSTITUTE(SUBSTITUTE(W5,CHAR(10),\"\"),CHAR(13),\"\"),CHAR(9),\"\")))","v":"سولا فواكة فلوباك 10 ك"}]
[3,6222000911733,"سنتان","نعناع 12كيس 50 ق 4جم","كرتونة",null,null,null,null,null,null,null,null,null,null,null,null,null,null,3,null,3,"سولا فواكة 5 ك",0,"","","","","","","","","","","","","","","",0,"سولا فواكة 5 ك"]
[4,6222000911764,"سنتان","سولا فواكه 12 كيس * 50 ق","كرتونة",null,null,null,null,null,null,null,null,null,null,null,null,null,null,null,null,0,"سولا فواكه 30 كيس * 28 ق",0,"","","","","","","","","","","","","","","",0,"سولا فواكه 30 كيس * 28 ق"]
[5,"6222000917773","سنتان","سولا فواكه 30 كيس * 28 ق","كرتونة",null,null,null,null,null,null,null,null,null,null,null,null,null,null,null,null,0,"سولا فواكه 12 كيس * 50 ق",0,"","","","","","","","","","","","","","","",0,"سولا فواكه 12 كيس * 50 ق"]
[6,"6222000917780","سنتان","سولا فواكه 12 كيس * 100 ق","كرتونة",null,null,null,null,null,null,null,null,null,null,null,null,null,null,104,null,104,"سولا فواكه 12 كيس * 100 ق",104,"","","","","","","","","","","","","",104,"",104,"سولا فواكه 12 كيس * 100 ق"]
[7,6222000916295,"سنتان","سولا فواكة 6 كيس * 800 جم","كرتونة",null,null,null,null,null,null,null,null,null,null,null,null,null,null,null,null,0,"سولا ف 12 ع * 200 ق",0,"","","","","","","","","","","","","","","",0,"سولا ف 12 ع * 200 ق"]
[8,6222000912525,"سنتان","سولا ف 12 ع * 200 ق","كرتونة",null,null,null,null,null,null,null,null,null,null,null,null,null,null,null,null,0,"سولا ف 12 ع * 240 ق",0,"","","","","","","","","","","","","","","",0,"سولا ف 12 ع * 240 ق"]
[9,"6222000912518","سنتان","سولا نعناع 12 ع * 200 ق","كرتونة",null,null,null,null,null,null,null,null,null,null,null,22,null,null,null,null,22,"سولا فواكة 6 كيس * 800 جم",0,"","","","","","","","","","","","","","","",0,"سولا فواكة 6 كيس * 800 جم"]
[10,6222000912525,"سنتان","سولا ف 12 ع * 240 ق","كرتونة",null,null,null,null,null,null,null,null,null,null,null,null,null,null,null,null,0,"سوبر فينا 10 كيلو نعناع",179,"","","","","","","","","","","","",24,"",155,179,"سوبر فينا 10 كيلو نعناع"]
[11,"6222000908566","سنتان","سولا فواكة 5 ك","كرتونة",null,null,null,null,null,null,null,null,null,null,null,null,null,null,null,null,0,"سولا نعناع فلوباك 10 ك",0,"","","","","","","","","","","","","","","",0,"سولا نعناع فلوباك 10 ك"]
[12,"6222000908573","سنتان","سولا نعناع 5 ك","كرتونة",null,null,null,null,null,null,null,null,59,null,null,null,null,null,null,null,59,"سولا نعناع 5 ك",59,"","","","","","","",59,"","","","","","","",59,"سولا نعناع 5 ك"]
[13,"00743","سنة","قهوة 12 ع * 200 ق","كرتونة",null,null,null,null,null,null,null,null,null,null,null,null,null,null,null,null,0,"سولا نعناع 30 كيس * 28 ق",0,"","","","","","","","","","","","","","","",0,"سولا نعناع 30 كيس * 28 ق"]
[14,"6222000917452","سنة","قهوة 12 ع * 240 ق","كرتونة",null,null,null,null,null,null,null,null,null,null,null,null,null,null,27,null,27,"نعناع 12كيس 50 ق 4جم",3,"","","","","","","","","","","","","",3,"",3,"نعناع 12كيس 50 ق 4جم"]
[15,6222000901758,"سنة","سولا قهوه 10 كيلو","كرتونة",null,null,null,null,null,null,null,null,null,null,null,null,null,15.5,50,null,65.5,"سولا نعناع 12 كيس * 100 ق",0,"","","","","","","","","","","","","","","",0,"سولا نعناع 12 كيس * 100 ق"]
[16,6222000912020,"سنة","قهوة 5 ك","كرتونة",null,null,null,null,null,null,null,null,null,null,null,null,null,null,null,null,0,"سولا نعناع 12 ع * 200 ق",22,"","","","","","","","","","",22,"","","","",22,"سولا نعناع 12 ع * 200 ق"]
[17,6222000909815,"سنة","قهوة 12 كيس * 80 ق / 90 ق","كرتونة",null,null,null,null,null,null,null,null,null,null,null,null,85,null,65,null,150,"نعناع 12 ع * 240 ق",0,"","","","","","","","","","","","","","","",0,"نعناع 12 ع * 240 ق"]
[18,6222000908610,"سنة","قهوة 30 كيس * 18 ق / 25 ق","كرتونة",null,null,null,null,null,null,null,null,null,null,null,null,null,null,null,null,0,"سولا قهوه 10 كيلو",65.5,"","","","","","","","","","","","",15.5,50,"",65.5,"سولا قهوه 10 كيلو"]
[19,6222000909891,"سنة","قهوة 30 كيس * 12قطعه","كرتونة",null,null,null,null,null,null,null,null,null,null,null,null,null,null,null,null,0,"قهوة 5 ك",0,"","","","","","","","","","","","","","","",0,"قهوة 5 ك"]
[20,"00744","سنة","زبدة 12 ع * 200 ق","كرتونة",null,null,null,null,null,null,null,null,null,null,null,null,null,64,null,null,64,"قهوة 30 كيس * 12قطعه",0,"","","","","","","","","","","","","","","",0,"قهوة 30 كيس * 12قطعه"]
[21,6222000901642,"سنة","سولا زبده 10 كيلو","كرتونة",null,null,null,null,null,null,null,null,null,null,null,null,null,null,18,null,18,"قهوة 30 كيس * 15قطعه",0,"","","","","","","","","","","","","","","",0,"قهوة 30 كيس * 15قطعه"]
[22,6222000912037,"سنة","زبدة 5 ك","كرتونة",null,null,null,null,null,null,null,null,null,null,null,null,null,null,null,null,0,"قهوة 30 كيس * 18 ق / 25 ق",0,"","","","","","","","","","","","","","","",0,"قهوة 30 كيس * 18 ق / 25 ق"]
[23,6222000917124,"سنة","زبدة بالشيكولاته 12 علبة * 240 ق","كرتونة",null,null,null,null,null,null,null,null,null,null,null,null,null,null,64,null,64,"قهوة 12 كيس * 55 ق",0,"","","","","","","","","","","","","","","",0,"قهوة 12 كيس * 55 ق"]
[24,6222000918732,"سنة","زبدة بالشيكولاته 10 ك","كرتونة",null,null,null,null,null,null,null,null,null,null,null,null,null,null,34,null,34,"قهوة 12 كيس * 80 ق / 90 ق",150,"","","","","","","","","","","",85,"",65,"",150,"قهوة 12 كيس * 80 ق / 90 ق"]
[25,6222000909808,"سنة","زبدة 12 كيس * 80 ق / 90 ق","كرتونة",null,null,null,null,null,null,null,null,null,null,null,null,null,null,null,null,0,"قهوة 12 كيس * 120 ق",0,"","","","","","","","","","","","","","","",0,"قهوة 12 كيس * 120 ق"]
[26,6222000907583,"سنة","زبدة 30 كيس * 18 ق / 25 ق","كرتونة",null,null,null,null,null,null,null,null,null,null,110,null,null,null,null,null,110,"قهوة 12 ع * 200 ق",0,"","","","","","","","","","","","","","","",0,"قهوة 12 ع * 200 ق"]
[27,6222000909884,"سنة","زبدة 30 كيس * 12قطعه","كرتونة",null,null,null,null,null,null,null,null,null,null,null,null,null,61,48,null,109,"قهوة 12 ع * 240 ق",27,"","","","","","","","","","","","","",27,"",27,"قهوة 12 ع * 240 ق"]
[28,6222000909884,"سنة","زبدة 30 كيس * 15 قطعه","كرتونة",null,null,null,null,null,null,null,null,null,null,null,null,null,null,null,null,0,"قهوه20كيس*150جرام",0,"","","","","","","","","","","","","","","",0,"قهوه20كيس*150جرام"]
[29,6222000905688,"سنة","زبدة 12 كيس * 55 قطعه","كرتونة",null,null,null,null,null,null,null,null,null,null,null,null,null,null,null,null,0,"سولا زبده 10 كيلو",18,"","","","","","","","","","","","","",18,"",18,"سولا زبده 10 كيلو"]
[30,171,"سنة","زبدة 12 كيس * 120 ق","كرتونة",null,null,null,null,null,null,null,null,null,null,null,null,null,41,null,45,86,"زبدة 5 ك",0,"","","","","","","","","","","","","","","",0,"زبدة 5 ك"]
[31,6222000910064,"سنة","زبدة 10 شنطة * 800 جم","كرتونة",null,null,null,null,null,null,null,null,null,null,null,null,null,null,null,null,0,"زبدة 30 كيس * 12قطعه",109,"","","","","","","","","","","","",61,48,"",109,"زبدة 30 كيس * 12قطعه"]
[32,6222000912501,"9 أشهر","عسلية 12 ع * 200 ق","كرتونة",null,null,null,null,null,null,null,null,null,null,null,null,null,null,null,null,0,"زبدة 30 كيس * 15 قطعه",0,"","","","","","","","","","","","","","","",0,"زبدة 30 كيس * 15 قطعه"]
[33,6222000912457,"9 أشهر","عسلية  5 ك","كرتونة",null,null,null,null,null,null,null,null,null,null,null,null,null,null,null,null,0,"زبدة 30 كيس * 18 ق / 25 ق",110,{"$f":"IFERROR(IF(OR(INDEX($G$4:$U$94, MATCH(TRIM(CLEAN($W36)), $D$4:$D$94, 0), MATCH(Y$3, $G$3:$U$3, 0))=0, INDEX($G$4:$U$94, MATCH(TRIM(CLEAN($W36)), $D$4:$D$94, 0), MATCH(Y$3, $G$3:$U$3, 0))=\"\"), \"\", INDEX($G$4:$U$94, MATCH(TRIM(CLEAN($W36)), $D$4:$D$94, 0), MATCH(Y$3, $G$3:$U$3, 0))), \"\")","v":""},"","","","","","","","",110,"","","","","",110,"زبدة 30 كيس * 18 ق / 25 ق"]
[34,6222000901611,"سنة","اكلير سايب 10 كيلو","كرتونة",null,null,null,null,null,null,null,null,null,null,null,null,null,43,55,null,98,"زبدة 12 كيس * 55 قطعه",0,"","","","","","","","","","","","","","","",0,"زبدة 12 كيس * 55 قطعه"]
[35,6222000909907,"سنة","اكلير  30 كيس * 9 ق / 10 ق","كرتونة",null,null,null,null,null,null,null,null,null,null,null,null,null,134,null,null,134,"زبدة 12 كيس * 80 ق / 90 ق",0,"","","","","","","","","","","","","","","",0,"زبدة 12 كيس * 80 ق / 90 ق"]
[36,6222000909907,"سنة","اكلير 30 كيس * 12 قطعه","كرتونة",null,null,null,null,null,null,null,null,null,null,null,null,null,null,null,null,0,"زبدة 12 كيس * 120 ق",86,"","","","","","","","","","","","",41,"",45,86,"زبدة 12 كيس * 120 ق"]
[37,6222000911498,"سنة","اكلير سولا 5 كيلو ","كرتونة",null,null,null,null,null,null,null,null,null,null,null,null,null,null,null,null,0,"زبدة 12 ع * 200 ق",64,"","","","","","","","","","","","",64,"","",64,"زبدة 12 ع * 200 ق"]
[38,6222000912778,"سنة","اكلير 12كيس * 65 ق / 70 ق","كرتونة",null,null,null,null,null,null,null,null,null,null,null,null,null,null,null,null,0,"زبدة 10 شنطة * 800 جم",0,"","","","","","","","","","","","","","","",0,"زبدة 10 شنطة * 800 جم"]
[39,6222000912778,"سنة","اكلير 12 كيس * 100 قطعة","كرتونة",null,null,null,null,null,null,null,null,null,null,null,null,null,137,null,null,137,"زبدة بالشيكولاته 10 ك",34,"","","","","","","","","","","","","",34,"",34,"زبدة بالشيكولاته 10 ك"]
[40,6222000912822,"سنة","اكلير 30 كيس * 15 ق / 20 ق","كرتونة",null,null,null,null,null,null,null,null,null,null,null,null,null,null,null,null,0,"زبدة بالشيكولاته 30 كيس * 15 قطعه",0,"","","","","","","","","","","","","","","",0,"زبدة بالشيكولاته 30 كيس * 15 قطعه"]
[41,6222000905701,"سنة","اكلير 12كيس 45 ق","كرتونة",null,null,null,null,null,null,null,null,null,null,null,null,null,220,null,null,220,"زبدة بالشيكولاته 12 كيس * 55 قطعه",0,"","","","","","","","","","","","","","","",0,"زبدة بالشيكولاته 12 كيس * 55 قطعه"]
[42,6222000912532,"سنة","اكلير 12 علبة * 160 ق","كرتونة",null,null,null,null,null,null,null,null,null,null,null,null,null,null,null,null,0,"زبدة بالشيكولاته 12 كيس * 120 ق",0,"","","","","","","","","","","","","","","",0,"زبدة بالشيكولاته 12 كيس * 120 ق"]
[43,6222000912532,"سنة","اكلير 12 علبة 200 ق","كرتونة",null,null,null,null,null,null,null,null,null,null,null,null,null,35,null,null,35,"زبدة بالشيكولاته 12 علبة * 240 ق",64,"","","","","","","","","","","","","",64,"",64,"زبدة بالشيكولاته 12 علبة * 240 ق"]
[44,6222000901697,"سنة","طوفي 10 كجم","كرتونة",null,null,null,null,null,null,null,null,null,null,null,null,null,38,46,55,139,"عسلية  5 ك",0,"","","","","","","","","","","","","","","",0,"عسلية 5 ك"]
[45,6222000911481,"سنة","طوفي بردايس 5كيلو","كرتونة",null,null,null,null,null,null,null,null,null,null,null,null,null,null,null,null,0,"عسلية 12 ع * 200 ق",0,"","","","","","","","","","","","","","","",0,"عسلية 12 ع * 200 ق"]
[46,6222000908276,"سنة","طوفي 30 كيس * 25 قطعه","كرتونة",null,null,null,null,null,null,null,null,null,null,null,null,null,null,null,null,0,"اكلير سايب 10 كيلو",98,"","","","","","","","","","","","",43,55,"",98,"اكلير سايب 10 كيلو"]
[47,6222000908276,"سنة","طوفى 30 كيس * 28 ق","كرتونة",null,null,null,null,null,null,null,null,null,null,null,null,null,null,100,null,100,"اكلير  30 كيس * 9 ق / 10 ق",0,"","","","","","","","","","","","","","","",0,"اكلير 30 كيس * 9 ق / 10 ق"]
[48,6222000909921,"سنة","طوفي 30 كيس * 12قطعه","كرتونة",null,null,null,null,null,null,null,null,null,null,null,null,null,null,null,null,0,"اكلير 30 كيس * 12 قطعه",0,"","","","","","","","","","","","","","","",0,"اكلير 30 كيس * 12 قطعه"]
[49,6222000909839,"سنة","طوفي 12 كيس * 90 ق","كرتونة",null,null,null,null,null,null,null,null,null,null,null,null,null,null,11,null,11,"اكلير 30 كيس * 15 ق / 20 ق",0,"","","","","","","","","","","","","","","",0,"اكلير 30 كيس * 15 ق / 20 ق"]
[50,6222000905718,"سنة","طوفى 12كيس * 100 ق","كرتونة",null,null,null,null,null,null,null,null,null,null,null,null,null,null,97,null,97,"اكلير 12كيس 45 ق",220,{"$f":"IFERROR(IF(OR(INDEX($G$4:$U$94, MATCH(TRIM(CLEAN($W53)), $D$4:$D$94, 0), MATCH(Y$3, $G$3:$U$3, 0))=0, INDEX($G$4:$U$94, MATCH(TRIM(CLEAN($W53)), $D$4:$D$94, 0), MATCH(Y$3, $G$3:$U$3, 0))=\"\"), \"\", INDEX($G$4:$U$94, MATCH(TRIM(CLEAN($W53)), $D$4:$D$94, 0), MATCH(Y$3, $G$3:$U$3, 0))), \"\")","v":""},"","","","","","","","","","","",220,"","",220,"اكلير 12كيس 45 ق"]
[51,6222000908825,"سنة","طوفى 12 ع * 200 ق","كرتونة",null,null,null,null,null,null,null,null,null,null,null,null,null,null,null,null,0,"اكلير 12كيس * 65 ق / 70 ق",0,"","","","","","","","","","","","","","","",0,"اكلير 12كيس * 65 ق / 70 ق"]
[52,6222000912556,"سنة","طوفي 12 علبه * 240 ق","كرتونة",null,null,null,null,null,null,null,null,null,null,null,null,null,29,45,null,74,"اكلير 12 كيس * 100 قطعة",137,"","","","","","","","","","","","",137,"","",137,"اكلير 12 كيس * 100 قطعة"]
[53,6222000907637,"سنة","شيكولاته بوتيك 16 علبه * 50 قطعة","كرتونة",null,null,null,null,null,null,null,null,null,6,null,null,null,null,null,null,6,"اكلير 12 علبة * 160 ق",0,"","","","","","","","","","","","","","","",0,"اكلير 12 علبة * 160 ق"]
[54,6222000903295,"سنة","شيكولاته بوتيك 6 علبه * 1.25 كيلو","كرتونة",null,null,null,null,null,null,null,null,null,null,null,null,null,null,null,null,0,"اكلير 12 علبة 200 ق",35,"","","","","","","","","","","","",35,"","",35,"اكلير 12 علبة 200 ق"]
[55,6222000912006,"سنة","شيكولاته بوتيك حليب 4 ك","كرتونة",null,null,null,null,null,null,null,null,null,null,null,null,null,null,null,null,0,"طوفي 10 كجم",139,"","","","","","","","","","","","",38,46,55,139,"طوفي 10 كجم"]
[56,6222000911993,"سنة","شيكولاته بوتيك كراميل 4 ك","كرتونة",null,null,null,null,null,null,null,null,null,null,null,null,null,null,null,null,0,"طوفي 30 كيس * 12قطعه",0,"","","","","","","","","","","","","","","",0,"طوفي 30 كيس * 12قطعه"]
[57,6222000912013,"سنة","شيكولاته بوتيك بندق 4 ك","كرتونة",null,null,null,null,null,null,null,null,null,null,null,null,null,null,null,null,0,"طوفي 30 كيس * 25 قطعه",0,"","","","","","","","","","","","","","","",0,"طوفي 30 كيس * 25 قطعه"]
[58,6222000964197,"سنة","شيكوهند سايب 10 كجم","كرتونة",null,null,null,null,null,null,null,null,null,null,null,null,null,null,null,null,0,"طوفى 30 كيس * 28 ق",100,"","","","","","","","","","","","","",100,"",100,"طوفى 30 كيس * 28 ق"]
[59,6222000906630,"سنة","سوفت شيكوهند 5 ك","كرتونة",null,null,null,null,null,null,null,null,null,null,null,null,null,null,40,null,40,"طوفي 12 كيس * 90 ق",11,"","","","","","","","","","","","","",11,"",11,"طوفي 12 كيس * 90 ق"]
[60,6222000612549,"سنة","شيكوهند سوفت 12 ع * 100 ق","كرتونة",null,null,null,null,null,null,null,null,null,null,null,null,null,null,null,null,0,"طوفى 12كيس * 100 ق",97,"","","","","","","","","","","","","",97,"",97,"طوفى 12كيس * 100 ق"]
[61,6222000915243,"سنة","بار شيكوهند 3 ك","كرتونة",null,null,null,null,null,null,null,null,null,null,null,null,null,null,null,50,50,"طوفى 12 ع * 200 ق",0,"","","","","","","","","","","","","","","",0,"طوفى 12 ع * 200 ق"]
[62,6222000902519,"9 أشهر","ويفر ايليت  مغطس بنى 12 *12","كرتونة",null,null,null,null,null,null,null,null,null,null,null,null,null,null,null,null,0,"طوفي 12 علبه * 240 ق",74,"","","","","","","","","","","","",29,45,"",74,"طوفي 12 علبه * 240 ق"]
[63,6222000902557,"9 أشهر","ويفر ايليت مغطس ابيض  12 * 12","كرتونة",null,null,null,null,null,null,null,null,null,null,null,null,null,null,null,null,0,"طوفي شيكولاته 12 كيس * 25 ق",0,"","","","","","","","","","","","","","","",0,"طوفي شيكولاته 12 كيس * 25 ق"]
[64,6222000902564,"9 أشهر"," ويفر ايليت مغطس فراولة 12*12","كرتونة",null,null,null,null,null,null,null,null,null,null,null,null,null,null,null,null,0,"طوفي شيكولاته 12 علبة * 100 ق",0,"","","","","","","","","","","","","","","",0,"طوفي شيكولاته 12 علبة * 100 ق"]
[65,6222000910200,"9 أشهر","ايليت ماكس سادة ش 12 باكو 6 قطع","كرتونة",null,null,null,null,null,null,null,null,null,null,null,null,null,263,null,null,263,"طوفي زبدة 12 كيس * 25 ق",0,"","","","","","","","","","","","","","","",0,"طوفي زبدة 12 كيس * 25 ق"]
[66,6222000910514,"9 أشهر","ايليت  ماكس سادة فانيليا 12 باكو * 6 قطع","كرتونة",null,null,null,null,null,null,null,null,null,null,null,null,null,215,null,null,{"$f":"SUM(G69:U69)","v":215},"طوفي زبدة 12 علبة * 100 ق",{"$f":"AN69","v":0},"","","","","","","","","","","","","","","",{"$f":"SUM(Y69:AM69)","v":0},{"$f":"TRIM(CLEAN(SUBSTITUTE(SUBSTITUTE(SUBSTITUTE(W69,CHAR(10),\"\"),CHAR(13),\"\"),CHAR(9),\"\")))","v":"طوفي زبدة 12 علبة * 100 ق"}]
[67,6222000909976,"9 أشهر","ويفر مربع  3 كيلو ايليت  ابيض","كرتونة",null,null,null,null,null,null,null,null,null,null,null,74,null,null,50,null,124,"شيكولاته بوتيك 16 علبه * 50 قطعة",6,{"$f":"IFERROR(IF(OR(INDEX($G$4:$U$94, MATCH(TRIM(CLEAN($W70)), $D$4:$D$94, 0), MATCH(Y$3, $G$3:$U$3, 0))=0, INDEX($G$4:$U$94, MATCH(TRIM(CLEAN($W70)), $D$4:$D$94, 0), MATCH(Y$3, $G$3:$U$3, 0))=\"\"), \"\", INDEX($G$4:$U$94, MATCH(TRIM(CLEAN($W70)), $D$4:$D$94, 0), MATCH(Y$3, $G$3:$U$3, 0))), \"\")","v":""},"","","","","","","",6,"","","","","","",6,"شيكولاته بوتيك 16 علبه * 50 قطعة"]
[68,6222000909983,"9 أشهر","ويفر مربع  3 كيلو ايليت  شيكولاته","كرتونة",null,null,null,null,null,null,null,null,null,null,null,null,null,null,null,null,0,"شيكولاته بوتيك 6 علبه * 1.25 كيلو",0,"","","","","","","","","","","","","","","",0,"شيكولاته بوتيك 6 علبه * 1.25 كيلو"]
[69,6222000909969,"9 أشهر","ويفر مربع  3 كيلو ايليت  فراوله","كرتونة",null,null,null,null,null,null,null,null,null,null,null,69,null,null,50,null,119,"شيكولاته بوتيك حليب 4 ك",0,"","","","","","","","","","","","","","","",0,"شيكولاته بوتيك حليب 4 ك"]
[70,6888000909953,"9 أشهر","ويفر مربع 3 كيلو ايليت جوز هند","كرتونة",null,null,null,null,null,null,null,null,null,null,null,null,null,null,null,null,0,"شيكولاته بوتيك كراميل 4 ك",0,"","","","","","","","","","","","","","","",0,"شيكولاته بوتيك كراميل 4 ك"]
[71,622200097116,"9 أشهر","ويفر فرحه 5 كيلو","كرتونة",null,null,null,null,null,null,null,null,null,null,null,36,null,null,null,null,36,"شيكولاته بوتيك بندق 4 ك",0,"","","","","","","","","","","","","","","",0,"شيكولاته بوتيك بندق 4 ك"]
[72,6222000912372,"9 أشهر","ويفر ايليت مربع بايتس 3 ك بني","كرتونة",null,null,null,null,null,null,null,null,null,null,null,null,null,null,null,null,0,"شيكوهند سايب 10 كجم",0,"","","","","","","","","","","","","","","",0,"شيكوهند سايب 10 كجم"]
[73,6222000912488,"9 أشهر","بسكوت اكشن سادة شاي 6 ع * 12 ق","كرتونة",null,null,null,null,null,null,null,null,null,null,null,null,null,null,null,null,0,"سوفت شيكوهند 5 ك",40,"","","","","","","","","","","","","",40,"",40,"سوفت شيكوهند 5 ك"]
[74,6222000914383,"9 أشهر","بسكوت اكشن سادة شاي 6 ع * 12 ق ( نباتى )","كرتونة",null,null,null,null,null,null,null,null,null,null,null,null,null,null,null,null,0,"شيكوهند سوفت 12 كيس * 28 ق",0,"","","","","","","","","","","","","","","",0,"شيكوهند سوفت 12 كيس * 28 ق"]
[75,6222000916165,"9 أشهر","ويفر اكشن مغطس بنى 12ع * 12 ق ( 5 جنية )","كرتونة",null,null,null,null,null,null,null,null,null,null,28,null,null,null,null,null,28,"شيكوهند سوفت 12 كيس * 60 ق",0,"","","","","","","","","","","","","","","",0,"شيكوهند سوفت 12 كيس * 60 ق"]
[76,6222000916172,"9 أشهر","ويفر اكشن مغطس أبيض 12ع * 12 ق ( 5 جنية )","كرتونة",null,null,null,null,null,null,null,null,null,null,null,null,null,null,null,null,0,"شيكوهند سوفت 12 ع * 100 ق",0,"","","","","","","","","","","","","","","",0,"شيكوهند سوفت 12 ع * 100 ق"]
[77,2810,"9 أشهر","ويفر اكشن مغطس أبيض 8ع * 12 ق ( 5 جنية )","كرتونة",null,null,null,null,null,null,null,null,null,null,null,null,null,null,null,null,0,"بار شيكوهند 3 ك",50,"","","","","","","","","","","","","","",50,50,"بار شيكوهند 3 ك"]
[78,6222000912365,"9 أشهر","بايتس  مربع 6ع * 50ق  بنى","كرتونة",null,null,null,null,null,null,null,null,null,null,29,null,null,null,null,null,29,"ويفر ايليت  مغطس بنى 12 *12",0,"","","","","","","","","","","","","","","",0,"ويفر ايليت مغطس بنى 12 *12"]
[79,6222000902083,"9 أشهر","بايتس مربع 6 ع * 50 ق ابيض ","كرتونة",null,null,null,null,null,null,null,null,null,null,null,null,null,null,null,null,0,"ويفر ايليت مغطس ابيض  12 * 12",0,"","","","","","","","","","","","","","","",0,"ويفر ايليت مغطس ابيض 12 * 12"]
[80,6222000913904,"9 أشهر","بايتس مربع 6 ع * 50 ق فراولة ","كرتونة",null,null,null,null,null,null,null,null,null,null,null,null,null,null,null,null,0," ويفر ايليت مغطس فراولة 12*12",0,"","","","","","","","","","","","","","","",0,"ويفر ايليت مغطس فراولة 12*12"]
[81,"6222000916738","9 أشهر","ويفر بوتيك مربع 9 كيس * 500 جم","كرتونة",null,null,null,null,null,null,null,null,null,null,null,null,null,null,null,null,0,"ايليت ماكس سادة ش 12 باكو 6 قطع",263,"","","","","","","","","","","","",263,"","",263,"ايليت ماكس سادة ش 12 باكو 6 قطع"]
[82,"002797","4 أشهر","كورن عائلي 15 كيس","كرتونة",null,null,null,null,null,null,null,null,null,null,null,null,null,211,null,null,{"$f":"SUM(G85:U85)","v":211},"ايليت  ماكس سادة فانيليا 12 باكو * 6 قطع",0,"","","","","","","","","","","","","","","",0,"ايليت ماكس سادة فانيليا 12 باكو * 6 قطع"]
[83,"002796","6 أشهر","فاير فنجرز 15 كيس","كرتونة",null,null,null,null,null,null,null,null,null,null,null,null,null,254,null,null,254,"ويفر مربع  3 كيلو ايليت  ابيض",0,"","","","","","","","","","","","","","","",0,"ويفر مربع 3 كيلو ايليت ابيض"]
[84,"001766","6 أشهر","اسبيشيال أطعم  15 كيس","كرتونة",null,null,null,null,null,null,null,null,null,null,null,213,null,null,null,null,213,"ويفر مربع  3 كيلو ايليت  شيكولاته",0,{"$f":"IFERROR(IF(OR(INDEX($G$4:$U$94, MATCH(TRIM(CLEAN($W87)), $D$4:$D$94, 0), MATCH(Y$3, $G$3:$U$3, 0))=0, INDEX($G$4:$U$94, MATCH(TRIM(CLEAN($W87)), $D$4:$D$94, 0), MATCH(Y$3, $G$3:$U$3, 0))=\"\"), \"\", INDEX($G$4:$U$94, MATCH(TRIM(CLEAN($W87)), $D$4:$D$94, 0), MATCH(Y$3, $G$3:$U$3, 0))), \"\")","v":""},"","","","","","","","","","","","","","",0,"ويفر مربع 3 كيلو ايليت شيكولاته"]
[85,"EG-670026743-3002","6 أشهر","شيل أوت شيبس 15 كيس سعر الكيس 10 جنية","كرتونة",null,null,null,null,null,null,null,null,null,null,null,2,null,187,null,null,189,"ويفر مربع  3 كيلو ايليت  فراوله",0,"","","","","","","","","","","","","","","",0,"ويفر مربع 3 كيلو ايليت فراوله"]
[86,"6224001574221","سنة","زى كولا مشروب غازى 275 حلى","كرتونة",null,null,null,null,null,null,null,null,null,null,254,null,null,700,null,null,954,"ويفر مربع 3 كيلو ايليت جوز هند",0,"","","","","","","","","","","","","","","",0,"ويفر مربع 3 كيلو ايليت جوز هند"]
[87,"2798","9 أشهر","اهلا بالعيد 8 كيس * 660 جم","كرتونة",null,null,null,null,null,null,null,null,null,null,null,null,null,null,null,null,0,"ويفر فرحه 5 كيلو",36,"","","","","","","","","","",36,"","","","",36,"ويفر فرحه 5 كيلو"]
[88,"00695","سنة","قهوه20كيس*150جرام","كرتونة",null,null,null,null,null,null,null,null,null,null,null,null,null,null,null,null,0,"ويفر ايليت مربع بايتس 3 ك بني",0,"","","","","","","","","","","","","","","",0,"ويفر ايليت مربع بايتس 3 ك بني"]
[89,"6222000912518","سنتان","نعناع 12 ع * 240 ق","كرتونة",null,null,null,null,null,null,null,null,null,null,null,null,null,null,null,null,0,"بسكوت اكشن سادة شاي 6 ع * 12 ق",0,"","","","","","","","","","","","","","","",0,"بسكوت اكشن سادة شاي 6 ع * 12 ق"]
[90,"002827",null,"سولا فواكة فلوباك 10 ك","كرتونة",null,null,null,null,null,null,null,null,null,null,null,null,null,null,55,null,55,"بسكوت اكشن سادة شاي 6 ع * 12 ق ( نباتى )",0,"","","","","","","","","","","","","","","",0,"بسكوت اكشن سادة شاي 6 ع * 12 ق ( نباتى )"]
[91,null,null,null,null,null,null,null,null,null,null,null,null,null,null,null,null,null,null,null,null,0,"ويفر اكشن مغطس بنى 12ع * 12 ق ( 5 جنية )",28,"","","","","","","","","",28,"","","","","",28,"ويفر اكشن مغطس بنى 12ع * 12 ق ( 5 جنية )"]
[92,null,null,null,null,null,null,null,null,null,null,null,null,null,null,null,null,null,null,null,null,0,"ويفر اكشن مغطس أبيض 12ع * 12 ق ( 5 جنية )",0,"","","","","","","","","","","","","","","",0,"ويفر اكشن مغطس أبيض 12ع * 12 ق ( 5 جنية )"]
[93,null,null,null,null,null,null,null,null,null,null,null,null,null,null,null,null,null,null,null,null,0,"ويفر اكشن مغطس أبيض 8ع * 12 ق ( 5 جنية )",0,"","","","","","","","","","","","","","","",0,"ويفر اكشن مغطس أبيض 8ع * 12 ق ( 5 جنية )"]
[94,null,null,null,null,null,null,null,null,null,null,null,null,null,null,null,null,null,null,null,null,0,"بايتس  مربع 6ع * 50ق  بنى",0,"","","","","","","","","","","","","","","",0,"بايتس مربع 6ع * 50ق بنى"]
[95,null,null,null,null,null,null,null,null,null,null,null,null,null,null,null,null,null,null,null,null,0,"بايتس مربع 6 ع * 50 ق ابيض ",0,"","","","","","","","","","","","","","","",0,"بايتس مربع 6 ع * 50 ق ابيض"]
[96,null,null,null,null,null,null,null,null,null,null,null,null,null,null,null,null,null,null,null,null,0,"ويفر  4 علبه * 50 قطعه ابيض بايتس",0,"","","","","","","","","","","","","","","",0,"ويفر 4 علبه * 50 قطعه ابيض بايتس"]
[97,null,null,null,null,null,null,null,null,null,null,null,null,null,null,null,null,null,null,null,null,0,"ويفر  5 علبه * 50 قطعه ابيض بايتس",0,"","","","","","","","","","","","","","","",0,"ويفر 5 علبه * 50 قطعه ابيض بايتس"]
[98,null,null,null,null,null,null,null,null,null,null,null,null,null,null,null,null,null,null,null,null,0,"ويفر  7 علبه * 50 قطعه ابيض بايتس",0,"","","","","","","","","","","","","","","",0,"ويفر 7 علبه * 50 قطعه ابيض بايتس"]
[99,null,null,null,null,null,null,null,null,null,null,null,null,null,null,null,null,null,null,null,null,0,"بايتس مربع 6 ع * 50 ق فراولة ",0,"","","","","","","","","","","","","","","",0,"بايتس مربع 6 ع * 50 ق فراولة"]
[100,null,null,null,null,null,null,null,null,null,null,null,null,null,null,null,null,null,null,null,null,0,"ويفر  4 علبه * 50 قطعه فراولة بايتس",0,"","","","","","","","","","","","","","","",0,"ويفر 4 علبه * 50 قطعه فراولة بايتس"]
[101,null,null,null,null,null,null,null,null,null,null,null,null,null,null,null,null,null,null,null,null,0,"ويفر بوتيك مربع 9 كيس * 500 جم",0,{"$f":"IFERROR(IF(OR(INDEX($G$4:$U$94, MATCH(TRIM(CLEAN($W104)), $D$4:$D$94, 0), MATCH(Y$3, $G$3:$U$3, 0))=0, INDEX($G$4:$U$94, MATCH(TRIM(CLEAN($W104)), $D$4:$D$94, 0), MATCH(Y$3, $G$3:$U$3, 0))=\"\"), \"\", INDEX($G$4:$U$94, MATCH(TRIM(CLEAN($W104)), $D$4:$D$94, 0), MATCH(Y$3, $G$3:$U$3, 0))), \"\")","v":""},"","","","","","","","","","","","","","",0,"ويفر بوتيك مربع 9 كيس * 500 جم"]
[102,null,null,null,null,null,null,null,null,null,null,null,null,null,null,null,null,null,null,null,null,0,"ايليت عرض خاص ",0,"","","","","","","","","","","","","","","",0,"ايليت عرض خاص"]
[103,null,null,null,null,null,null,null,null,null,null,null,null,null,null,null,null,null,null,null,null,0,"اهلا بالعيد 8 كيس * 660 جم",0,"","","","","","","","","","","","","","","",0,"اهلا بالعيد 8 كيس * 660 جم"]
[104,null,null,null,null,null,null,null,null,null,null,null,null,null,null,null,null,null,null,null,null,0,"كورن عائلي 15 كيس",211,"","","","","","","","","","","","",211,"","",211,"كورن عائلي 15 كيس"]
[105,null,null,null,null,null,null,null,null,null,null,null,null,null,null,null,null,null,null,null,null,0,"فاير فنجرز 15 كيس",254,"","","","","","","","","","","","",254,"","",254,"فاير فنجرز 15 كيس"]
[106,null,null,null,null,null,null,null,null,null,null,null,null,null,null,null,null,null,null,null,null,0,"اسبيشيال أطعم  15 كيس",0,"","","","","","","","","","","","","","","",0,"اسبيشيال أطعم 15 كيس"]
[107,null,null,null,null,null,null,null,null,null,null,null,null,null,null,null,null,null,null,null,null,0,"شيل أوت شيبس 15 كيس سعر الكيس 10 جنية",189,"","","","","","","","","","",2,"",187,"","",189,"شيل أوت شيبس 15 كيس سعر الكيس 10 جنية"]
[null,null,null,null,null,null,null,null,null,null,null,null,null,null,null,null,null,null,null,null,null,0,"زى كولا مشروب غازى 275 حلى",954,"","","","","","","","","",254,"","",700,"","",954,"زى كولا مشروب غازى 275 حلى"]
[108,null,null,null,null,null,null,null,null,null,null,null,null,null,null,null,null,null,null,null,null,0,"زبدة 12 علبة * 240 ق",0,"","","","","","","","","","","","","","","",0,"زبدة 12 علبة * 240 ق"]
["الاجمالى",null,null,null,null,{"$f":"SUM(F4:F112)","v":0},0,0,0,0,0,0,0,59,6,421,416,85,2723.5,1012,{"$f":"SUM(U4:U112)","v":405},{"$f":"SUM(V4:V111)","v":5127.5},null,{"$f":"SUM(X4:X112)","v":4293.5},{"$f":"SUM(Y4:Y112)","v":0},{"$f":"SUM(Z4:Z112)","v":0},0,0,0,0,0,59,6,392,60,85,2374.5,912,405,{"$f":"SUM(AN4:AN112)","v":4293.5}]
[]
[null,null,null,null,null,null,null,null,null,null,null,null,null,null,null,null,null,null,null,null,null,null,null,null,null,null,null,null,null,null,null,null,null,{"$f":"P113-AH113","v":29},{"$f":"Q113-AI113","v":356},null,{"$f":"S113-AK113","v":349},{"$f":"T113-AL113","v":100}]
[]
[null,null,null,null,null,null,null,null,null,null,null,null,null,null,null,null,null,null,null,null,null,{"$f":"V113-AN113","v":834}]

{"sheet":"الرصيد 3 (6)","index":4,"n_rows":117,"n_cols":41,"rows_kept":117,"cut":false,"hidden":false,"merged":[[1,22,1,38],[1,39,2,39],[112,0,112,4],[0,0,0,21],[0,22,0,38],[1,0,2,0],[1,1,2,1],[1,2,2,2],[1,3,2,3],[1,4,2,4],[1,5,2,5],[1,11,1,19],[1,21,2,21]]}
["رصيد توكيل (   توكيل نجع حمادى    ) عن يوم (   الخميس 9/13  )",null,null,null,null,null,null,null,null,null,null,null,null,null,null,null,null,null,null,null,null,null,"شيت به معادلات عادية "]
["م","الكود","مدة \nالصلاحية","الصنف","الوحدة","الرصيد\n الدفترى\nبالكرتونة\n ",null,null,null,null,null,null,null,null,null,null,null,null,null,null,null,"الرصيد\n الفعلى\nبالكرتونة\n","تنسيق الارقام مع اسم الصنف والتاريخ المقابل لها",null,null,null,null,null,null,null,null,null,null,null,null,null,null,null,null,"الرصيد\n الفعلى\nبالكرتونة\n"]
[null,null,null,null,null,null,"2024-07-01","2024-08-01","2024-09-01","2024-10-01","2024-11-01","2024-12-01","2025-01-01","2025-02-01","2025-03-01","2025-04-01","2025-05-01","2025-06-01","2025-07-01","2025-08-01","2025-09-01",null,"اسم الصنف","الرصيد","2024-07-01","2024-08-01","2024-09-01","2024-10-01","2024-11-01","2024-12-01","2025-01-01","2025-02-01","2025-03-01","2025-04-01","2025-05-01","2025-06-01","2025-07-01","2025-08-01","2025-09-01",null,{"$f":"IFERROR(IF(INDEX($G$4:$U$94,MATCH(SUBSTITUTE(TRIM($W4),CHAR(160),\" \"),SUBSTITUTE(TRIM($D$4:$D$94),CHAR(160),\" \"),0),MATCH(Y$3,$G$3:$U$3,0))=0,\"\",INDEX($G$4:$U$94,MATCH(SUBSTITUTE(TRIM($W4),CHAR(160),\" \"),SUBSTITUTE(TRIM($D$4:$D$94),CHAR(160),\" \"),0),MATCH(Y$3,$G$3:$U$3,0))),\"\")","v":""}]
[1,6222000901529,"سنتان","سوبر فينا 10 كيلو","كرتونة",null,null,null,null,null,null,null,null,null,null,null,null,null,52,50,100,{"$f":"SUM(G4:U4)","v":202},"سوبر فينا 10 كيلو",{"$f":"AN4","v":202},{"$f":"IFERROR(IF(OR(INDEX($G$4:$U$94, MATCH(TRIM(CLEAN($W4)), $D$4:$D$94, 0), MATCH(Y$3, $G$3:$U$3, 0))=0, INDEX($G$4:$U$94, MATCH(TRIM(CLEAN($W4)), $D$4:$D$94, 0), MATCH(Y$3, $G$3:$U$3, 0))=\"\"), \"\", INDEX($G$4:$U$94, MATCH(TRIM(CLEAN($W4)), $D$4:$D$94, 0), MATCH(Y$3, $G$3:$U$3, 0))), \"\")","v":""},{"$f":"IFERROR(IF(OR(INDEX($G$4:$U$94, MATCH(TRIM(CLEAN($W4)), $D$4:$D$94, 0), MATCH(Z$3, $G$3:$U$3, 0))=0, INDEX($G$4:$U$94, MATCH(TRIM(CLEAN($W4)), $D$4:$D$94, 0), MATCH(Z$3, $G$3:$U$3, 0))=\"\"), \"\", INDEX($G$4:$U$94, MATCH(TRIM(CLEAN($W4)), $D$4:$D$94, 0), MATCH(Z$3, $G$3:$U$3, 0))), \"\")","v":""},"","","","","","","","","","",52,50,100,{"$f":"SUM(Y4:AM4)","v":202},{"$f":"TRIM(CLEAN(SUBSTITUTE(SUBSTITUTE(SUBSTITUTE(W4,CHAR(10),\"\"),CHAR(13),\"\"),CHAR(9),\"\")))","v":"سوبر فينا 10 كيلو"}]
[2,6222000901536,"سنتان","سوبر فينا 10 كيلو نعناع","كرتونة",null,null,null,null,null,null,null,null,null,null,null,null,null,24,null,155,{"$f":"SUM(G5:U5)","v":179},"سولا فواكة فلوباك 10 ك",{"$f":"AN5","v":55},{"$f":"IFERROR(IF(OR(INDEX($G$4:$U$94, MATCH(TRIM(CLEAN($W5)), $D$4:$D$94, 0), MATCH(Y$3, $G$3:$U$3, 0))=0, INDEX($G$4:$U$94, MATCH(TRIM(CLEAN($W5)), $D$4:$D$94, 0), MATCH(Y$3, $G$3:$U$3, 0))=\"\"), \"\", INDEX($G$4:$U$94, MATCH(TRIM(CLEAN($W5)), $D$4:$D$94, 0), MATCH(Y$3, $G$3:$U$3, 0))), \"\")","v":""},"","","","","","","","","","","","",55,"",{"$f":"SUM(Y5:AM5)","v":55},{"$f":"TRIM(CLEAN(SUBSTITUTE(SUBSTITUTE(SUBSTITUTE(W5,CHAR(10),\"\"),CHAR(13),\"\"),CHAR(9),\"\")))","v":"سولا فواكة فلوباك 10 ك"}]
[3,6222000911733,"سنتان","نعناع 12كيس 50 ق 4جم","كرتونة",null,null,null,null,null,null,null,null,null,null,null,null,null,null,3,null,3,"سولا فواكة 5 ك",0,"","","","","","","","","","","","","","","",0,"سولا فواكة 5 ك"]
[4,6222000911764,"سنتان","سولا فواكه 12 كيس * 50 ق","كرتونة",null,null,null,null,null,null,null,null,null,null,null,null,null,null,null,null,0,"سولا فواكه 30 كيس * 28 ق",0,"","","","","","","","","","","","","","","",0,"سولا فواكه 30 كيس * 28 ق"]
[5,"6222000917773","سنتان","سولا فواكه 30 كيس * 28 ق","كرتونة",null,null,null,null,null,null,null,null,null,null,null,null,null,null,null,null,0,"سولا فواكه 12 كيس * 50 ق",0,"","","","","","","","","","","","","","","",0,"سولا فواكه 12 كيس * 50 ق"]
[6,"6222000917780","سنتان","سولا فواكه 12 كيس * 100 ق","كرتونة",null,null,null,null,null,null,null,null,null,null,null,null,null,null,104,null,104,"سولا فواكه 12 كيس * 100 ق",104,"","","","","","","","","","","","","",104,"",104,"سولا فواكه 12 كيس * 100 ق"]
[7,6222000916295,"سنتان","سولا فواكة 6 كيس * 800 جم","كرتونة",null,null,null,null,null,null,null,null,null,null,null,null,null,null,null,null,0,"سولا ف 12 ع * 200 ق",0,"","","","","","","","","","","","","","","",0,"سولا ف 12 ع * 200 ق"]
[8,6222000912525,"سنتان","سولا ف 12 ع * 200 ق","كرتونة",null,null,null,null,null,null,null,null,null,null,null,null,null,null,null,null,0,"سولا ف 12 ع * 240 ق",0,"","","","","","","","","","","","","","","",0,"سولا ف 12 ع * 240 ق"]
[9,"6222000912518","سنتان","سولا نعناع 12 ع * 200 ق","كرتونة",null,null,null,null,null,null,null,null,null,null,null,22,null,null,null,null,22,"سولا فواكة 6 كيس * 800 جم",0,"","","","","","","","","","","","","","","",0,"سولا فواكة 6 كيس * 800 جم"]
[10,6222000912525,"سنتان","سولا ف 12 ع * 240 ق","كرتونة",null,null,null,null,null,null,null,null,null,null,null,null,null,null,null,null,0,"سوبر فينا 10 كيلو نعناع",179,"","","","","","","","","","","","",24,"",155,179,"سوبر فينا 10 كيلو نعناع"]
[11,"6222000908566","سنتان","سولا فواكة 5 ك","كرتونة",null,null,null,null,null,null,null,null,null,null,null,null,null,null,null,null,0,"سولا نعناع فلوباك 10 ك",0,"","","","","","","","","","","","","","","",0,"سولا نعناع فلوباك 10 ك"]
[12,"6222000908573","سنتان","سولا نعناع 5 ك","كرتونة",null,null,null,null,null,null,null,null,59,null,null,null,null,null,null,null,59,"سولا نعناع 5 ك",59,"","","","","","","",59,"","","","","","","",59,"سولا نعناع 5 ك"]
[13,"00743","سنة","قهوة 12 ع * 200 ق","كرتونة",null,null,null,null,null,null,null,null,null,null,null,null,null,null,null,null,0,"سولا نعناع 30 كيس * 28 ق",0,"","","","","","","","","","","","","","","",0,"سولا نعناع 30 كيس * 28 ق"]
[14,"6222000917452","سنة","قهوة 12 ع * 240 ق","كرتونة",null,null,null,null,null,null,null,null,null,null,null,null,null,null,27,null,27,"نعناع 12كيس 50 ق 4جم",3,"","","","","","","","","","","","","",3,"",3,"نعناع 12كيس 50 ق 4جم"]
[15,6222000901758,"سنة","سولا قهوه 10 كيلو","كرتونة",null,null,null,null,null,null,null,null,null,null,null,null,null,15.5,50,null,65.5,"سولا نعناع 12 كيس * 100 ق",0,"","","","","","","","","","","","","","","",0,"سولا نعناع 12 كيس * 100 ق"]
[16,6222000912020,"سنة","قهوة 5 ك","كرتونة",null,null,null,null,null,null,null,null,null,null,null,null,null,null,null,null,0,"سولا نعناع 12 ع * 200 ق",22,"","","","","","","","","","",22,"","","","",22,"سولا نعناع 12 ع * 200 ق"]
[17,6222000909815,"سنة","قهوة 12 كيس * 80 ق / 90 ق","كرتونة",null,null,null,null,null,null,null,null,null,null,null,null,85,null,65,null,150,"نعناع 12 ع * 240 ق",0,"","","","","","","","","","","","","","","",0,"نعناع 12 ع * 240 ق"]
[18,6222000908610,"سنة","قهوة 30 كيس * 18 ق / 25 ق","كرتونة",null,null,null,null,null,null,null,null,null,null,null,null,null,null,null,null,0,"سولا قهوه 10 كيلو",65.5,"","","","","","","","","","","","",15.5,50,"",65.5,"سولا قهوه 10 كيلو"]
[19,6222000909891,"سنة","قهوة 30 كيس * 12قطعه","كرتونة",null,null,null,null,null,null,null,null,null,null,null,null,null,null,null,null,0,"قهوة 5 ك",0,"","","","","","","","","","","","","","","",0,"قهوة 5 ك"]
[20,"00744","سنة","زبدة 12 ع * 200 ق","كرتونة",null,null,null,null,null,null,null,null,null,null,null,null,null,64,null,null,64,"قهوة 30 كيس * 12قطعه",0,"","","","","","","","","","","","","","","",0,"قهوة 30 كيس * 12قطعه"]
[21,6222000901642,"سنة","سولا زبده 10 كيلو","كرتونة",null,null,null,null,null,null,null,null,null,null,null,null,null,null,18,null,18,"قهوة 30 كيس * 15قطعه",0,"","","","","","","","","","","","","","","",0,"قهوة 30 كيس * 15قطعه"]
[22,6222000912037,"سنة","زبدة 5 ك","كرتونة",null,null,null,null,null,null,null,null,null,null,null,null,null,null,null,null,0,"قهوة 30 كيس * 18 ق / 25 ق",0,"","","","","","","","","","","","","","","",0,"قهوة 30 كيس * 18 ق / 25 ق"]
[23,6222000917124,"سنة","زبدة بالشيكولاته 12 علبة * 240 ق","كرتونة",null,null,null,null,null,null,null,null,null,null,null,null,null,null,64,null,64,"قهوة 12 كيس * 55 ق",0,"","","","","","","","","","","","","","","",0,"قهوة 12 كيس * 55 ق"]
[24,6222000918732,"سنة","زبدة بالشيكولاته 10 ك","كرتونة",null,null,null,null,null,null,null,null,null,null,null,null,null,null,34,null,34,"قهوة 12 كيس * 80 ق / 90 ق",150,"","","","","","","","","","","",85,"",65,"",150,"قهوة 12 كيس * 80 ق / 90 ق"]
[25,6222000909808,"سنة","زبدة 12 كيس * 80 ق / 90 ق","كرتونة",null,null,null,null,null,null,null,null,null,null,null,null,null,null,null,null,0,"قهوة 12 كيس * 120 ق",0,"","","","","","","","","","","","","","","",0,"قهوة 12 كيس * 120 ق"]
[26,6222000907583,"سنة","زبدة 30 كيس * 18 ق / 25 ق","كرتونة",null,null,null,null,null,null,null,null,null,null,110,null,null,null,null,null,110,"قهوة 12 ع * 200 ق",0,"","","","","","","","","","","","","","","",0,"قهوة 12 ع * 200 ق"]
[27,6222000909884,"سنة","زبدة 30 كيس * 12قطعه","كرتونة",null,null,null,null,null,null,null,null,null,null,null,null,null,61,48,null,109,"قهوة 12 ع * 240 ق",27,"","","","","","","","","","","","","",27,"",27,"قهوة 12 ع * 240 ق"]
[28,6222000909884,"سنة","زبدة 30 كيس * 15 قطعه","كرتونة",null,null,null,null,null,null,null,null,null,null,null,null,null,null,null,null,0,"قهوه20كيس*150جرام",0,"","","","","","","","","","","","","","","",0,"قهوه20كيس*150جرام"]
[29,6222000905688,"سنة","زبدة 12 كيس * 55 قطعه","كرتونة",null,null,null,null,null,null,null,null,null,null,null,null,null,null,null,null,0,"سولا زبده 10 كيلو",18,"","","","","","","","","","","","","",18,"",18,"سولا زبده 10 كيلو"]
[30,171,"سنة","زبدة 12 كيس * 120 ق","كرتونة",null,null,null,null,null,null,null,null,null,null,null,null,null,41,null,45,86,"زبدة 5 ك",0,"","","","","","","","","","","","","","","",0,"زبدة 5 ك"]
[31,6222000910064,"سنة","زبدة 10 شنطة * 800 جم","كرتونة",null,null,null,null,null,null,null,null,null,null,null,null,null,null,null,null,0,"زبدة 30 كيس * 12قطعه",109,"","","","","","","","","","","","",61,48,"",109,"زبدة 30 كيس * 12قطعه"]
[32,6222000912501,"9 أشهر","عسلية 12 ع * 200 ق","كرتونة",null,null,null,null,null,null,null,null,null,null,null,null,null,null,null,null,0,"زبدة 30 كيس * 15 قطعه",0,"","","","","","","","","","","","","","","",0,"زبدة 30 كيس * 15 قطعه"]
[33,6222000912457,"9 أشهر","عسلية  5 ك","كرتونة",null,null,null,null,null,null,null,null,null,null,null,null,null,null,null,null,0,"زبدة 30 كيس * 18 ق / 25 ق",110,{"$f":"IFERROR(IF(OR(INDEX($G$4:$U$94, MATCH(TRIM(CLEAN($W36)), $D$4:$D$94, 0), MATCH(Y$3, $G$3:$U$3, 0))=0, INDEX($G$4:$U$94, MATCH(TRIM(CLEAN($W36)), $D$4:$D$94, 0), MATCH(Y$3, $G$3:$U$3, 0))=\"\"), \"\", INDEX($G$4:$U$94, MATCH(TRIM(CLEAN($W36)), $D$4:$D$94, 0), MATCH(Y$3, $G$3:$U$3, 0))), \"\")","v":""},"","","","","","","","",110,"","","","","",110,"زبدة 30 كيس * 18 ق / 25 ق"]
[34,6222000901611,"سنة","اكلير سايب 10 كيلو","كرتونة",null,null,null,null,null,null,null,null,null,null,null,null,null,43,55,null,98,"زبدة 12 كيس * 55 قطعه",0,"","","","","","","","","","","","","","","",0,"زبدة 12 كيس * 55 قطعه"]
[35,6222000909907,"سنة","اكلير  30 كيس * 9 ق / 10 ق","كرتونة",null,null,null,null,null,null,null,null,null,null,null,null,null,134,null,null,134,"زبدة 12 كيس * 80 ق / 90 ق",0,"","","","","","","","","","","","","","","",0,"زبدة 12 كيس * 80 ق / 90 ق"]
[36,6222000909907,"سنة","اكلير 30 كيس * 12 قطعه","كرتونة",null,null,null,null,null,null,null,null,null,null,null,null,null,null,null,null,0,"زبدة 12 كيس * 120 ق",86,"","","","","","","","","","","","",41,"",45,86,"زبدة 12 كيس * 120 ق"]
[37,6222000911498,"سنة","اكلير سولا 5 كيلو ","كرتونة",null,null,null,null,null,null,null,null,null,null,null,null,null,null,null,null,0,"زبدة 12 ع * 200 ق",64,"","","","","","","","","","","","",64,"","",64,"زبدة 12 ع * 200 ق"]
[38,6222000912778,"سنة","اكلير 12كيس * 65 ق / 70 ق","كرتونة",null,null,null,null,null,null,null,null,null,null,null,null,null,null,null,null,0,"زبدة 10 شنطة * 800 جم",0,"","","","","","","","","","","","","","","",0,"زبدة 10 شنطة * 800 جم"]
[39,6222000912778,"سنة","اكلير 12 كيس * 100 قطعة","كرتونة",null,null,null,null,null,null,null,null,null,null,null,null,null,137,null,null,137,"زبدة بالشيكولاته 10 ك",34,"","","","","","","","","","","","","",34,"",34,"زبدة بالشيكولاته 10 ك"]
[40,6222000912822,"سنة","اكلير 30 كيس * 15 ق / 20 ق","كرتونة",null,null,null,null,null,null,null,null,null,null,null,null,null,null,null,null,0,"زبدة بالشيكولاته 30 كيس * 15 قطعه",0,"","","","","","","","","","","","","","","",0,"زبدة بالشيكولاته 30 كيس * 15 قطعه"]
[41,6222000905701,"سنة","اكلير 12كيس 45 ق","كرتونة",null,null,null,null,null,null,null,null,null,null,null,null,null,220,null,null,220,"زبدة بالشيكولاته 12 كيس * 55 قطعه",0,"","","","","","","","","","","","","","","",0,"زبدة بالشيكولاته 12 كيس * 55 قطعه"]
[42,6222000912532,"سنة","اكلير 12 علبة * 160 ق","كرتونة",null,null,null,null,null,null,null,null,null,null,null,null,null,null,null,null,0,"زبدة بالشيكولاته 12 كيس * 120 ق",0,"","","","","","","","","","","","","","","",0,"زبدة بالشيكولاته 12 كيس * 120 ق"]
[43,6222000912532,"سنة","اكلير 12 علبة 200 ق","كرتونة",null,null,null,null,null,null,null,null,null,null,null,null,null,35,null,null,35,"زبدة بالشيكولاته 12 علبة * 240 ق",64,"","","","","","","","","","","","","",64,"",64,"زبدة بالشيكولاته 12 علبة * 240 ق"]
[44,6222000901697,"سنة","طوفي 10 كجم","كرتونة",null,null,null,null,null,null,null,null,null,null,null,null,null,38,46,55,139,"عسلية  5 ك",0,"","","","","","","","","","","","","","","",0,"عسلية 5 ك"]
[45,6222000911481,"سنة","طوفي بردايس 5كيلو","كرتونة",null,null,null,null,null,null,null,null,null,null,null,null,null,null,null,null,0,"عسلية 12 ع * 200 ق",0,"","","","","","","","","","","","","","","",0,"عسلية 12 ع * 200 ق"]
[46,6222000908276,"سنة","طوفي 30 كيس * 25 قطعه","كرتونة",null,null,null,null,null,null,null,null,null,null,null,null,null,null,null,null,0,"اكلير سايب 10 كيلو",98,"","","","","","","","","","","","",43,55,"",98,"اكلير سايب 10 كيلو"]
[47,6222000908276,"سنة","طوفى 30 كيس * 28 ق","كرتونة",null,null,null,null,null,null,null,null,null,null,null,null,null,null,100,null,100,"اكلير  30 كيس * 9 ق / 10 ق",0,"","","","","","","","","","","","","","","",0,"اكلير 30 كيس * 9 ق / 10 ق"]
[48,6222000909921,"سنة","طوفي 30 كيس * 12قطعه","كرتونة",null,null,null,null,null,null,null,null,null,null,null,null,null,null,null,null,0,"اكلير 30 كيس * 12 قطعه",0,"","","","","","","","","","","","","","","",0,"اكلير 30 كيس * 12 قطعه"]
[49,6222000909839,"سنة","طوفي 12 كيس * 90 ق","كرتونة",null,null,null,null,null,null,null,null,null,null,null,null,null,null,11,null,11,"اكلير 30 كيس * 15 ق / 20 ق",0,"","","","","","","","","","","","","","","",0,"اكلير 30 كيس * 15 ق / 20 ق"]
[50,6222000905718,"سنة","طوفى 12كيس * 100 ق","كرتونة",null,null,null,null,null,null,null,null,null,null,null,null,null,null,97,null,97,"اكلير 12كيس 45 ق",220,{"$f":"IFERROR(IF(OR(INDEX($G$4:$U$94, MATCH(TRIM(CLEAN($W53)), $D$4:$D$94, 0), MATCH(Y$3, $G$3:$U$3, 0))=0, INDEX($G$4:$U$94, MATCH(TRIM(CLEAN($W53)), $D$4:$D$94, 0), MATCH(Y$3, $G$3:$U$3, 0))=\"\"), \"\", INDEX($G$4:$U$94, MATCH(TRIM(CLEAN($W53)), $D$4:$D$94, 0), MATCH(Y$3, $G$3:$U$3, 0))), \"\")","v":""},"","","","","","","","","","","",220,"","",220,"اكلير 12كيس 45 ق"]
[51,6222000908825,"سنة","طوفى 12 ع * 200 ق","كرتونة",null,null,null,null,null,null,null,null,null,null,null,null,null,null,null,null,0,"اكلير 12كيس * 65 ق / 70 ق",0,"","","","","","","","","","","","","","","",0,"اكلير 12كيس * 65 ق / 70 ق"]
[52,6222000912556,"سنة","طوفي 12 علبه * 240 ق","كرتونة",null,null,null,null,null,null,null,null,null,null,null,null,null,29,45,null,74,"اكلير 12 كيس * 100 قطعة",137,"","","","","","","","","","","","",137,"","",137,"اكلير 12 كيس * 100 قطعة"]
[53,6222000907637,"سنة","شيكولاته بوتيك 16 علبه * 50 قطعة","كرتونة",null,null,null,null,null,null,null,null,null,6,null,null,null,null,null,null,6,"اكلير 12 علبة * 160 ق",0,"","","","","","","","","","","","","","","",0,"اكلير 12 علبة * 160 ق"]
[54,6222000903295,"سنة","شيكولاته بوتيك 6 علبه * 1.25 كيلو","كرتونة",null,null,null,null,null,null,null,null,null,null,null,null,null,null,null,null,0,"اكلير 12 علبة 200 ق",35,"","","","","","","","","","","","",35,"","",35,"اكلير 12 علبة 200 ق"]
[55,6222000912006,"سنة","شيكولاته بوتيك حليب 4 ك","كرتونة",null,null,null,null,null,null,null,null,null,null,null,null,null,null,null,null,0,"طوفي 10 كجم",139,"","","","","","","","","","","","",38,46,55,139,"طوفي 10 كجم"]
[56,6222000911993,"سنة","شيكولاته بوتيك كراميل 4 ك","كرتونة",null,null,null,null,null,null,null,null,null,null,null,null,null,null,null,null,0,"طوفي 30 كيس * 12قطعه",0,"","","","","","","","","","","","","","","",0,"طوفي 30 كيس * 12قطعه"]
[57,6222000912013,"سنة","شيكولاته بوتيك بندق 4 ك","كرتونة",null,null,null,null,null,null,null,null,null,null,null,null,null,null,null,null,0,"طوفي 30 كيس * 25 قطعه",0,"","","","","","","","","","","","","","","",0,"طوفي 30 كيس * 25 قطعه"]
[58,6222000964197,"سنة","شيكوهند سايب 10 كجم","كرتونة",null,null,null,null,null,null,null,null,null,null,null,null,null,null,null,null,0,"طوفى 30 كيس * 28 ق",100,"","","","","","","","","","","","","",100,"",100,"طوفى 30 كيس * 28 ق"]
[59,6222000906630,"سنة","سوفت شيكوهند 5 ك","كرتونة",null,null,null,null,null,null,null,null,null,null,null,null,null,null,40,null,40,"طوفي 12 كيس * 90 ق",11,"","","","","","","","","","","","","",11,"",11,"طوفي 12 كيس * 90 ق"]
[60,6222000612549,"سنة","شيكوهند سوفت 12 ع * 100 ق","كرتونة",null,null,null,null,null,null,null,null,null,null,null,null,null,null,null,null,0,"طوفى 12كيس * 100 ق",97,"","","","","","","","","","","","","",97,"",97,"طوفى 12كيس * 100 ق"]
[61,6222000915243,"سنة","بار شيكوهند 3 ك","كرتونة",null,null,null,null,null,null,null,null,null,null,null,null,null,null,null,50,50,"طوفى 12 ع * 200 ق",0,"","","","","","","","","","","","","","","",0,"طوفى 12 ع * 200 ق"]
[62,6222000902519,"9 أشهر","ويفر ايليت  مغطس بنى 12 *12","كرتونة",null,null,null,null,null,null,null,null,null,null,null,null,null,null,null,null,0,"طوفي 12 علبه * 240 ق",74,"","","","","","","","","","","","",29,45,"",74,"طوفي 12 علبه * 240 ق"]
[63,6222000902557,"9 أشهر","ويفر ايليت مغطس ابيض  12 * 12","كرتونة",null,null,null,null,null,null,null,null,null,null,null,null,null,null,null,null,0,"طوفي شيكولاته 12 كيس * 25 ق",0,"","","","","","","","","","","","","","","",0,"طوفي شيكولاته 12 كيس * 25 ق"]
[64,6222000902564,"9 أشهر"," ويفر ايليت مغطس فراولة 12*12","كرتونة",null,null,null,null,null,null,null,null,null,null,null,null,null,null,null,null,0,"طوفي شيكولاته 12 علبة * 100 ق",0,"","","","","","","","","","","","","","","",0,"طوفي شيكولاته 12 علبة * 100 ق"]
[65,6222000910200,"9 أشهر","ايليت ماكس سادة ش 12 باكو 6 قطع","كرتونة",null,null,null,null,null,null,null,null,null,null,null,null,null,263,null,null,263,"طوفي زبدة 12 كيس * 25 ق",0,"","","","","","","","","","","","","","","",0,"طوفي زبدة 12 كيس * 25 ق"]
[66,6222000910514,"9 أشهر","ايليت  ماكس سادة فانيليا 12 باكو * 6 قطع","كرتونة",null,null,null,null,null,null,null,null,null,null,null,null,null,215,null,null,{"$f":"SUM(G69:U69)","v":215},"طوفي زبدة 12 علبة * 100 ق",{"$f":"AN69","v":0},"","","","","","","","","","","","","","","",{"$f":"SUM(Y69:AM69)","v":0},{"$f":"TRIM(CLEAN(SUBSTITUTE(SUBSTITUTE(SUBSTITUTE(W69,CHAR(10),\"\"),CHAR(13),\"\"),CHAR(9),\"\")))","v":"طوفي زبدة 12 علبة * 100 ق"}]
[67,6222000909976,"9 أشهر","ويفر مربع  3 كيلو ايليت  ابيض","كرتونة",null,null,null,null,null,null,null,null,null,null,null,74,null,null,50,null,124,"شيكولاته بوتيك 16 علبه * 50 قطعة",6,{"$f":"IFERROR(IF(OR(INDEX($G$4:$U$94, MATCH(TRIM(CLEAN($W70)), $D$4:$D$94, 0), MATCH(Y$3, $G$3:$U$3, 0))=0, INDEX($G$4:$U$94, MATCH(TRIM(CLEAN($W70)), $D$4:$D$94, 0), MATCH(Y$3, $G$3:$U$3, 0))=\"\"), \"\", INDEX($G$4:$U$94, MATCH(TRIM(CLEAN($W70)), $D$4:$D$94, 0), MATCH(Y$3, $G$3:$U$3, 0))), \"\")","v":""},"","","","","","","",6,"","","","","","",6,"شيكولاته بوتيك 16 علبه * 50 قطعة"]
[68,6222000909983,"9 أشهر","ويفر مربع  3 كيلو ايليت  شيكولاته","كرتونة",null,null,null,null,null,null,null,null,null,null,null,null,null,null,null,null,0,"شيكولاته بوتيك 6 علبه * 1.25 كيلو",0,"","","","","","","","","","","","","","","",0,"شيكولاته بوتيك 6 علبه * 1.25 كيلو"]
[69,6222000909969,"9 أشهر","ويفر مربع  3 كيلو ايليت  فراوله","كرتونة",null,null,null,null,null,null,null,null,null,null,null,69,null,null,50,null,119,"شيكولاته بوتيك حليب 4 ك",0,"","","","","","","","","","","","","","","",0,"شيكولاته بوتيك حليب 4 ك"]
[70,6888000909953,"9 أشهر","ويفر مربع 3 كيلو ايليت جوز هند","كرتونة",null,null,null,null,null,null,null,null,null,null,null,null,null,null,null,null,0,"شيكولاته بوتيك كراميل 4 ك",0,"","","","","","","","","","","","","","","",0,"شيكولاته بوتيك كراميل 4 ك"]
[71,622200097116,"9 أشهر","ويفر فرحه 5 كيلو","كرتونة",null,null,null,null,null,null,null,null,null,null,null,36,null,null,null,null,36,"شيكولاته بوتيك بندق 4 ك",0,"","","","","","","","","","","","","","","",0,"شيكولاته بوتيك بندق 4 ك"]
[72,6222000912372,"9 أشهر","ويفر ايليت مربع بايتس 3 ك بني","كرتونة",null,null,null,null,null,null,null,null,null,null,null,null,null,null,null,null,0,"شيكوهند سايب 10 كجم",0,"","","","","","","","","","","","","","","",0,"شيكوهند سايب 10 كجم"]
[73,6222000912488,"9 أشهر","بسكوت اكشن سادة شاي 6 ع * 12 ق","كرتونة",null,null,null,null,null,null,null,null,null,null,null,null,null,null,null,null,0,"سوفت شيكوهند 5 ك",40,"","","","","","","","","","","","","",40,"",40,"سوفت شيكوهند 5 ك"]
[74,6222000914383,"9 أشهر","بسكوت اكشن سادة شاي 6 ع * 12 ق ( نباتى )","كرتونة",null,null,null,null,null,null,null,null,null,null,null,null,null,null,null,null,0,"شيكوهند سوفت 12 كيس * 28 ق",0,"","","","","","","","","","","","","","","",0,"شيكوهند سوفت 12 كيس * 28 ق"]
[75,6222000916165,"9 أشهر","ويفر اكشن مغطس بنى 12ع * 12 ق ( 5 جنية )","كرتونة",null,null,null,null,null,null,null,null,null,null,28,null,null,null,null,null,28,"شيكوهند سوفت 12 كيس * 60 ق",0,"","","","","","","","","","","","","","","",0,"شيكوهند سوفت 12 كيس * 60 ق"]
[76,6222000916172,"9 أشهر","ويفر اكشن مغطس أبيض 12ع * 12 ق ( 5 جنية )","كرتونة",null,null,null,null,null,null,null,null,null,null,null,null,null,null,null,null,0,"شيكوهند سوفت 12 ع * 100 ق",0,"","","","","","","","","","","","","","","",0,"شيكوهند سوفت 12 ع * 100 ق"]
[77,2810,"9 أشهر","ويفر اكشن مغطس أبيض 8ع * 12 ق ( 5 جنية )","كرتونة",null,null,null,null,null,null,null,null,null,null,null,null,null,null,null,null,0,"بار شيكوهند 3 ك",50,"","","","","","","","","","","","","","",50,50,"بار شيكوهند 3 ك"]
[78,6222000912365,"9 أشهر","بايتس  مربع 6ع * 50ق  بنى","كرتونة",null,null,null,null,null,null,null,null,null,null,29,null,null,null,null,null,29,"ويفر ايليت  مغطس بنى 12 *12",0,"","","","","","","","","","","","","","","",0,"ويفر ايليت مغطس بنى 12 *12"]
[79,6222000902083,"9 أشهر","بايتس مربع 6 ع * 50 ق ابيض ","كرتونة",null,null,null,null,null,null,null,null,null,null,null,null,null,null,null,null,0,"ويفر ايليت مغطس ابيض  12 * 12",0,"","","","","","","","","","","","","","","",0,"ويفر ايليت مغطس ابيض 12 * 12"]
[80,6222000913904,"9 أشهر","بايتس مربع 6 ع * 50 ق فراولة ","كرتونة",null,null,null,null,null,null,null,null,null,null,null,null,null,null,null,null,0," ويفر ايليت مغطس فراولة 12*12",0,"","","","","","","","","","","","","","","",0,"ويفر ايليت مغطس فراولة 12*12"]
[81,"6222000916738","9 أشهر","ويفر بوتيك مربع 9 كيس * 500 جم","كرتونة",null,null,null,null,null,null,null,null,null,null,null,null,null,null,null,null,0,"ايليت ماكس سادة ش 12 باكو 6 قطع",263,"","","","","","","","","","","","",263,"","",263,"ايليت ماكس سادة ش 12 باكو 6 قطع"]
[82,"002797","4 أشهر","كورن عائلي 15 كيس","كرتونة",null,null,null,null,null,null,null,null,null,null,null,null,null,211,null,null,{"$f":"SUM(G85:U85)","v":211},"ايليت  ماكس سادة فانيليا 12 باكو * 6 قطع",0,"","","","","","","","","","","","","","","",0,"ايليت ماكس سادة فانيليا 12 باكو * 6 قطع"]
[83,"002796","6 أشهر","فاير فنجرز 15 كيس","كرتونة",null,null,null,null,null,null,null,null,null,null,null,null,null,254,null,null,254,"ويفر مربع  3 كيلو ايليت  ابيض",0,"","","","","","","","","","","","","","","",0,"ويفر مربع 3 كيلو ايليت ابيض"]
[84,"001766","6 أشهر","اسبيشيال أطعم  15 كيس","كرتونة",null,null,null,null,null,null,null,null,null,null,null,213,null,null,null,null,213,"ويفر مربع  3 كيلو ايليت  شيكولاته",0,{"$f":"IFERROR(IF(OR(INDEX($G$4:$U$94, MATCH(TRIM(CLEAN($W87)), $D$4:$D$94, 0), MATCH(Y$3, $G$3:$U$3, 0))=0, INDEX($G$4:$U$94, MATCH(TRIM(CLEAN($W87)), $D$4:$D$94, 0), MATCH(Y$3, $G$3:$U$3, 0))=\"\"), \"\", INDEX($G$4:$U$94, MATCH(TRIM(CLEAN($W87)), $D$4:$D$94, 0), MATCH(Y$3, $G$3:$U$3, 0))), \"\")","v":""},"","","","","","","","","","","","","","",0,"ويفر مربع 3 كيلو ايليت شيكولاته"]
[85,"EG-670026743-3002","6 أشهر","شيل أوت شيبس 15 كيس سعر الكيس 10 جنية","كرتونة",null,null,null,null,null,null,null,null,null,null,null,2,null,187,null,null,189,"ويفر مربع  3 كيلو ايليت  فراوله",0,"","","","","","","","","","","","","","","",0,"ويفر مربع 3 كيلو ايليت فراوله"]
[86,"6224001574221","سنة","زى كولا مشروب غازى 275 حلى","كرتونة",null,null,null,null,null,null,null,null,null,null,254,null,null,700,null,null,954,"ويفر مربع 3 كيلو ايليت جوز هند",0,"","","","","","","","","","","","","","","",0,"ويفر مربع 3 كيلو ايليت جوز هند"]
[87,"2798","9 أشهر","اهلا بالعيد 8 كيس * 660 جم","كرتونة",null,null,null,null,null,null,null,null,null,null,null,null,null,null,null,null,0,"ويفر فرحه 5 كيلو",36,"","","","","","","","","","",36,"","","","",36,"ويفر فرحه 5 كيلو"]
[88,"00695","سنة","قهوه20كيس*150جرام","كرتونة",null,null,null,null,null,null,null,null,null,null,null,null,null,null,null,null,0,"ويفر ايليت مربع بايتس 3 ك بني",0,"","","","","","","","","","","","","","","",0,"ويفر ايليت مربع بايتس 3 ك بني"]
[89,"6222000912518","سنتان","نعناع 12 ع * 240 ق","كرتونة",null,null,null,null,null,null,null,null,null,null,null,null,null,null,null,null,0,"بسكوت اكشن سادة شاي 6 ع * 12 ق",0,"","","","","","","","","","","","","","","",0,"بسكوت اكشن سادة شاي 6 ع * 12 ق"]
[90,"002827",null,"سولا فواكة فلوباك 10 ك","كرتونة",null,null,null,null,null,null,null,null,null,null,null,null,null,null,55,null,55,"بسكوت اكشن سادة شاي 6 ع * 12 ق ( نباتى )",0,"","","","","","","","","","","","","","","",0,"بسكوت اكشن سادة شاي 6 ع * 12 ق ( نباتى )"]
[91,null,null,null,null,null,null,null,null,null,null,null,null,null,null,null,null,null,null,null,null,0,"ويفر اكشن مغطس بنى 12ع * 12 ق ( 5 جنية )",28,"","","","","","","","","",28,"","","","","",28,"ويفر اكشن مغطس بنى 12ع * 12 ق ( 5 جنية )"]
[92,null,null,null,null,null,null,null,null,null,null,null,null,null,null,null,null,null,null,null,null,0,"ويفر اكشن مغطس أبيض 12ع * 12 ق ( 5 جنية )",0,"","","","","","","","","","","","","","","",0,"ويفر اكشن مغطس أبيض 12ع * 12 ق ( 5 جنية )"]
[93,null,null,null,null,null,null,null,null,null,null,null,null,null,null,null,null,null,null,null,null,0,"ويفر اكشن مغطس أبيض 8ع * 12 ق ( 5 جنية )",0,"","","","","","","","","","","","","","","",0,"ويفر اكشن مغطس أبيض 8ع * 12 ق ( 5 جنية )"]
[94,null,null,null,null,null,null,null,null,null,null,null,null,null,null,null,null,null,null,null,null,0,"بايتس  مربع 6ع * 50ق  بنى",0,"","","","","","","","","","","","","","","",0,"بايتس مربع 6ع * 50ق بنى"]
[95,null,null,null,null,null,null,null,null,null,null,null,null,null,null,null,null,null,null,null,null,0,"بايتس مربع 6 ع * 50 ق ابيض ",0,"","","","","","","","","","","","","","","",0,"بايتس مربع 6 ع * 50 ق ابيض"]
[96,null,null,null,null,null,null,null,null,null,null,null,null,null,null,null,null,null,null,null,null,0,"ويفر  4 علبه * 50 قطعه ابيض بايتس",0,"","","","","","","","","","","","","","","",0,"ويفر 4 علبه * 50 قطعه ابيض بايتس"]
[97,null,null,null,null,null,null,null,null,null,null,null,null,null,null,null,null,null,null,null,null,0,"ويفر  5 علبه * 50 قطعه ابيض بايتس",0,"","","","","","","","","","","","","","","",0,"ويفر 5 علبه * 50 قطعه ابيض بايتس"]
[98,null,null,null,null,null,null,null,null,null,null,null,null,null,null,null,null,null,null,null,null,0,"ويفر  7 علبه * 50 قطعه ابيض بايتس",0,"","","","","","","","","","","","","","","",0,"ويفر 7 علبه * 50 قطعه ابيض بايتس"]
[99,null,null,null,null,null,null,null,null,null,null,null,null,null,null,null,null,null,null,null,null,0,"بايتس مربع 6 ع * 50 ق فراولة ",0,"","","","","","","","","","","","","","","",0,"بايتس مربع 6 ع * 50 ق فراولة"]
[100,null,null,null,null,null,null,null,null,null,null,null,null,null,null,null,null,null,null,null,null,0,"ويفر  4 علبه * 50 قطعه فراولة بايتس",0,"","","","","","","","","","","","","","","",0,"ويفر 4 علبه * 50 قطعه فراولة بايتس"]
[101,null,null,null,null,null,null,null,null,null,null,null,null,null,null,null,null,null,null,null,null,0,"ويفر بوتيك مربع 9 كيس * 500 جم",0,{"$f":"IFERROR(IF(OR(INDEX($G$4:$U$94, MATCH(TRIM(CLEAN($W104)), $D$4:$D$94, 0), MATCH(Y$3, $G$3:$U$3, 0))=0, INDEX($G$4:$U$94, MATCH(TRIM(CLEAN($W104)), $D$4:$D$94, 0), MATCH(Y$3, $G$3:$U$3, 0))=\"\"), \"\", INDEX($G$4:$U$94, MATCH(TRIM(CLEAN($W104)), $D$4:$D$94, 0), MATCH(Y$3, $G$3:$U$3, 0))), \"\")","v":""},"","","","","","","","","","","","","","",0,"ويفر بوتيك مربع 9 كيس * 500 جم"]
[102,null,null,null,null,null,null,null,null,null,null,null,null,null,null,null,null,null,null,null,null,0,"ايليت عرض خاص ",0,"","","","","","","","","","","","","","","",0,"ايليت عرض خاص"]
[103,null,null,null,null,null,null,null,null,null,null,null,null,null,null,null,null,null,null,null,null,0,"اهلا بالعيد 8 كيس * 660 جم",0,"","","","","","","","","","","","","","","",0,"اهلا بالعيد 8 كيس * 660 جم"]
[104,null,null,null,null,null,null,null,null,null,null,null,null,null,null,null,null,null,null,null,null,0,"كورن عائلي 15 كيس",211,"","","","","","","","","","","","",211,"","",211,"كورن عائلي 15 كيس"]
[105,null,null,null,null,null,null,null,null,null,null,null,null,null,null,null,null,null,null,null,null,0,"فاير فنجرز 15 كيس",254,"","","","","","","","","","","","",254,"","",254,"فاير فنجرز 15 كيس"]
[106,null,null,null,null,null,null,null,null,null,null,null,null,null,null,null,null,null,null,null,null,0,"اسبيشيال أطعم  15 كيس",0,"","","","","","","","","","","","","","","",0,"اسبيشيال أطعم 15 كيس"]
[107,null,null,null,null,null,null,null,null,null,null,null,null,null,null,null,null,null,null,null,null,0,"شيل أوت شيبس 15 كيس سعر الكيس 10 جنية",189,"","","","","","","","","","",2,"",187,"","",189,"شيل أوت شيبس 15 كيس سعر الكيس 10 جنية"]
[null,null,null,null,null,null,null,null,null,null,null,null,null,null,null,null,null,null,null,null,null,0,"زى كولا مشروب غازى 275 حلى",954,"","","","","","","","","",254,"","",700,"","",954,"زى كولا مشروب غازى 275 حلى"]
[108,null,null,null,null,null,null,null,null,null,null,null,null,null,null,null,null,null,null,null,null,0,"زبدة 12 علبة * 240 ق",0,"","","","","","","","","","","","","","","",0,"زبدة 12 علبة * 240 ق"]
["الاجمالى",null,null,null,null,{"$f":"SUM(F4:F112)","v":0},0,0,0,0,0,0,0,59,6,421,416,85,2723.5,1012,{"$f":"SUM(U4:U112)","v":405},{"$f":"SUM(V4:V111)","v":5127.5},null,{"$f":"SUM(X4:X112)","v":4293.5},{"$f":"SUM(Y4:Y112)","v":0},{"$f":"SUM(Z4:Z112)","v":0},0,0,0,0,0,59,6,392,60,85,2374.5,912,405,{"$f":"SUM(AN4:AN112)","v":4293.5}]
[]
[null,null,null,null,null,null,null,null,null,null,null,null,null,null,null,null,null,null,null,null,null,null,null,null,null,null,null,null,null,null,null,null,null,{"$f":"P113-AH113","v":29},{"$f":"Q113-AI113","v":356},null,{"$f":"S113-AK113","v":349},{"$f":"T113-AL113","v":100}]
[]
[null,null,null,null,null,null,null,null,null,null,null,null,null,null,null,null,null,null,null,null,null,{"$f":"V113-AN113","v":834}]

{"sheet":"الرصيد 3 (5)","index":5,"n_rows":117,"n_cols":41,"rows_kept":117,"cut":false,"hidden":false,"merged":[[1,22,1,38],[1,39,2,39],[112,0,112,4],[0,0,0,21],[0,22,0,38],[1,0,2,0],[1,1,2,1],[1,2,2,2],[1,3,2,3],[1,4,2,4],[1,5,2,5],[1,11,1,19],[1,21,2,21]]}
["رصيد توكيل (   توكيل نجع حمادى    ) عن يوم (   الخميس 9/13  )",null,null,null,null,null,null,null,null,null,null,null,null,null,null,null,null,null,null,null,null,null,"شيت به معادلات عادية "]
["م","الكود","مدة \nالصلاحية","الصنف","الوحدة","الرصيد\n الدفترى\nبالكرتونة\n ",null,null,null,null,null,null,null,null,null,null,null,null,null,null,null,"الرصيد\n الفعلى\nبالكرتونة\n","تنسيق الارقام مع اسم الصنف والتاريخ المقابل لها",null,null,null,null,null,null,null,null,null,null,null,null,null,null,null,null,"الرصيد\n الفعلى\nبالكرتونة\n"]
[null,null,null,null,null,null,"2024-07-01","2024-08-01","2024-09-01","2024-10-01","2024-11-01","2024-12-01","2025-01-01","2025-02-01","2025-03-01","2025-04-01","2025-05-01","2025-06-01","2025-07-01","2025-08-01","2025-09-01",null,"اسم الصنف","الرصيد","2024-07-01","2024-08-01","2024-09-01","2024-10-01","2024-11-01","2024-12-01","2025-01-01","2025-02-01","2025-03-01","2025-04-01","2025-05-01","2025-06-01","2025-07-01","2025-08-01","2025-09-01",null,{"$f":"IFERROR(IF(INDEX($G$4:$U$94,MATCH(SUBSTITUTE(TRIM($W4),CHAR(160),\" \"),SUBSTITUTE(TRIM($D$4:$D$94),CHAR(160),\" \"),0),MATCH(Y$3,$G$3:$U$3,0))=0,\"\",INDEX($G$4:$U$94,MATCH(SUBSTITUTE(TRIM($W4),CHAR(160),\" \"),SUBSTITUTE(TRIM($D$4:$D$94),CHAR(160),\" \"),0),MATCH(Y$3,$G$3:$U$3,0))),\"\")","v":""}]
[1,6222000901529,"سنتان","سوبر فينا 10 كيلو","كرتونة",null,null,null,null,null,null,null,null,null,null,null,null,null,52,50,100,{"$f":"SUM(G4:U4)","v":202},"سوبر فينا 10 كيلو",{"$f":"AN4","v":202},{"$f":"IFERROR(IF(INDEX($G$4:$U$94, MATCH(TRIM($W4), $D$4:$D$94, 0), MATCH(Y$3, $G$3:$U$3, 0)) = \"\", \"\", INDEX($G$4:$U$94, MATCH(TRIM($W4), $D$4:$D$94, 0), MATCH(Y$3, $G$3:$U$3, 0))), \"\")","v":""},{"$f":"IFERROR(IF(INDEX($G$4:$U$94, MATCH(TRIM($W4), $D$4:$D$94, 0), MATCH(Z$3, $G$3:$U$3, 0)) = \"\", \"\", INDEX($G$4:$U$94, MATCH(TRIM($W4), $D$4:$D$94, 0), MATCH(Z$3, $G$3:$U$3, 0))), \"\")","v":""},"","","","","","","","","","",52,50,100,{"$f":"SUM(Y4:AM4)","v":202},{"$f":"TRIM(CLEAN(SUBSTITUTE(SUBSTITUTE(SUBSTITUTE(W4,CHAR(10),\"\"),CHAR(13),\"\"),CHAR(9),\"\")))","v":"سوبر فينا 10 كيلو"}]
[2,6222000901536,"سنتان","سوبر فينا 10 كيلو نعناع","كرتونة",null,null,null,null,null,null,null,null,null,null,null,null,null,24,null,155,{"$f":"SUM(G5:U5)","v":179},"سولا فواكة فلوباك 10 ك",{"$f":"AN5","v":55},{"$f":"IFERROR(IF(INDEX($G$4:$U$94, MATCH(TRIM($W5), $D$4:$D$94, 0), MATCH(Y$3, $G$3:$U$3, 0)) = \"\", \"\", INDEX($G$4:$U$94, MATCH(TRIM($W5), $D$4:$D$94, 0), MATCH(Y$3, $G$3:$U$3, 0))), \"\")","v":""},"","","","","","","","","","","","",55,"",{"$f":"SUM(Y5:AM5)","v":55},{"$f":"TRIM(CLEAN(SUBSTITUTE(SUBSTITUTE(SUBSTITUTE(W5,CHAR(10),\"\"),CHAR(13),\"\"),CHAR(9),\"\")))","v":"سولا فواكة فلوباك 10 ك"}]
[3,6222000911733,"سنتان","نعناع 12كيس 50 ق 4جم","كرتونة",null,null,null,null,null,null,null,null,null,null,null,null,null,null,3,null,3,"سولا فواكة 5 ك",0,"","","","","","","","","","","","","","","",0,"سولا فواكة 5 ك"]
[4,6222000911764,"سنتان","سولا فواكه 12 كيس * 50 ق","كرتونة",null,null,null,null,null,null,null,null,null,null,null,null,null,null,null,null,0,"سولا فواكه 30 كيس * 28 ق",0,"","","","","","","","","","","","","","","",0,"سولا فواكه 30 كيس * 28 ق"]
[5,"6222000917773","سنتان","سولا فواكه 30 كيس * 28 ق","كرتونة",null,null,null,null,null,null,null,null,null,null,null,null,null,null,null,null,0,"سولا فواكه 12 كيس * 50 ق",0,"","","","","","","","","","","","","","","",0,"سولا فواكه 12 كيس * 50 ق"]
[6,"6222000917780","سنتان","سولا فواكه 12 كيس * 100 ق","كرتونة",null,null,null,null,null,null,null,null,null,null,null,null,null,null,104,null,104,"سولا فواكه 12 كيس * 100 ق",104,"","","","","","","","","","","","","",104,"",104,"سولا فواكه 12 كيس * 100 ق"]
[7,6222000916295,"سنتان","سولا فواكة 6 كيس * 800 جم","كرتونة",null,null,null,null,null,null,null,null,null,null,null,null,null,null,null,null,0,"سولا ف 12 ع * 200 ق",0,"","","","","","","","","","","","","","","",0,"سولا ف 12 ع * 200 ق"]
[8,6222000912525,"سنتان","سولا ف 12 ع * 200 ق","كرتونة",null,null,null,null,null,null,null,null,null,null,null,null,null,null,null,null,0,"سولا ف 12 ع * 240 ق",0,"","","","","","","","","","","","","","","",0,"سولا ف 12 ع * 240 ق"]
[9,"6222000912518","سنتان","سولا نعناع 12 ع * 200 ق","كرتونة",null,null,null,null,null,null,null,null,null,null,null,22,null,null,null,null,22,"سولا فواكة 6 كيس * 800 جم",0,"","","","","","","","","","","","","","","",0,"سولا فواكة 6 كيس * 800 جم"]
[10,6222000912525,"سنتان","سولا ف 12 ع * 240 ق","كرتونة",null,null,null,null,null,null,null,null,null,null,null,null,null,null,null,null,0,"سوبر فينا 10 كيلو نعناع",179,"","","","","","","","","","","","",24,"",155,179,"سوبر فينا 10 كيلو نعناع"]
[11,"6222000908566","سنتان","سولا فواكة 5 ك","كرتونة",null,null,null,null,null,null,null,null,null,null,null,null,null,null,null,null,0,"سولا نعناع فلوباك 10 ك",0,"","","","","","","","","","","","","","","",0,"سولا نعناع فلوباك 10 ك"]
[12,"6222000908573","سنتان","سولا نعناع 5 ك","كرتونة",null,null,null,null,null,null,null,null,59,null,null,null,null,null,null,null,59,"سولا نعناع 5 ك",59,"","","","","","","",59,"","","","","","","",59,"سولا نعناع 5 ك"]
[13,"00743","سنة","قهوة 12 ع * 200 ق","كرتونة",null,null,null,null,null,null,null,null,null,null,null,null,null,null,null,null,0,"سولا نعناع 30 كيس * 28 ق",0,"","","","","","","","","","","","","","","",0,"سولا نعناع 30 كيس * 28 ق"]
[14,"6222000917452","سنة","قهوة 12 ع * 240 ق","كرتونة",null,null,null,null,null,null,null,null,null,null,null,null,null,null,27,null,27,"نعناع 12كيس 50 ق 4جم",3,"","","","","","","","","","","","","",3,"",3,"نعناع 12كيس 50 ق 4جم"]
[15,6222000901758,"سنة","سولا قهوه 10 كيلو","كرتونة",null,null,null,null,null,null,null,null,null,null,null,null,null,15.5,50,null,65.5,"سولا نعناع 12 كيس * 100 ق",0,"","","","","","","","","","","","","","","",0,"سولا نعناع 12 كيس * 100 ق"]
[16,6222000912020,"سنة","قهوة 5 ك","كرتونة",null,null,null,null,null,null,null,null,null,null,null,null,null,null,null,null,0,"سولا نعناع 12 ع * 200 ق",22,"","","","","","","","","","",22,"","","","",22,"سولا نعناع 12 ع * 200 ق"]
[17,6222000909815,"سنة","قهوة 12 كيس * 80 ق / 90 ق","كرتونة",null,null,null,null,null,null,null,null,null,null,null,null,85,null,65,null,150,"نعناع 12 ع * 240 ق",0,"","","","","","","","","","","","","","","",0,"نعناع 12 ع * 240 ق"]
[18,6222000908610,"سنة","قهوة 30 كيس * 18 ق / 25 ق","كرتونة",null,null,null,null,null,null,null,null,null,null,null,null,null,null,null,null,0,"سولا قهوه 10 كيلو",65.5,"","","","","","","","","","","","",15.5,50,"",65.5,"سولا قهوه 10 كيلو"]
[19,6222000909891,"سنة","قهوة 30 كيس * 12قطعه","كرتونة",null,null,null,null,null,null,null,null,null,null,null,null,null,null,null,null,0,"قهوة 5 ك",0,"","","","","","","","","","","","","","","",0,"قهوة 5 ك"]
[20,"00744","سنة","زبدة 12 ع * 200 ق","كرتونة",null,null,null,null,null,null,null,null,null,null,null,null,null,64,null,null,64,"قهوة 30 كيس * 12قطعه",0,"","","","","","","","","","","","","","","",0,"قهوة 30 كيس * 12قطعه"]
[21,6222000901642,"سنة","سولا زبده 10 كيلو","كرتونة",null,null,null,null,null,null,null,null,null,null,null,null,null,null,18,null,18,"قهوة 30 كيس * 15قطعه",0,"","","","","","","","","","","","","","","",0,"قهوة 30 كيس * 15قطعه"]
[22,6222000912037,"سنة","زبدة 5 ك","كرتونة",null,null,null,null,null,null,null,null,null,null,null,null,null,null,null,null,0,"قهوة 30 كيس * 18 ق / 25 ق",0,"","","","","","","","","","","","","","","",0,"قهوة 30 كيس * 18 ق / 25 ق"]
[23,6222000917124,"سنة","زبدة بالشيكولاته 12 علبة * 240 ق","كرتونة",null,null,null,null,null,null,null,null,null,null,null,null,null,null,64,null,64,"قهوة 12 كيس * 55 ق",0,"","","","","","","","","","","","","","","",0,"قهوة 12 كيس * 55 ق"]
[24,6222000918732,"سنة","زبدة بالشيكولاته 10 ك","كرتونة",null,null,null,null,null,null,null,null,null,null,null,null,null,null,34,null,34,"قهوة 12 كيس * 80 ق / 90 ق",150,"","","","","","","","","","","",85,"",65,"",150,"قهوة 12 كيس * 80 ق / 90 ق"]
[25,6222000909808,"سنة","زبدة 12 كيس * 80 ق / 90 ق","كرتونة",null,null,null,null,null,null,null,null,null,null,null,null,null,null,null,null,0,"قهوة 12 كيس * 120 ق",0,"","","","","","","","","","","","","","","",0,"قهوة 12 كيس * 120 ق"]
[26,6222000907583,"سنة","زبدة 30 كيس * 18 ق / 25 ق","كرتونة",null,null,null,null,null,null,null,null,null,null,110,null,null,null,null,null,110,"قهوة 12 ع * 200 ق",0,"","","","","","","","","","","","","","","",0,"قهوة 12 ع * 200 ق"]
[27,6222000909884,"سنة","زبدة 30 كيس * 12قطعه","كرتونة",null,null,null,null,null,null,null,null,null,null,null,null,null,61,48,null,109,"قهوة 12 ع * 240 ق",27,"","","","","","","","","","","","","",27,"",27,"قهوة 12 ع * 240 ق"]
[28,6222000909884,"سنة","زبدة 30 كيس * 15 قطعه","كرتونة",null,null,null,null,null,null,null,null,null,null,null,null,null,null,null,null,0,"قهوه20كيس*150جرام",0,"","","","","","","","","","","","","","","",0,"قهوه20كيس*150جرام"]
[29,6222000905688,"سنة","زبدة 12 كيس * 55 قطعه","كرتونة",null,null,null,null,null,null,null,null,null,null,null,null,null,null,null,null,0,"سولا زبده 10 كيلو",18,"","","","","","","","","","","","","",18,"",18,"سولا زبده 10 كيلو"]
[30,171,"سنة","زبدة 12 كيس * 120 ق","كرتونة",null,null,null,null,null,null,null,null,null,null,null,null,null,41,null,45,86,"زبدة 5 ك",0,"","","","","","","","","","","","","","","",0,"زبدة 5 ك"]
[31,6222000910064,"سنة","زبدة 10 شنطة * 800 جم","كرتونة",null,null,null,null,null,null,null,null,null,null,null,null,null,null,null,null,0,"زبدة 30 كيس * 12قطعه",109,"","","","","","","","","","","","",61,48,"",109,"زبدة 30 كيس * 12قطعه"]
[32,6222000912501,"9 أشهر","عسلية 12 ع * 200 ق","كرتونة",null,null,null,null,null,null,null,null,null,null,null,null,null,null,null,null,0,"زبدة 30 كيس * 15 قطعه",0,"","","","","","","","","","","","","","","",0,"زبدة 30 كيس * 15 قطعه"]
[33,6222000912457,"9 أشهر","عسلية  5 ك","كرتونة",null,null,null,null,null,null,null,null,null,null,null,null,null,null,null,null,0,"زبدة 30 كيس * 18 ق / 25 ق",110,{"$f":"IFERROR(IF(INDEX($G$4:$U$94, MATCH(TRIM($W36), $D$4:$D$94, 0), MATCH(Y$3, $G$3:$U$3, 0)) = \"\", \"\", INDEX($G$4:$U$94, MATCH(TRIM($W36), $D$4:$D$94, 0), MATCH(Y$3, $G$3:$U$3, 0))), \"\")","v":""},"","","","","","","","",110,"","","","","",110,"زبدة 30 كيس * 18 ق / 25 ق"]
[34,6222000901611,"سنة","اكلير سايب 10 كيلو","كرتونة",null,null,null,null,null,null,null,null,null,null,null,null,null,43,55,null,98,"زبدة 12 كيس * 55 قطعه",0,"","","","","","","","","","","","","","","",0,"زبدة 12 كيس * 55 قطعه"]
[35,6222000909907,"سنة","اكلير  30 كيس * 9 ق / 10 ق","كرتونة",null,null,null,null,null,null,null,null,null,null,null,null,null,134,null,null,134,"زبدة 12 كيس * 80 ق / 90 ق",0,"","","","","","","","","","","","","","","",0,"زبدة 12 كيس * 80 ق / 90 ق"]
[36,6222000909907,"سنة","اكلير 30 كيس * 12 قطعه","كرتونة",null,null,null,null,null,null,null,null,null,null,null,null,null,null,null,null,0,"زبدة 12 كيس * 120 ق",86,"","","","","","","","","","","","",41,"",45,86,"زبدة 12 كيس * 120 ق"]
[37,6222000911498,"سنة","اكلير سولا 5 كيلو ","كرتونة",null,null,null,null,null,null,null,null,null,null,null,null,null,null,null,null,0,"زبدة 12 ع * 200 ق",64,"","","","","","","","","","","","",64,"","",64,"زبدة 12 ع * 200 ق"]
[38,6222000912778,"سنة","اكلير 12كيس * 65 ق / 70 ق","كرتونة",null,null,null,null,null,null,null,null,null,null,null,null,null,null,null,null,0,"زبدة 10 شنطة * 800 جم",0,"","","","","","","","","","","","","","","",0,"زبدة 10 شنطة * 800 جم"]
[39,6222000912778,"سنة","اكلير 12 كيس * 100 قطعة","كرتونة",null,null,null,null,null,null,null,null,null,null,null,null,null,137,null,null,137,"زبدة بالشيكولاته 10 ك",34,"","","","","","","","","","","","","",34,"",34,"زبدة بالشيكولاته 10 ك"]
[40,6222000912822,"سنة","اكلير 30 كيس * 15 ق / 20 ق","كرتونة",null,null,null,null,null,null,null,null,null,null,null,null,null,null,null,null,0,"زبدة بالشيكولاته 30 كيس * 15 قطعه",0,"","","","","","","","","","","","","","","",0,"زبدة بالشيكولاته 30 كيس * 15 قطعه"]
[41,6222000905701,"سنة","اكلير 12كيس 45 ق","كرتونة",null,null,null,null,null,null,null,null,null,null,null,null,null,220,null,null,220,"زبدة بالشيكولاته 12 كيس * 55 قطعه",0,"","","","","","","","","","","","","","","",0,"زبدة بالشيكولاته 12 كيس * 55 قطعه"]
[42,6222000912532,"سنة","اكلير 12 علبة * 160 ق","كرتونة",null,null,null,null,null,null,null,null,null,null,null,null,null,null,null,null,0,"زبدة بالشيكولاته 12 كيس * 120 ق",0,"","","","","","","","","","","","","","","",0,"زبدة بالشيكولاته 12 كيس * 120 ق"]
[43,6222000912532,"سنة","اكلير 12 علبة 200 ق","كرتونة",null,null,null,null,null,null,null,null,null,null,null,null,null,35,null,null,35,"زبدة بالشيكولاته 12 علبة * 240 ق",64,"","","","","","","","","","","","","",64,"",64,"زبدة بالشيكولاته 12 علبة * 240 ق"]
[44,6222000901697,"سنة","طوفي 10 كجم","كرتونة",null,null,null,null,null,null,null,null,null,null,null,null,null,38,46,55,139,"عسلية  5 ك",0,"","","","","","","","","","","","","","","",0,"عسلية 5 ك"]
[45,6222000911481,"سنة","طوفي بردايس 5كيلو","كرتونة",null,null,null,null,null,null,null,null,null,null,null,null,null,null,null,null,0,"عسلية 12 ع * 200 ق",0,"","","","","","","","","","","","","","","",0,"عسلية 12 ع * 200 ق"]
[46,6222000908276,"سنة","طوفي 30 كيس * 25 قطعه","كرتونة",null,null,null,null,null,null,null,null,null,null,null,null,null,null,null,null,0,"اكلير سايب 10 كيلو",98,"","","","","","","","","","","","",43,55,"",98,"اكلير سايب 10 كيلو"]
[47,6222000908276,"سنة","طوفى 30 كيس * 28 ق","كرتونة",null,null,null,null,null,null,null,null,null,null,null,null,null,null,100,null,100,"اكلير  30 كيس * 9 ق / 10 ق",0,"","","","","","","","","","","","","","","",0,"اكلير 30 كيس * 9 ق / 10 ق"]
[48,6222000909921,"سنة","طوفي 30 كيس * 12قطعه","كرتونة",null,null,null,null,null,null,null,null,null,null,null,null,null,null,null,null,0,"اكلير 30 كيس * 12 قطعه",0,"","","","","","","","","","","","","","","",0,"اكلير 30 كيس * 12 قطعه"]
[49,6222000909839,"سنة","طوفي 12 كيس * 90 ق","كرتونة",null,null,null,null,null,null,null,null,null,null,null,null,null,null,11,null,11,"اكلير 30 كيس * 15 ق / 20 ق",0,"","","","","","","","","","","","","","","",0,"اكلير 30 كيس * 15 ق / 20 ق"]
[50,6222000905718,"سنة","طوفى 12كيس * 100 ق","كرتونة",null,null,null,null,null,null,null,null,null,null,null,null,null,null,97,null,97,"اكلير 12كيس 45 ق",220,{"$f":"IFERROR(IF(INDEX($G$4:$U$94, MATCH(TRIM($W53), $D$4:$D$94, 0), MATCH(Y$3, $G$3:$U$3, 0)) = \"\", \"\", INDEX($G$4:$U$94, MATCH(TRIM($W53), $D$4:$D$94, 0), MATCH(Y$3, $G$3:$U$3, 0))), \"\")","v":""},"","","","","","","","","","","",220,"","",220,"اكلير 12كيس 45 ق"]
[51,6222000908825,"سنة","طوفى 12 ع * 200 ق","كرتونة",null,null,null,null,null,null,null,null,null,null,null,null,null,null,null,null,0,"اكلير 12كيس * 65 ق / 70 ق",0,"","","","","","","","","","","","","","","",0,"اكلير 12كيس * 65 ق / 70 ق"]
[52,6222000912556,"سنة","طوفي 12 علبه * 240 ق","كرتونة",null,null,null,null,null,null,null,null,null,null,null,null,null,29,45,null,74,"اكلير 12 كيس * 100 قطعة",137,"","","","","","","","","","","","",137,"","",137,"اكلير 12 كيس * 100 قطعة"]
[53,6222000907637,"سنة","شيكولاته بوتيك 16 علبه * 50 قطعة","كرتونة",null,null,null,null,null,null,null,null,null,6,null,null,null,null,null,null,6,"اكلير 12 علبة * 160 ق",0,"","","","","","","","","","","","","","","",0,"اكلير 12 علبة * 160 ق"]
[54,6222000903295,"سنة","شيكولاته بوتيك 6 علبه * 1.25 كيلو","كرتونة",null,null,null,null,null,null,null,null,null,null,null,null,null,null,null,null,0,"اكلير 12 علبة 200 ق",35,"","","","","","","","","","","","",35,"","",35,"اكلير 12 علبة 200 ق"]
[55,6222000912006,"سنة","شيكولاته بوتيك حليب 4 ك","كرتونة",null,null,null,null,null,null,null,null,null,null,null,null,null,null,null,null,0,"طوفي 10 كجم",139,"","","","","","","","","","","","",38,46,55,139,"طوفي 10 كجم"]
[56,6222000911993,"سنة","شيكولاته بوتيك كراميل 4 ك","كرتونة",null,null,null,null,null,null,null,null,null,null,null,null,null,null,null,null,0,"طوفي 30 كيس * 12قطعه",0,"","","","","","","","","","","","","","","",0,"طوفي 30 كيس * 12قطعه"]
[57,6222000912013,"سنة","شيكولاته بوتيك بندق 4 ك","كرتونة",null,null,null,null,null,null,null,null,null,null,null,null,null,null,null,null,0,"طوفي 30 كيس * 25 قطعه",0,"","","","","","","","","","","","","","","",0,"طوفي 30 كيس * 25 قطعه"]
[58,6222000964197,"سنة","شيكوهند سايب 10 كجم","كرتونة",null,null,null,null,null,null,null,null,null,null,null,null,null,null,null,null,0,"طوفى 30 كيس * 28 ق",100,"","","","","","","","","","","","","",100,"",100,"طوفى 30 كيس * 28 ق"]
[59,6222000906630,"سنة","سوفت شيكوهند 5 ك","كرتونة",null,null,null,null,null,null,null,null,null,null,null,null,null,null,40,null,40,"طوفي 12 كيس * 90 ق",11,"","","","","","","","","","","","","",11,"",11,"طوفي 12 كيس * 90 ق"]
[60,6222000612549,"سنة","شيكوهند سوفت 12 ع * 100 ق","كرتونة",null,null,null,null,null,null,null,null,null,null,null,null,null,null,null,null,0,"طوفى 12كيس * 100 ق",97,"","","","","","","","","","","","","",97,"",97,"طوفى 12كيس * 100 ق"]
[61,6222000915243,"سنة","بار شيكوهند 3 ك","كرتونة",null,null,null,null,null,null,null,null,null,null,null,null,null,null,null,50,50,"طوفى 12 ع * 200 ق",0,"","","","","","","","","","","","","","","",0,"طوفى 12 ع * 200 ق"]
[62,6222000902519,"9 أشهر","ويفر ايليت  مغطس بنى 12 *12","كرتونة",null,null,null,null,null,null,null,null,null,null,null,null,null,null,null,null,0,"طوفي 12 علبه * 240 ق",74,"","","","","","","","","","","","",29,45,"",74,"طوفي 12 علبه * 240 ق"]
[63,6222000902557,"9 أشهر","ويفر ايليت مغطس ابيض  12 * 12","كرتونة",null,null,null,null,null,null,null,null,null,null,null,null,null,null,null,null,0,"طوفي شيكولاته 12 كيس * 25 ق",0,"","","","","","","","","","","","","","","",0,"طوفي شيكولاته 12 كيس * 25 ق"]
[64,6222000902564,"9 أشهر"," ويفر ايليت مغطس فراولة 12*12","كرتونة",null,null,null,null,null,null,null,null,null,null,null,null,null,null,null,null,0,"طوفي شيكولاته 12 علبة * 100 ق",0,"","","","","","","","","","","","","","","",0,"طوفي شيكولاته 12 علبة * 100 ق"]
[65,6222000910200,"9 أشهر","ايليت ماكس سادة ش 12 باكو 6 قطع","كرتونة",null,null,null,null,null,null,null,null,null,null,null,null,null,263,null,null,263,"طوفي زبدة 12 كيس * 25 ق",0,"","","","","","","","","","","","","","","",0,"طوفي زبدة 12 كيس * 25 ق"]
[66,6222000910514,"9 أشهر","ايليت  ماكس سادة فانيليا 12 باكو * 6 قطع","كرتونة",null,null,null,null,null,null,null,null,null,null,null,null,null,215,null,null,{"$f":"SUM(G69:U69)","v":215},"طوفي زبدة 12 علبة * 100 ق",{"$f":"AN69","v":0},"","","","","","","","","","","","","","","",{"$f":"SUM(Y69:AM69)","v":0},{"$f":"TRIM(CLEAN(SUBSTITUTE(SUBSTITUTE(SUBSTITUTE(W69,CHAR(10),\"\"),CHAR(13),\"\"),CHAR(9),\"\")))","v":"طوفي زبدة 12 علبة * 100 ق"}]
[67,6222000909976,"9 أشهر","ويفر مربع  3 كيلو ايليت  ابيض","كرتونة",null,null,null,null,null,null,null,null,null,null,null,74,null,null,50,null,124,"شيكولاته بوتيك 16 علبه * 50 قطعة",6,{"$f":"IFERROR(IF(INDEX($G$4:$U$94, MATCH(TRIM($W70), $D$4:$D$94, 0), MATCH(Y$3, $G$3:$U$3, 0)) = \"\", \"\", INDEX($G$4:$U$94, MATCH(TRIM($W70), $D$4:$D$94, 0), MATCH(Y$3, $G$3:$U$3, 0))), \"\")","v":""},"","","","","","","",6,"","","","","","",6,"شيكولاته بوتيك 16 علبه * 50 قطعة"]
[68,6222000909983,"9 أشهر","ويفر مربع  3 كيلو ايليت  شيكولاته","كرتونة",null,null,null,null,null,null,null,null,null,null,null,null,null,null,null,null,0,"شيكولاته بوتيك 6 علبه * 1.25 كيلو",0,"","","","","","","","","","","","","","","",0,"شيكولاته بوتيك 6 علبه * 1.25 كيلو"]
[69,6222000909969,"9 أشهر","ويفر مربع  3 كيلو ايليت  فراوله","كرتونة",null,null,null,null,null,null,null,null,null,null,null,69,null,null,50,null,119,"شيكولاته بوتيك حليب 4 ك",0,"","","","","","","","","","","","","","","",0,"شيكولاته بوتيك حليب 4 ك"]
[70,6888000909953,"9 أشهر","ويفر مربع 3 كيلو ايليت جوز هند","كرتونة",null,null,null,null,null,null,null,null,null,null,null,null,null,null,null,null,0,"شيكولاته بوتيك كراميل 4 ك",0,"","","","","","","","","","","","","","","",0,"شيكولاته بوتيك كراميل 4 ك"]
[71,622200097116,"9 أشهر","ويفر فرحه 5 كيلو","كرتونة",null,null,null,null,null,null,null,null,null,null,null,36,null,null,null,null,36,"شيكولاته بوتيك بندق 4 ك",0,"","","","","","","","","","","","","","","",0,"شيكولاته بوتيك بندق 4 ك"]
[72,6222000912372,"9 أشهر","ويفر ايليت مربع بايتس 3 ك بني","كرتونة",null,null,null,null,null,null,null,null,null,null,null,null,null,null,null,null,0,"شيكوهند سايب 10 كجم",0,"","","","","","","","","","","","","","","",0,"شيكوهند سايب 10 كجم"]
[73,6222000912488,"9 أشهر","بسكوت اكشن سادة شاي 6 ع * 12 ق","كرتونة",null,null,null,null,null,null,null,null,null,null,null,null,null,null,null,null,0,"سوفت شيكوهند 5 ك",40,"","","","","","","","","","","","","",40,"",40,"سوفت شيكوهند 5 ك"]
[74,6222000914383,"9 أشهر","بسكوت اكشن سادة شاي 6 ع * 12 ق ( نباتى )","كرتونة",null,null,null,null,null,null,null,null,null,null,null,null,null,null,null,null,0,"شيكوهند سوفت 12 كيس * 28 ق",0,"","","","","","","","","","","","","","","",0,"شيكوهند سوفت 12 كيس * 28 ق"]
[75,6222000916165,"9 أشهر","ويفر اكشن مغطس بنى 12ع * 12 ق ( 5 جنية )","كرتونة",null,null,null,null,null,null,null,null,null,null,28,null,null,null,null,null,28,"شيكوهند سوفت 12 كيس * 60 ق",0,"","","","","","","","","","","","","","","",0,"شيكوهند سوفت 12 كيس * 60 ق"]
[76,6222000916172,"9 أشهر","ويفر اكشن مغطس أبيض 12ع * 12 ق ( 5 جنية )","كرتونة",null,null,null,null,null,null,null,null,null,null,null,null,null,null,null,null,0,"شيكوهند سوفت 12 ع * 100 ق",0,"","","","","","","","","","","","","","","",0,"شيكوهند سوفت 12 ع * 100 ق"]
[77,2810,"9 أشهر","ويفر اكشن مغطس أبيض 8ع * 12 ق ( 5 جنية )","كرتونة",null,null,null,null,null,null,null,null,null,null,null,null,null,null,null,null,0,"بار شيكوهند 3 ك",50,"","","","","","","","","","","","","","",50,50,"بار شيكوهند 3 ك"]
[78,6222000912365,"9 أشهر","بايتس  مربع 6ع * 50ق  بنى","كرتونة",null,null,null,null,null,null,null,null,null,null,29,null,null,null,null,null,29,"ويفر ايليت  مغطس بنى 12 *12",0,"","","","","","","","","","","","","","","",0,"ويفر ايليت مغطس بنى 12 *12"]
[79,6222000902083,"9 أشهر","بايتس مربع 6 ع * 50 ق ابيض ","كرتونة",null,null,null,null,null,null,null,null,null,null,null,null,null,null,null,null,0,"ويفر ايليت مغطس ابيض  12 * 12",0,"","","","","","","","","","","","","","","",0,"ويفر ايليت مغطس ابيض 12 * 12"]
[80,6222000913904,"9 أشهر","بايتس مربع 6 ع * 50 ق فراولة ","كرتونة",null,null,null,null,null,null,null,null,null,null,null,null,null,null,null,null,0," ويفر ايليت مغطس فراولة 12*12",0,"","","","","","","","","","","","","","","",0,"ويفر ايليت مغطس فراولة 12*12"]
[81,"6222000916738","9 أشهر","ويفر بوتيك مربع 9 كيس * 500 جم","كرتونة",null,null,null,null,null,null,null,null,null,null,null,null,null,null,null,null,0,"ايليت ماكس سادة ش 12 باكو 6 قطع",263,"","","","","","","","","","","","",263,"","",263,"ايليت ماكس سادة ش 12 باكو 6 قطع"]
[82,"002797","4 أشهر","كورن عائلي 15 كيس","كرتونة",null,null,null,null,null,null,null,null,null,null,null,null,null,211,null,null,{"$f":"SUM(G85:U85)","v":211},"ايليت  ماكس سادة فانيليا 12 باكو * 6 قطع",0,"","","","","","","","","","","","","","","",0,"ايليت ماكس سادة فانيليا 12 باكو * 6 قطع"]
[83,"002796","6 أشهر","فاير فنجرز 15 كيس","كرتونة",null,null,null,null,null,null,null,null,null,null,null,null,null,254,null,null,254,"ويفر مربع  3 كيلو ايليت  ابيض",0,"","","","","","","","","","","","","","","",0,"ويفر مربع 3 كيلو ايليت ابيض"]
[84,"001766","6 أشهر","اسبيشيال أطعم  15 كيس","كرتونة",null,null,null,null,null,null,null,null,null,null,null,213,null,null,null,null,213,"ويفر مربع  3 كيلو ايليت  شيكولاته",0,{"$f":"IFERROR(IF(INDEX($G$4:$U$94, MATCH(TRIM($W87), $D$4:$D$94, 0), MATCH(Y$3, $G$3:$U$3, 0)) = \"\", \"\", INDEX($G$4:$U$94, MATCH(TRIM($W87), $D$4:$D$94, 0), MATCH(Y$3, $G$3:$U$3, 0))), \"\")","v":""},"","","","","","","","","","","","","","",0,"ويفر مربع 3 كيلو ايليت شيكولاته"]
[85,"EG-670026743-3002","6 أشهر","شيل أوت شيبس 15 كيس سعر الكيس 10 جنية","كرتونة",null,null,null,null,null,null,null,null,null,null,null,2,null,187,null,null,189,"ويفر مربع  3 كيلو ايليت  فراوله",0,"","","","","","","","","","","","","","","",0,"ويفر مربع 3 كيلو ايليت فراوله"]
[86,"6224001574221","سنة","زى كولا مشروب غازى 275 حلى","كرتونة",null,null,null,null,null,null,null,null,null,null,254,null,null,700,null,null,954,"ويفر مربع 3 كيلو ايليت جوز هند",0,"","","","","","","","","","","","","","","",0,"ويفر مربع 3 كيلو ايليت جوز هند"]
[87,"2798","9 أشهر","اهلا بالعيد 8 كيس * 660 جم","كرتونة",null,null,null,null,null,null,null,null,null,null,null,null,null,null,null,null,0,"ويفر فرحه 5 كيلو",36,"","","","","","","","","","",36,"","","","",36,"ويفر فرحه 5 كيلو"]
[88,"00695","سنة","قهوه20كيس*150جرام","كرتونة",null,null,null,null,null,null,null,null,null,null,null,null,null,null,null,null,0,"ويفر ايليت مربع بايتس 3 ك بني",0,"","","","","","","","","","","","","","","",0,"ويفر ايليت مربع بايتس 3 ك بني"]
[89,"6222000912518","سنتان","نعناع 12 ع * 240 ق","كرتونة",null,null,null,null,null,null,null,null,null,null,null,null,null,null,null,null,0,"بسكوت اكشن سادة شاي 6 ع * 12 ق",0,"","","","","","","","","","","","","","","",0,"بسكوت اكشن سادة شاي 6 ع * 12 ق"]
[90,"002827",null,"سولا فواكة فلوباك 10 ك","كرتونة",null,null,null,null,null,null,null,null,null,null,null,null,null,null,55,null,55,"بسكوت اكشن سادة شاي 6 ع * 12 ق ( نباتى )",0,"","","","","","","","","","","","","","","",0,"بسكوت اكشن سادة شاي 6 ع * 12 ق ( نباتى )"]
[91,null,null,null,null,null,null,null,null,null,null,null,null,null,null,null,null,null,null,null,null,0,"ويفر اكشن مغطس بنى 12ع * 12 ق ( 5 جنية )",28,"","","","","","","","","",28,"","","","","",28,"ويفر اكشن مغطس بنى 12ع * 12 ق ( 5 جنية )"]
[92,null,null,null,null,null,null,null,null,null,null,null,null,null,null,null,null,null,null,null,null,0,"ويفر اكشن مغطس أبيض 12ع * 12 ق ( 5 جنية )",0,"","","","","","","","","","","","","","","",0,"ويفر اكشن مغطس أبيض 12ع * 12 ق ( 5 جنية )"]
[93,null,null,null,null,null,null,null,null,null,null,null,null,null,null,null,null,null,null,null,null,0,"ويفر اكشن مغطس أبيض 8ع * 12 ق ( 5 جنية )",0,"","","","","","","","","","","","","","","",0,"ويفر اكشن مغطس أبيض 8ع * 12 ق ( 5 جنية )"]
[94,null,null,null,null,null,null,null,null,null,null,null,null,null,null,null,null,null,null,null,null,0,"بايتس  مربع 6ع * 50ق  بنى",0,"","","","","","","","","","","","","","","",0,"بايتس مربع 6ع * 50ق بنى"]
[95,null,null,null,null,null,null,null,null,null,null,null,null,null,null,null,null,null,null,null,null,0,"بايتس مربع 6 ع * 50 ق ابيض ",0,"","","","","","","","","","","","","","","",0,"بايتس مربع 6 ع * 50 ق ابيض"]
[96,null,null,null,null,null,null,null,null,null,null,null,null,null,null,null,null,null,null,null,null,0,"ويفر  4 علبه * 50 قطعه ابيض بايتس",0,"","","","","","","","","","","","","","","",0,"ويفر 4 علبه * 50 قطعه ابيض بايتس"]
[97,null,null,null,null,null,null,null,null,null,null,null,null,null,null,null,null,null,null,null,null,0,"ويفر  5 علبه * 50 قطعه ابيض بايتس",0,"","","","","","","","","","","","","","","",0,"ويفر 5 علبه * 50 قطعه ابيض بايتس"]
[98,null,null,null,null,null,null,null,null,null,null,null,null,null,null,null,null,null,null,null,null,0,"ويفر  7 علبه * 50 قطعه ابيض بايتس",0,"","","","","","","","","","","","","","","",0,"ويفر 7 علبه * 50 قطعه ابيض بايتس"]
[99,null,null,null,null,null,null,null,null,null,null,null,null,null,null,null,null,null,null,null,null,0,"بايتس مربع 6 ع * 50 ق فراولة ",0,"","","","","","","","","","","","","","","",0,"بايتس مربع 6 ع * 50 ق فراولة"]
[100,null,null,null,null,null,null,null,null,null,null,null,null,null,null,null,null,null,null,null,null,0,"ويفر  4 علبه * 50 قطعه فراولة بايتس",0,"","","","","","","","","","","","","","","",0,"ويفر 4 علبه * 50 قطعه فراولة بايتس"]
[101,null,null,null,null,null,null,null,null,null,null,null,null,null,null,null,null,null,null,null,null,0,"ويفر بوتيك مربع 9 كيس * 500 جم",0,{"$f":"IFERROR(IF(INDEX($G$4:$U$94, MATCH(TRIM($W104), $D$4:$D$94, 0), MATCH(Y$3, $G$3:$U$3, 0)) = \"\", \"\", INDEX($G$4:$U$94, MATCH(TRIM($W104), $D$4:$D$94, 0), MATCH(Y$3, $G$3:$U$3, 0))), \"\")","v":""},"","","","","","","","","","","","","","",0,"ويفر بوتيك مربع 9 كيس * 500 جم"]
[102,null,null,null,null,null,null,null,null,null,null,null,null,null,null,null,null,null,null,null,null,0,"ايليت عرض خاص ",0,"","","","","","","","","","","","","","","",0,"ايليت عرض خاص"]
[103,null,null,null,null,null,null,null,null,null,null,null,null,null,null,null,null,null,null,null,null,0,"اهلا بالعيد 8 كيس * 660 جم",0,"","","","","","","","","","","","","","","",0,"اهلا بالعيد 8 كيس * 660 جم"]
[104,null,null,null,null,null,null,null,null,null,null,null,null,null,null,null,null,null,null,null,null,0,"كورن عائلي 15 كيس",211,"","","","","","","","","","","","",211,"","",211,"كورن عائلي 15 كيس"]
[105,null,null,null,null,null,null,null,null,null,null,null,null,null,null,null,null,null,null,null,null,0,"فاير فنجرز 15 كيس",254,"","","","","","","","","","","","",254,"","",254,"فاير فنجرز 15 كيس"]
[106,null,null,null,null,null,null,null,null,null,null,null,null,null,null,null,null,null,null,null,null,0,"اسبيشيال أطعم  15 كيس",0,"","","","","","","","","","","","","","","",0,"اسبيشيال أطعم 15 كيس"]
[107,null,null,null,null,null,null,null,null,null,null,null,null,null,null,null,null,null,null,null,null,0,"شيل أوت شيبس 15 كيس سعر الكيس 10 جنية",189,"","","","","","","","","","",2,"",187,"","",189,"شيل أوت شيبس 15 كيس سعر الكيس 10 جنية"]
[null,null,null,null,null,null,null,null,null,null,null,null,null,null,null,null,null,null,null,null,null,0,"زى كولا مشروب غازى 275 حلى",954,"","","","","","","","","",254,"","",700,"","",954,"زى كولا مشروب غازى 275 حلى"]
[108,null,null,null,null,null,null,null,null,null,null,null,null,null,null,null,null,null,null,null,null,0,"زبدة 12 علبة * 240 ق",0,"","","","","","","","","","","","","","","",0,"زبدة 12 علبة * 240 ق"]
["الاجمالى",null,null,null,null,{"$f":"SUM(F4:F112)","v":0},0,0,0,0,0,0,0,59,6,421,416,85,2723.5,1012,{"$f":"SUM(U4:U112)","v":405},{"$f":"SUM(V4:V111)","v":5127.5},null,{"$f":"SUM(X4:X112)","v":4293.5},{"$f":"SUM(Y4:Y112)","v":0},{"$f":"SUM(Z4:Z112)","v":0},0,0,0,0,0,59,6,392,60,85,2374.5,912,405,{"$f":"SUM(AN4:AN112)","v":4293.5}]
[]
[null,null,null,null,null,null,null,null,null,null,null,null,null,null,null,null,null,null,null,null,null,null,null,null,null,null,null,null,null,null,null,null,null,{"$f":"P113-AH113","v":29},{"$f":"Q113-AI113","v":356},null,{"$f":"S113-AK113","v":349},{"$f":"T113-AL113","v":100}]
[]
[null,null,null,null,null,null,null,null,null,null,null,null,null,null,null,null,null,null,null,null,null,{"$f":"V113-AN113","v":834}]

{"sheet":"الرصيد 3 (4)","index":6,"n_rows":117,"n_cols":41,"rows_kept":117,"cut":false,"hidden":false,"merged":[[1,22,1,38],[1,39,2,39],[112,0,112,4],[0,0,0,21],[0,22,0,38],[1,0,2,0],[1,1,2,1],[1,2,2,2],[1,3,2,3],[1,4,2,4],[1,5,2,5],[1,11,1,19],[1,21,2,21]]}
["رصيد توكيل (   توكيل نجع حمادى    ) عن يوم (   الخميس 9/13  )",null,null,null,null,null,null,null,null,null,null,null,null,null,null,null,null,null,null,null,null,null,"شيت به معادلات عادية "]
["م","الكود","مدة \nالصلاحية","الصنف","الوحدة","الرصيد\n الدفترى\nبالكرتونة\n ",null,null,null,null,null,null,null,null,null,null,null,null,null,null,null,"الرصيد\n الفعلى\nبالكرتونة\n","تنسيق الارقام مع اسم الصنف والتاريخ المقابل لها",null,null,null,null,null,null,null,null,null,null,null,null,null,null,null,null,"الرصيد\n الفعلى\nبالكرتونة\n"]
[null,null,null,null,null,null,"2024-07-01","2024-08-01","2024-09-01","2024-10-01","2024-11-01","2024-12-01","2025-01-01","2025-02-01","2025-03-01","2025-04-01","2025-05-01","2025-06-01","2025-07-01","2025-08-01","2025-09-01",null,"اسم الصنف","الرصيد","2024-07-01","2024-08-01","2024-09-01","2024-10-01","2024-11-01","2024-12-01","2025-01-01","2025-02-01","2025-03-01","2025-04-01","2025-05-01","2025-06-01","2025-07-01","2025-08-01","2025-09-01",null,{"$f":"IFERROR(IF(INDEX($G$4:$U$94,MATCH(SUBSTITUTE(TRIM($W4),CHAR(160),\" \"),SUBSTITUTE(TRIM($D$4:$D$94),CHAR(160),\" \"),0),MATCH(Y$3,$G$3:$U$3,0))=0,\"\",INDEX($G$4:$U$94,MATCH(SUBSTITUTE(TRIM($W4),CHAR(160),\" \"),SUBSTITUTE(TRIM($D$4:$D$94),CHAR(160),\" \"),0),MATCH(Y$3,$G$3:$U$3,0))),\"\")","v":""}]
[1,6222000901529,"سنتان","سوبر فينا 10 كيلو","كرتونة",null,null,null,null,null,null,null,null,null,null,null,null,null,52,50,100,{"$f":"SUM(G4:U4)","v":202},"سوبر فينا 10 كيلو",{"$f":"AN4","v":0},{"$f":"IFERROR(INDEX($G$4:$U$94,MATCH(TRUE,EXACT(TRIM(CLEAN(SUBSTITUTE($W4,CHAR(160),\" \"))),TRIM(CLEAN(SUBSTITUTE($D$4:$D$94,CHAR(160),\" \")))),0),MATCH(Y$3,$G$3:$U$3,0)),\"\")","v":""},{"$f":"IFERROR(INDEX($G$4:$U$94,MATCH(TRUE,EXACT(TRIM(CLEAN(SUBSTITUTE($W4,CHAR(160),\" \"))),TRIM(CLEAN(SUBSTITUTE($D$4:$D$94,CHAR(160),\" \")))),0),MATCH(Z$3,$G$3:$U$3,0)),\"\")","v":""},"","","","","","","","","","","","","",{"$f":"SUM(Y4:AM4)","v":0},{"$f":"TRIM(CLEAN(SUBSTITUTE(SUBSTITUTE(SUBSTITUTE(W4,CHAR(10),\"\"),CHAR(13),\"\"),CHAR(9),\"\")))","v":"سوبر فينا 10 كيلو"}]
[2,6222000901536,"سنتان","سوبر فينا 10 كيلو نعناع","كرتونة",null,null,null,null,null,null,null,null,null,null,null,null,null,24,null,155,{"$f":"SUM(G5:U5)","v":179},"سولا فواكة فلوباك 10 ك",{"$f":"AN5","v":55},{"$f":"IFERROR(IF(INDEX($G$4:$U$94,MATCH(TRIM($W5),$D$4:$D$94,0),MATCH(Y$3,$G$3:$U$3,0))=0,\"\",INDEX($G$4:$U$94,MATCH(TRIM($W5),$D$4:$D$94,0),MATCH(Y$3,$G$3:$U$3,0))),\"\")","v":""},"","","","","","","","","","","","",55,"",{"$f":"SUM(Y5:AM5)","v":55},{"$f":"TRIM(CLEAN(SUBSTITUTE(SUBSTITUTE(SUBSTITUTE(W5,CHAR(10),\"\"),CHAR(13),\"\"),CHAR(9),\"\")))","v":"سولا فواكة فلوباك 10 ك"}]
[3,6222000911733,"سنتان","نعناع 12كيس 50 ق 4جم","كرتونة",null,null,null,null,null,null,null,null,null,null,null,null,null,null,3,null,3,"سولا فواكة 5 ك",0,"","","","","","","","","","","","","","","",0,"سولا فواكة 5 ك"]
[4,6222000911764,"سنتان","سولا فواكه 12 كيس * 50 ق","كرتونة",null,null,null,null,null,null,null,null,null,null,null,null,null,null,null,null,0,"سولا فواكه 30 كيس * 28 ق",0,"","","","","","","","","","","","","","","",0,"سولا فواكه 30 كيس * 28 ق"]
[5,"6222000917773","سنتان","سولا فواكه 30 كيس * 28 ق","كرتونة",null,null,null,null,null,null,null,null,null,null,null,null,null,null,null,null,0,"سولا فواكه 12 كيس * 50 ق",0,"","","","","","","","","","","","","","","",0,"سولا فواكه 12 كيس * 50 ق"]
[6,"6222000917780","سنتان","سولا فواكه 12 كيس * 100 ق","كرتونة",null,null,null,null,null,null,null,null,null,null,null,null,null,null,104,null,104,"سولا فواكه 12 كيس * 100 ق",104,"","","","","","","","","","","","","",104,"",104,"سولا فواكه 12 كيس * 100 ق"]
[7,6222000916295,"سنتان","سولا فواكة 6 كيس * 800 جم","كرتونة",null,null,null,null,null,null,null,null,null,null,null,null,null,null,null,null,0,"سولا ف 12 ع * 200 ق",0,"","","","","","","","","","","","","","","",0,"سولا ف 12 ع * 200 ق"]
[8,6222000912525,"سنتان","سولا ف 12 ع * 200 ق","كرتونة",null,null,null,null,null,null,null,null,null,null,null,null,null,null,null,null,0,"سولا ف 12 ع * 240 ق",0,"","","","","","","","","","","","","","","",0,"سولا ف 12 ع * 240 ق"]
[9,"6222000912518","سنتان","سولا نعناع 12 ع * 200 ق","كرتونة",null,null,null,null,null,null,null,null,null,null,null,22,null,null,null,null,22,"سولا فواكة 6 كيس * 800 جم",0,"","","","","","","","","","","","","","","",0,"سولا فواكة 6 كيس * 800 جم"]
[10,6222000912525,"سنتان","سولا ف 12 ع * 240 ق","كرتونة",null,null,null,null,null,null,null,null,null,null,null,null,null,null,null,null,0,"سوبر فينا 10 كيلو نعناع",179,"","","","","","","","","","","","",24,"",155,179,"سوبر فينا 10 كيلو نعناع"]
[11,"6222000908566","سنتان","سولا فواكة 5 ك","كرتونة",null,null,null,null,null,null,null,null,null,null,null,null,null,null,null,null,0,"سولا نعناع فلوباك 10 ك",0,"","","","","","","","","","","","","","","",0,"سولا نعناع فلوباك 10 ك"]
[12,"6222000908573","سنتان","سولا نعناع 5 ك","كرتونة",null,null,null,null,null,null,null,null,59,null,null,null,null,null,null,null,59,"سولا نعناع 5 ك",59,"","","","","","","",59,"","","","","","","",59,"سولا نعناع 5 ك"]
[13,"00743","سنة","قهوة 12 ع * 200 ق","كرتونة",null,null,null,null,null,null,null,null,null,null,null,null,null,null,null,null,0,"سولا نعناع 30 كيس * 28 ق",0,"","","","","","","","","","","","","","","",0,"سولا نعناع 30 كيس * 28 ق"]
[14,"6222000917452","سنة","قهوة 12 ع * 240 ق","كرتونة",null,null,null,null,null,null,null,null,null,null,null,null,null,null,27,null,27,"نعناع 12كيس 50 ق 4جم",3,"","","","","","","","","","","","","",3,"",3,"نعناع 12كيس 50 ق 4جم"]
[15,6222000901758,"سنة","سولا قهوه 10 كيلو","كرتونة",null,null,null,null,null,null,null,null,null,null,null,null,null,15.5,50,null,65.5,"سولا نعناع 12 كيس * 100 ق",0,"","","","","","","","","","","","","","","",0,"سولا نعناع 12 كيس * 100 ق"]
[16,6222000912020,"سنة","قهوة 5 ك","كرتونة",null,null,null,null,null,null,null,null,null,null,null,null,null,null,null,null,0,"سولا نعناع 12 ع * 200 ق",22,"","","","","","","","","","",22,"","","","",22,"سولا نعناع 12 ع * 200 ق"]
[17,6222000909815,"سنة","قهوة 12 كيس * 80 ق / 90 ق","كرتونة",null,null,null,null,null,null,null,null,null,null,null,null,85,null,65,null,150,"نعناع 12 ع * 240 ق",0,"","","","","","","","","","","","","","","",0,"نعناع 12 ع * 240 ق"]
[18,6222000908610,"سنة","قهوة 30 كيس * 18 ق / 25 ق","كرتونة",null,null,null,null,null,null,null,null,null,null,null,null,null,null,null,null,0,"سولا قهوه 10 كيلو",65.5,"","","","","","","","","","","","",15.5,50,"",65.5,"سولا قهوه 10 كيلو"]
[19,6222000909891,"سنة","قهوة 30 كيس * 12قطعه","كرتونة",null,null,null,null,null,null,null,null,null,null,null,null,null,null,null,null,0,"قهوة 5 ك",0,{"$f":"IFERROR(IF(INDEX($G$4:$U$94,MATCH(TRIM($W22),$D$4:$D$94,0),MATCH(Y$3,$G$3:$U$3,0))=0,\"\",INDEX($G$4:$U$94,MATCH(TRIM($W22),$D$4:$D$94,0),MATCH(Y$3,$G$3:$U$3,0))),\"\")","v":""},"","","","","","","","","","","","","","",0,"قهوة 5 ك"]
[20,"00744","سنة","زبدة 12 ع * 200 ق","كرتونة",null,null,null,null,null,null,null,null,null,null,null,null,null,64,null,null,64,"قهوة 30 كيس * 12قطعه",0,"","","","","","","","","","","","","","","",0,"قهوة 30 كيس * 12قطعه"]
[21,6222000901642,"سنة","سولا زبده 10 كيلو","كرتونة",null,null,null,null,null,null,null,null,null,null,null,null,null,null,18,null,18,"قهوة 30 كيس * 15قطعه",0,"","","","","","","","","","","","","","","",0,"قهوة 30 كيس * 15قطعه"]
[22,6222000912037,"سنة","زبدة 5 ك","كرتونة",null,null,null,null,null,null,null,null,null,null,null,null,null,null,null,null,0,"قهوة 30 كيس * 18 ق / 25 ق",0,"","","","","","","","","","","","","","","",0,"قهوة 30 كيس * 18 ق / 25 ق"]
[23,6222000917124,"سنة","زبدة بالشيكولاته 12 علبة * 240 ق","كرتونة",null,null,null,null,null,null,null,null,null,null,null,null,null,null,64,null,64,"قهوة 12 كيس * 55 ق",0,"","","","","","","","","","","","","","","",0,"قهوة 12 كيس * 55 ق"]
[24,6222000918732,"سنة","زبدة بالشيكولاته 10 ك","كرتونة",null,null,null,null,null,null,null,null,null,null,null,null,null,null,34,null,34,"قهوة 12 كيس * 80 ق / 90 ق",150,"","","","","","","","","","","",85,"",65,"",150,"قهوة 12 كيس * 80 ق / 90 ق"]
[25,6222000909808,"سنة","زبدة 12 كيس * 80 ق / 90 ق","كرتونة",null,null,null,null,null,null,null,null,null,null,null,null,null,null,null,null,0,"قهوة 12 كيس * 120 ق",0,"","","","","","","","","","","","","","","",0,"قهوة 12 كيس * 120 ق"]
[26,6222000907583,"سنة","زبدة 30 كيس * 18 ق / 25 ق","كرتونة",null,null,null,null,null,null,null,null,null,null,110,null,null,null,null,null,110,"قهوة 12 ع * 200 ق",0,"","","","","","","","","","","","","","","",0,"قهوة 12 ع * 200 ق"]
[27,6222000909884,"سنة","زبدة 30 كيس * 12قطعه","كرتونة",null,null,null,null,null,null,null,null,null,null,null,null,null,61,48,null,109,"قهوة 12 ع * 240 ق",27,"","","","","","","","","","","","","",27,"",27,"قهوة 12 ع * 240 ق"]
[28,6222000909884,"سنة","زبدة 30 كيس * 15 قطعه","كرتونة",null,null,null,null,null,null,null,null,null,null,null,null,null,null,null,null,0,"قهوه20كيس*150جرام",0,"","","","","","","","","","","","","","","",0,"قهوه20كيس*150جرام"]
[29,6222000905688,"سنة","زبدة 12 كيس * 55 قطعه","كرتونة",null,null,null,null,null,null,null,null,null,null,null,null,null,null,null,null,0,"سولا زبده 10 كيلو",18,"","","","","","","","","","","","","",18,"",18,"سولا زبده 10 كيلو"]
[30,171,"سنة","زبدة 12 كيس * 120 ق","كرتونة",null,null,null,null,null,null,null,null,null,null,null,null,null,41,null,45,86,"زبدة 5 ك",0,"","","","","","","","","","","","","","","",0,"زبدة 5 ك"]
[31,6222000910064,"سنة","زبدة 10 شنطة * 800 جم","كرتونة",null,null,null,null,null,null,null,null,null,null,null,null,null,null,null,null,0,"زبدة 30 كيس * 12قطعه",109,"","","","","","","","","","","","",61,48,"",109,"زبدة 30 كيس * 12قطعه"]
[32,6222000912501,"9 أشهر","عسلية 12 ع * 200 ق","كرتونة",null,null,null,null,null,null,null,null,null,null,null,null,null,null,null,null,0,"زبدة 30 كيس * 15 قطعه",0,"","","","","","","","","","","","","","","",0,"زبدة 30 كيس * 15 قطعه"]
[33,6222000912457,"9 أشهر","عسلية  5 ك","كرتونة",null,null,null,null,null,null,null,null,null,null,null,null,null,null,null,null,0,"زبدة 30 كيس * 18 ق / 25 ق",110,"","","","","","","","","",110,"","","","","",110,"زبدة 30 كيس * 18 ق / 25 ق"]
[34,6222000901611,"سنة","اكلير سايب 10 كيلو","كرتونة",null,null,null,null,null,null,null,null,null,null,null,null,null,43,55,null,98,"زبدة 12 كيس * 55 قطعه",0,"","","","","","","","","","","","","","","",0,"زبدة 12 كيس * 55 قطعه"]
[35,6222000909907,"سنة","اكلير  30 كيس * 9 ق / 10 ق","كرتونة",null,null,null,null,null,null,null,null,null,null,null,null,null,134,null,null,134,"زبدة 12 كيس * 80 ق / 90 ق",0,"","","","","","","","","","","","","","","",0,"زبدة 12 كيس * 80 ق / 90 ق"]
[36,6222000909907,"سنة","اكلير 30 كيس * 12 قطعه","كرتونة",null,null,null,null,null,null,null,null,null,null,null,null,null,null,null,null,0,"زبدة 12 كيس * 120 ق",86,{"$f":"IFERROR(IF(INDEX($G$4:$U$94,MATCH(TRIM($W39),$D$4:$D$94,0),MATCH(Y$3,$G$3:$U$3,0))=0,\"\",INDEX($G$4:$U$94,MATCH(TRIM($W39),$D$4:$D$94,0),MATCH(Y$3,$G$3:$U$3,0))),\"\")","v":""},"","","","","","","","","","","",41,"",45,86,"زبدة 12 كيس * 120 ق"]
[37,6222000911498,"سنة","اكلير سولا 5 كيلو ","كرتونة",null,null,null,null,null,null,null,null,null,null,null,null,null,null,null,null,0,"زبدة 12 ع * 200 ق",64,"","","","","","","","","","","","",64,"","",64,"زبدة 12 ع * 200 ق"]
[38,6222000912778,"سنة","اكلير 12كيس * 65 ق / 70 ق","كرتونة",null,null,null,null,null,null,null,null,null,null,null,null,null,null,null,null,0,"زبدة 10 شنطة * 800 جم",0,"","","","","","","","","","","","","","","",0,"زبدة 10 شنطة * 800 جم"]
[39,6222000912778,"سنة","اكلير 12 كيس * 100 قطعة","كرتونة",null,null,null,null,null,null,null,null,null,null,null,null,null,137,null,null,137,"زبدة بالشيكولاته 10 ك",34,"","","","","","","","","","","","","",34,"",34,"زبدة بالشيكولاته 10 ك"]
[40,6222000912822,"سنة","اكلير 30 كيس * 15 ق / 20 ق","كرتونة",null,null,null,null,null,null,null,null,null,null,null,null,null,null,null,null,0,"زبدة بالشيكولاته 30 كيس * 15 قطعه",0,"","","","","","","","","","","","","","","",0,"زبدة بالشيكولاته 30 كيس * 15 قطعه"]
[41,6222000905701,"سنة","اكلير 12كيس 45 ق","كرتونة",null,null,null,null,null,null,null,null,null,null,null,null,null,220,null,null,220,"زبدة بالشيكولاته 12 كيس * 55 قطعه",0,"","","","","","","","","","","","","","","",0,"زبدة بالشيكولاته 12 كيس * 55 قطعه"]
[42,6222000912532,"سنة","اكلير 12 علبة * 160 ق","كرتونة",null,null,null,null,null,null,null,null,null,null,null,null,null,null,null,null,0,"زبدة بالشيكولاته 12 كيس * 120 ق",0,"","","","","","","","","","","","","","","",0,"زبدة بالشيكولاته 12 كيس * 120 ق"]
[43,6222000912532,"سنة","اكلير 12 علبة 200 ق","كرتونة",null,null,null,null,null,null,null,null,null,null,null,null,null,35,null,null,35,"زبدة بالشيكولاته 12 علبة * 240 ق",64,"","","","","","","","","","","","","",64,"",64,"زبدة بالشيكولاته 12 علبة * 240 ق"]
[44,6222000901697,"سنة","طوفي 10 كجم","كرتونة",null,null,null,null,null,null,null,null,null,null,null,null,null,38,46,55,139,"عسلية  5 ك",0,"","","","","","","","","","","","","","","",0,"عسلية 5 ك"]
[45,6222000911481,"سنة","طوفي بردايس 5كيلو","كرتونة",null,null,null,null,null,null,null,null,null,null,null,null,null,null,null,null,0,"عسلية 12 ع * 200 ق",0,"","","","","","","","","","","","","","","",0,"عسلية 12 ع * 200 ق"]
[46,6222000908276,"سنة","طوفي 30 كيس * 25 قطعه","كرتونة",null,null,null,null,null,null,null,null,null,null,null,null,null,null,null,null,0,"اكلير سايب 10 كيلو",98,"","","","","","","","","","","","",43,55,"",98,"اكلير سايب 10 كيلو"]
[47,6222000908276,"سنة","طوفى 30 كيس * 28 ق","كرتونة",null,null,null,null,null,null,null,null,null,null,null,null,null,null,100,null,100,"اكلير  30 كيس * 9 ق / 10 ق",0,"","","","","","","","","","","","","","","",0,"اكلير 30 كيس * 9 ق / 10 ق"]
[48,6222000909921,"سنة","طوفي 30 كيس * 12قطعه","كرتونة",null,null,null,null,null,null,null,null,null,null,null,null,null,null,null,null,0,"اكلير 30 كيس * 12 قطعه",0,"","","","","","","","","","","","","","","",0,"اكلير 30 كيس * 12 قطعه"]
[49,6222000909839,"سنة","طوفي 12 كيس * 90 ق","كرتونة",null,null,null,null,null,null,null,null,null,null,null,null,null,null,11,null,11,"اكلير 30 كيس * 15 ق / 20 ق",0,"","","","","","","","","","","","","","","",0,"اكلير 30 كيس * 15 ق / 20 ق"]
[50,6222000905718,"سنة","طوفى 12كيس * 100 ق","كرتونة",null,null,null,null,null,null,null,null,null,null,null,null,null,null,97,null,97,"اكلير 12كيس 45 ق",220,"","","","","","","","","","","","",220,"","",220,"اكلير 12كيس 45 ق"]
[51,6222000908825,"سنة","طوفى 12 ع * 200 ق","كرتونة",null,null,null,null,null,null,null,null,null,null,null,null,null,null,null,null,0,"اكلير 12كيس * 65 ق / 70 ق",0,"","","","","","","","","","","","","","","",0,"اكلير 12كيس * 65 ق / 70 ق"]
[52,6222000912556,"سنة","طوفي 12 علبه * 240 ق","كرتونة",null,null,null,null,null,null,null,null,null,null,null,null,null,29,45,null,74,"اكلير 12 كيس * 100 قطعة",137,"","","","","","","","","","","","",137,"","",137,"اكلير 12 كيس * 100 قطعة"]
[53,6222000907637,"سنة","شيكولاته بوتيك 16 علبه * 50 قطعة","كرتونة",null,null,null,null,null,null,null,null,null,6,null,null,null,null,null,null,6,"اكلير 12 علبة * 160 ق",0,{"$f":"IFERROR(IF(INDEX($G$4:$U$94,MATCH(TRIM($W56),$D$4:$D$94,0),MATCH(Y$3,$G$3:$U$3,0))=0,\"\",INDEX($G$4:$U$94,MATCH(TRIM($W56),$D$4:$D$94,0),MATCH(Y$3,$G$3:$U$3,0))),\"\")","v":""},"","","","","","","","","","","","","","",0,"اكلير 12 علبة * 160 ق"]
[54,6222000903295,"سنة","شيكولاته بوتيك 6 علبه * 1.25 كيلو","كرتونة",null,null,null,null,null,null,null,null,null,null,null,null,null,null,null,null,0,"اكلير 12 علبة 200 ق",35,"","","","","","","","","","","","",35,"","",35,"اكلير 12 علبة 200 ق"]
[55,6222000912006,"سنة","شيكولاته بوتيك حليب 4 ك","كرتونة",null,null,null,null,null,null,null,null,null,null,null,null,null,null,null,null,0,"طوفي 10 كجم",139,"","","","","","","","","","","","",38,46,55,139,"طوفي 10 كجم"]
[56,6222000911993,"سنة","شيكولاته بوتيك كراميل 4 ك","كرتونة",null,null,null,null,null,null,null,null,null,null,null,null,null,null,null,null,0,"طوفي 30 كيس * 12قطعه",0,"","","","","","","","","","","","","","","",0,"طوفي 30 كيس * 12قطعه"]
[57,6222000912013,"سنة","شيكولاته بوتيك بندق 4 ك","كرتونة",null,null,null,null,null,null,null,null,null,null,null,null,null,null,null,null,0,"طوفي 30 كيس * 25 قطعه",0,"","","","","","","","","","","","","","","",0,"طوفي 30 كيس * 25 قطعه"]
[58,6222000964197,"سنة","شيكوهند سايب 10 كجم","كرتونة",null,null,null,null,null,null,null,null,null,null,null,null,null,null,null,null,0,"طوفى 30 كيس * 28 ق",100,"","","","","","","","","","","","","",100,"",100,"طوفى 30 كيس * 28 ق"]
[59,6222000906630,"سنة","سوفت شيكوهند 5 ك","كرتونة",null,null,null,null,null,null,null,null,null,null,null,null,null,null,40,null,40,"طوفي 12 كيس * 90 ق",11,"","","","","","","","","","","","","",11,"",11,"طوفي 12 كيس * 90 ق"]
[60,6222000612549,"سنة","شيكوهند سوفت 12 ع * 100 ق","كرتونة",null,null,null,null,null,null,null,null,null,null,null,null,null,null,null,null,0,"طوفى 12كيس * 100 ق",97,"","","","","","","","","","","","","",97,"",97,"طوفى 12كيس * 100 ق"]
[61,6222000915243,"سنة","بار شيكوهند 3 ك","كرتونة",null,null,null,null,null,null,null,null,null,null,null,null,null,null,null,50,50,"طوفى 12 ع * 200 ق",0,"","","","","","","","","","","","","","","",0,"طوفى 12 ع * 200 ق"]
[62,6222000902519,"9 أشهر","ويفر ايليت  مغطس بنى 12 *12","كرتونة",null,null,null,null,null,null,null,null,null,null,null,null,null,null,null,null,0,"طوفي 12 علبه * 240 ق",74,"","","","","","","","","","","","",29,45,"",74,"طوفي 12 علبه * 240 ق"]
[63,6222000902557,"9 أشهر","ويفر ايليت مغطس ابيض  12 * 12","كرتونة",null,null,null,null,null,null,null,null,null,null,null,null,null,null,null,null,0,"طوفي شيكولاته 12 كيس * 25 ق",0,"","","","","","","","","","","","","","","",0,"طوفي شيكولاته 12 كيس * 25 ق"]
[64,6222000902564,"9 أشهر"," ويفر ايليت مغطس فراولة 12*12","كرتونة",null,null,null,null,null,null,null,null,null,null,null,null,null,null,null,null,0,"طوفي شيكولاته 12 علبة * 100 ق",0,"","","","","","","","","","","","","","","",0,"طوفي شيكولاته 12 علبة * 100 ق"]
[65,6222000910200,"9 أشهر","ايليت ماكس سادة ش 12 باكو 6 قطع","كرتونة",null,null,null,null,null,null,null,null,null,null,null,null,null,263,null,null,263,"طوفي زبدة 12 كيس * 25 ق",0,"","","","","","","","","","","","","","","",0,"طوفي زبدة 12 كيس * 25 ق"]
[66,6222000910514,"9 أشهر","ايليت  ماكس سادة فانيليا 12 باكو * 6 قطع","كرتونة",null,null,null,null,null,null,null,null,null,null,null,null,null,215,null,null,{"$f":"SUM(G69:U69)","v":215},"طوفي زبدة 12 علبة * 100 ق",{"$f":"AN69","v":0},"","","","","","","","","","","","","","","",{"$f":"SUM(Y69:AM69)","v":0},{"$f":"TRIM(CLEAN(SUBSTITUTE(SUBSTITUTE(SUBSTITUTE(W69,CHAR(10),\"\"),CHAR(13),\"\"),CHAR(9),\"\")))","v":"طوفي زبدة 12 علبة * 100 ق"}]
[67,6222000909976,"9 أشهر","ويفر مربع  3 كيلو ايليت  ابيض","كرتونة",null,null,null,null,null,null,null,null,null,null,null,74,null,null,50,null,124,"شيكولاته بوتيك 16 علبه * 50 قطعة",6,"","","","","","","","",6,"","","","","","",6,"شيكولاته بوتيك 16 علبه * 50 قطعة"]
[68,6222000909983,"9 أشهر","ويفر مربع  3 كيلو ايليت  شيكولاته","كرتونة",null,null,null,null,null,null,null,null,null,null,null,null,null,null,null,null,0,"شيكولاته بوتيك 6 علبه * 1.25 كيلو",0,"","","","","","","","","","","","","","","",0,"شيكولاته بوتيك 6 علبه * 1.25 كيلو"]
[69,6222000909969,"9 أشهر","ويفر مربع  3 كيلو ايليت  فراوله","كرتونة",null,null,null,null,null,null,null,null,null,null,null,69,null,null,50,null,119,"شيكولاته بوتيك حليب 4 ك",0,"","","","","","","","","","","","","","","",0,"شيكولاته بوتيك حليب 4 ك"]
[70,6888000909953,"9 أشهر","ويفر مربع 3 كيلو ايليت جوز هند","كرتونة",null,null,null,null,null,null,null,null,null,null,null,null,null,null,null,null,0,"شيكولاته بوتيك كراميل 4 ك",0,{"$f":"IFERROR(IF(INDEX($G$4:$U$94,MATCH(TRIM($W73),$D$4:$D$94,0),MATCH(Y$3,$G$3:$U$3,0))=0,\"\",INDEX($G$4:$U$94,MATCH(TRIM($W73),$D$4:$D$94,0),MATCH(Y$3,$G$3:$U$3,0))),\"\")","v":""},"","","","","","","","","","","","","","",0,"شيكولاته بوتيك كراميل 4 ك"]
[71,622200097116,"9 أشهر","ويفر فرحه 5 كيلو","كرتونة",null,null,null,null,null,null,null,null,null,null,null,36,null,null,null,null,36,"شيكولاته بوتيك بندق 4 ك",0,"","","","","","","","","","","","","","","",0,"شيكولاته بوتيك بندق 4 ك"]
[72,6222000912372,"9 أشهر","ويفر ايليت مربع بايتس 3 ك بني","كرتونة",null,null,null,null,null,null,null,null,null,null,null,null,null,null,null,null,0,"شيكوهند سايب 10 كجم",0,"","","","","","","","","","","","","","","",0,"شيكوهند سايب 10 كجم"]
[73,6222000912488,"9 أشهر","بسكوت اكشن سادة شاي 6 ع * 12 ق","كرتونة",null,null,null,null,null,null,null,null,null,null,null,null,null,null,null,null,0,"سوفت شيكوهند 5 ك",40,"","","","","","","","","","","","","",40,"",40,"سوفت شيكوهند 5 ك"]
[74,6222000914383,"9 أشهر","بسكوت اكشن سادة شاي 6 ع * 12 ق ( نباتى )","كرتونة",null,null,null,null,null,null,null,null,null,null,null,null,null,null,null,null,0,"شيكوهند سوفت 12 كيس * 28 ق",0,"","","","","","","","","","","","","","","",0,"شيكوهند سوفت 12 كيس * 28 ق"]
[75,6222000916165,"9 أشهر","ويفر اكشن مغطس بنى 12ع * 12 ق ( 5 جنية )","كرتونة",null,null,null,null,null,null,null,null,null,null,28,null,null,null,null,null,28,"شيكوهند سوفت 12 كيس * 60 ق",0,"","","","","","","","","","","","","","","",0,"شيكوهند سوفت 12 كيس * 60 ق"]
[76,6222000916172,"9 أشهر","ويفر اكشن مغطس أبيض 12ع * 12 ق ( 5 جنية )","كرتونة",null,null,null,null,null,null,null,null,null,null,null,null,null,null,null,null,0,"شيكوهند سوفت 12 ع * 100 ق",0,"","","","","","","","","","","","","","","",0,"شيكوهند سوفت 12 ع * 100 ق"]
[77,2810,"9 أشهر","ويفر اكشن مغطس أبيض 8ع * 12 ق ( 5 جنية )","كرتونة",null,null,null,null,null,null,null,null,null,null,null,null,null,null,null,null,0,"بار شيكوهند 3 ك",50,"","","","","","","","","","","","","","",50,50,"بار شيكوهند 3 ك"]
[78,6222000912365,"9 أشهر","بايتس  مربع 6ع * 50ق  بنى","كرتونة",null,null,null,null,null,null,null,null,null,null,29,null,null,null,null,null,29,"ويفر ايليت  مغطس بنى 12 *12",0,"","","","","","","","","","","","","","","",0,"ويفر ايليت مغطس بنى 12 *12"]
[79,6222000902083,"9 أشهر","بايتس مربع 6 ع * 50 ق ابيض ","كرتونة",null,null,null,null,null,null,null,null,null,null,null,null,null,null,null,null,0,"ويفر ايليت مغطس ابيض  12 * 12",0,"","","","","","","","","","","","","","","",0,"ويفر ايليت مغطس ابيض 12 * 12"]
[80,6222000913904,"9 أشهر","بايتس مربع 6 ع * 50 ق فراولة ","كرتونة",null,null,null,null,null,null,null,null,null,null,null,null,null,null,null,null,0," ويفر ايليت مغطس فراولة 12*12",0,"","","","","","","","","","","","","","","",0,"ويفر ايليت مغطس فراولة 12*12"]
[81,"6222000916738","9 أشهر","ويفر بوتيك مربع 9 كيس * 500 جم","كرتونة",null,null,null,null,null,null,null,null,null,null,null,null,null,null,null,null,0,"ايليت ماكس سادة ش 12 باكو 6 قطع",263,"","","","","","","","","","","","",263,"","",263,"ايليت ماكس سادة ش 12 باكو 6 قطع"]
[82,"002797","4 أشهر","كورن عائلي 15 كيس","كرتونة",null,null,null,null,null,null,null,null,null,null,null,null,null,211,null,null,{"$f":"SUM(G85:U85)","v":211},"ايليت  ماكس سادة فانيليا 12 باكو * 6 قطع",0,"","","","","","","","","","","","","","","",0,"ايليت ماكس سادة فانيليا 12 باكو * 6 قطع"]
[83,"002796","6 أشهر","فاير فنجرز 15 كيس","كرتونة",null,null,null,null,null,null,null,null,null,null,null,null,null,254,null,null,254,"ويفر مربع  3 كيلو ايليت  ابيض",0,"","","","","","","","","","","","","","","",0,"ويفر مربع 3 كيلو ايليت ابيض"]
[84,"001766","6 أشهر","اسبيشيال أطعم  15 كيس","كرتونة",null,null,null,null,null,null,null,null,null,null,null,213,null,null,null,null,213,"ويفر مربع  3 كيلو ايليت  شيكولاته",0,"","","","","","","","","","","","","","","",0,"ويفر مربع 3 كيلو ايليت شيكولاته"]
[85,"EG-670026743-3002","6 أشهر","شيل أوت شيبس 15 كيس سعر الكيس 10 جنية","كرتونة",null,null,null,null,null,null,null,null,null,null,null,2,null,187,null,null,189,"ويفر مربع  3 كيلو ايليت  فراوله",0,"","","","","","","","","","","","","","","",0,"ويفر مربع 3 كيلو ايليت فراوله"]
[86,"6224001574221","سنة","زى كولا مشروب غازى 275 حلى","كرتونة",null,null,null,null,null,null,null,null,null,null,254,null,null,700,null,null,954,"ويفر مربع 3 كيلو ايليت جوز هند",0,"","","","","","","","","","","","","","","",0,"ويفر مربع 3 كيلو ايليت جوز هند"]
[87,"2798","9 أشهر","اهلا بالعيد 8 كيس * 660 جم","كرتونة",null,null,null,null,null,null,null,null,null,null,null,null,null,null,null,null,0,"ويفر فرحه 5 كيلو",36,{"$f":"IFERROR(IF(INDEX($G$4:$U$94,MATCH(TRIM($W90),$D$4:$D$94,0),MATCH(Y$3,$G$3:$U$3,0))=0,\"\",INDEX($G$4:$U$94,MATCH(TRIM($W90),$D$4:$D$94,0),MATCH(Y$3,$G$3:$U$3,0))),\"\")","v":""},"","","","","","","","","",36,"","","","",36,"ويفر فرحه 5 كيلو"]
[88,"00695","سنة","قهوه20كيس*150جرام","كرتونة",null,null,null,null,null,null,null,null,null,null,null,null,null,null,null,null,0,"ويفر ايليت مربع بايتس 3 ك بني",0,"","","","","","","","","","","","","","","",0,"ويفر ايليت مربع بايتس 3 ك بني"]
[89,"6222000912518","سنتان","نعناع 12 ع * 240 ق","كرتونة",null,null,null,null,null,null,null,null,null,null,null,null,null,null,null,null,0,"بسكوت اكشن سادة شاي 6 ع * 12 ق",0,"","","","","","","","","","","","","","","",0,"بسكوت اكشن سادة شاي 6 ع * 12 ق"]
[90,"002827",null,"سولا فواكة فلوباك 10 ك","كرتونة",null,null,null,null,null,null,null,null,null,null,null,null,null,null,55,null,55,"بسكوت اكشن سادة شاي 6 ع * 12 ق ( نباتى )",0,"","","","","","","","","","","","","","","",0,"بسكوت اكشن سادة شاي 6 ع * 12 ق ( نباتى )"]
[91,null,null,null,null,null,null,null,null,null,null,null,null,null,null,null,null,null,null,null,null,0,"ويفر اكشن مغطس بنى 12ع * 12 ق ( 5 جنية )",28,"","","","","","","","","",28,"","","","","",28,"ويفر اكشن مغطس بنى 12ع * 12 ق ( 5 جنية )"]
[92,null,null,null,null,null,null,null,null,null,null,null,null,null,null,null,null,null,null,null,null,0,"ويفر اكشن مغطس أبيض 12ع * 12 ق ( 5 جنية )",0,"","","","","","","","","","","","","","","",0,"ويفر اكشن مغطس أبيض 12ع * 12 ق ( 5 جنية )"]
[93,null,null,null,null,null,null,null,null,null,null,null,null,null,null,null,null,null,null,null,null,0,"ويفر اكشن مغطس أبيض 8ع * 12 ق ( 5 جنية )",0,"","","","","","","","","","","","","","","",0,"ويفر اكشن مغطس أبيض 8ع * 12 ق ( 5 جنية )"]
[94,null,null,null,null,null,null,null,null,null,null,null,null,null,null,null,null,null,null,null,null,0,"بايتس  مربع 6ع * 50ق  بنى",0,"","","","","","","","","","","","","","","",0,"بايتس مربع 6ع * 50ق بنى"]
[95,null,null,null,null,null,null,null,null,null,null,null,null,null,null,null,null,null,null,null,null,0,"بايتس مربع 6 ع * 50 ق ابيض ",0,"","","","","","","","","","","","","","","",0,"بايتس مربع 6 ع * 50 ق ابيض"]
[96,null,null,null,null,null,null,null,null,null,null,null,null,null,null,null,null,null,null,null,null,0,"ويفر  4 علبه * 50 قطعه ابيض بايتس",0,"","","","","","","","","","","","","","","",0,"ويفر 4 علبه * 50 قطعه ابيض بايتس"]
[97,null,null,null,null,null,null,null,null,null,null,null,null,null,null,null,null,null,null,null,null,0,"ويفر  5 علبه * 50 قطعه ابيض بايتس",0,"","","","","","","","","","","","","","","",0,"ويفر 5 علبه * 50 قطعه ابيض بايتس"]
[98,null,null,null,null,null,null,null,null,null,null,null,null,null,null,null,null,null,null,null,null,0,"ويفر  7 علبه * 50 قطعه ابيض بايتس",0,"","","","","","","","","","","","","","","",0,"ويفر 7 علبه * 50 قطعه ابيض بايتس"]
[99,null,null,null,null,null,null,null,null,null,null,null,null,null,null,null,null,null,null,null,null,0,"بايتس مربع 6 ع * 50 ق فراولة ",0,"","","","","","","","","","","","","","","",0,"بايتس مربع 6 ع * 50 ق فراولة"]
[100,null,null,null,null,null,null,null,null,null,null,null,null,null,null,null,null,null,null,null,null,0,"ويفر  4 علبه * 50 قطعه فراولة بايتس",0,"","","","","","","","","","","","","","","",0,"ويفر 4 علبه * 50 قطعه فراولة بايتس"]
[101,null,null,null,null,null,null,null,null,null,null,null,null,null,null,null,null,null,null,null,null,0,"ويفر بوتيك مربع 9 كيس * 500 جم",0,"","","","","","","","","","","","","","","",0,"ويفر بوتيك مربع 9 كيس * 500 جم"]
[102,null,null,null,null,null,null,null,null,null,null,null,null,null,null,null,null,null,null,null,null,0,"ايليت عرض خاص ",0,"","","","","","","","","","","","","","","",0,"ايليت عرض خاص"]
[103,null,null,null,null,null,null,null,null,null,null,null,null,null,null,null,null,null,null,null,null,0,"اهلا بالعيد 8 كيس * 660 جم",0,"","","","","","","","","","","","","","","",0,"اهلا بالعيد 8 كيس * 660 جم"]
[104,null,null,null,null,null,null,null,null,null,null,null,null,null,null,null,null,null,null,null,null,0,"كورن عائلي 15 كيس",211,{"$f":"IFERROR(IF(INDEX($G$4:$U$94,MATCH(TRIM($W107),$D$4:$D$94,0),MATCH(Y$3,$G$3:$U$3,0))=0,\"\",INDEX($G$4:$U$94,MATCH(TRIM($W107),$D$4:$D$94,0),MATCH(Y$3,$G$3:$U$3,0))),\"\")","v":""},"","","","","","","","","","","",211,"","",211,"كورن عائلي 15 كيس"]
[105,null,null,null,null,null,null,null,null,null,null,null,null,null,null,null,null,null,null,null,null,0,"فاير فنجرز 15 كيس",254,"","","","","","","","","","","","",254,"","",254,"فاير فنجرز 15 كيس"]
[106,null,null,null,null,null,null,null,null,null,null,null,null,null,null,null,null,null,null,null,null,0,"اسبيشيال أطعم  15 كيس",0,"","","","","","","","","","","","","","","",0,"اسبيشيال أطعم 15 كيس"]
[107,null,null,null,null,null,null,null,null,null,null,null,null,null,null,null,null,null,null,null,null,0,"شيل أوت شيبس 15 كيس سعر الكيس 10 جنية",189,"","","","","","","","","","",2,"",187,"","",189,"شيل أوت شيبس 15 كيس سعر الكيس 10 جنية"]
[null,null,null,null,null,null,null,null,null,null,null,null,null,null,null,null,null,null,null,null,null,0,"زى كولا مشروب غازى 275 حلى",954,"","","","","","","","","",254,"","",700,"","",954,"زى كولا مشروب غازى 275 حلى"]
[108,null,null,null,null,null,null,null,null,null,null,null,null,null,null,null,null,null,null,null,null,0,"زبدة 12 علبة * 240 ق",0,"","","","","","","","","","","","","","","",0,"زبدة 12 علبة * 240 ق"]
["الاجمالى",null,null,null,null,{"$f":"SUM(F4:F112)","v":0},0,0,0,0,0,0,0,59,6,421,416,85,2723.5,1012,{"$f":"SUM(U4:U112)","v":405},{"$f":"SUM(V4:V111)","v":5127.5},null,{"$f":"SUM(X4:X112)","v":4091.5},{"$f":"SUM(Y4:Y112)","v":0},{"$f":"SUM(Z4:Z112)","v":0},0,0,0,0,0,59,6,392,60,85,2322.5,862,305,{"$f":"SUM(AN4:AN112)","v":4091.5}]
[]
[null,null,null,null,null,null,null,null,null,null,null,null,null,null,null,null,null,null,null,null,null,null,null,null,null,null,null,null,null,null,null,null,null,{"$f":"P113-AH113","v":29},{"$f":"Q113-AI113","v":356},null,{"$f":"S113-AK113","v":401},{"$f":"T113-AL113","v":150}]
[]
[null,null,null,null,null,null,null,null,null,null,null,null,null,null,null,null,null,null,null,null,null,{"$f":"V113-AN113","v":1036}]

{"sheet":"الرصيد 3 (3)","index":7,"n_rows":117,"n_cols":41,"rows_kept":117,"cut":false,"hidden":false,"merged":[[1,22,1,38],[1,39,2,39],[112,0,112,4],[0,0,0,21],[0,22,0,38],[1,0,2,0],[1,1,2,1],[1,2,2,2],[1,3,2,3],[1,4,2,4],[1,5,2,5],[1,11,1,19],[1,21,2,21]]}
["رصيد توكيل (   توكيل نجع حمادى    ) عن يوم (   الخميس 9/13  )",null,null,null,null,null,null,null,null,null,null,null,null,null,null,null,null,null,null,null,null,null,"شيت به معادلات عادية "]
["م","الكود","مدة \nالصلاحية","الصنف","الوحدة","الرصيد\n الدفترى\nبالكرتونة\n ",null,null,null,null,null,null,null,null,null,null,null,null,null,null,null,"الرصيد\n الفعلى\nبالكرتونة\n","تنسيق الارقام مع اسم الصنف والتاريخ المقابل لها",null,null,null,null,null,null,null,null,null,null,null,null,null,null,null,null,"الرصيد\n الفعلى\nبالكرتونة\n"]
[null,null,null,null,null,null,"2024-07-01","2024-08-01","2024-09-01","2024-10-01","2024-11-01","2024-12-01","2025-01-01","2025-02-01","2025-03-01","2025-04-01","2025-05-01","2025-06-01","2025-07-01","2025-08-01","2025-09-01",null,"اسم الصنف","الرصيد","2024-07-01","2024-08-01","2024-09-01","2024-10-01","2024-11-01","2024-12-01","2025-01-01","2025-02-01","2025-03-01","2025-04-01","2025-05-01","2025-06-01","2025-07-01","2025-08-01","2025-09-01",null,{"$f":"IFERROR(IF(INDEX($G$4:$U$94,MATCH(SUBSTITUTE(TRIM($W4),CHAR(160),\" \"),SUBSTITUTE(TRIM($D$4:$D$94),CHAR(160),\" \"),0),MATCH(Y$3,$G$3:$U$3,0))=0,\"\",INDEX($G$4:$U$94,MATCH(SUBSTITUTE(TRIM($W4),CHAR(160),\" \"),SUBSTITUTE(TRIM($D$4:$D$94),CHAR(160),\" \"),0),MATCH(Y$3,$G$3:$U$3,0))),\"\")","v":""}]
[1,6222000901529,"سنتان","سوبر فينا 10 كيلو","كرتونة",null,null,null,null,null,null,null,null,null,null,null,null,null,52,50,100,{"$f":"SUM(G4:U4)","v":202},"سوبر فينا 10 كيلو",{"$f":"AN4","v":0},{"$f":"IFERROR(INDEX($G$4:$U$94,MATCH(TRUE,EXACT(TRIM(CLEAN(SUBSTITUTE(SUBSTITUTE(SUBSTITUTE($W4,CHAR(10),\"\"),CHAR(13),\"\"),CHAR(9),\"\"))),TRIM(CLEAN(SUBSTITUTE(SUBSTITUTE(SUBSTITUTE($D$4:$D$94,CHAR(10),\"\"),CHAR(13),\"\"),CHAR(9),\"\")))),0),MATCH(Y$3,$G$3:$U$3,0)),\"\")","v":""},{"$f":"IFERROR(INDEX($G$4:$U$94,MATCH(TRUE,EXACT(TRIM(CLEAN(SUBSTITUTE(SUBSTITUTE(SUBSTITUTE($W4,CHAR(10),\"\"),CHAR(13),\"\"),CHAR(9),\"\"))),TRIM(CLEAN(SUBSTITUTE(SUBSTITUTE(SUBSTITUTE($D$4:$D$94,CHAR(10),\"\"),CHAR(13),\"\"),CHAR(9),\"\")))),0),MATCH(Z$3,$G$3:$U$3,0)),\"\")","v":""},"","","","","","","","","","","","","",{"$f":"SUM(Y4:AM4)","v":0},{"$f":"TRIM(CLEAN(SUBSTITUTE(SUBSTITUTE(SUBSTITUTE(W4,CHAR(10),\"\"),CHAR(13),\"\"),CHAR(9),\"\")))","v":"سوبر فينا 10 كيلو"}]
[2,6222000901536,"سنتان","سوبر فينا 10 كيلو نعناع","كرتونة",null,null,null,null,null,null,null,null,null,null,null,null,null,24,null,155,{"$f":"SUM(G5:U5)","v":179},"سولا فواكة فلوباك 10 ك",{"$f":"AN5","v":55},{"$f":"IFERROR(IF(INDEX($G$4:$U$94,MATCH(TRIM($W5),$D$4:$D$94,0),MATCH(Y$3,$G$3:$U$3,0))=0,\"\",INDEX($G$4:$U$94,MATCH(TRIM($W5),$D$4:$D$94,0),MATCH(Y$3,$G$3:$U$3,0))),\"\")","v":""},"","","","","","","","","","","","",55,"",{"$f":"SUM(Y5:AM5)","v":55},{"$f":"TRIM(CLEAN(SUBSTITUTE(SUBSTITUTE(SUBSTITUTE(W5,CHAR(10),\"\"),CHAR(13),\"\"),CHAR(9),\"\")))","v":"سولا فواكة فلوباك 10 ك"}]
[3,6222000911733,"سنتان","نعناع 12كيس 50 ق 4جم","كرتونة",null,null,null,null,null,null,null,null,null,null,null,null,null,null,3,null,3,"سولا فواكة 5 ك",0,"","","","","","","","","","","","","","","",0,"سولا فواكة 5 ك"]
[4,6222000911764,"سنتان","سولا فواكه 12 كيس * 50 ق","كرتونة",null,null,null,null,null,null,null,null,null,null,null,null,null,null,null,null,0,"سولا فواكه 30 كيس * 28 ق",0,"","","","","","","","","","","","","","","",0,"سولا فواكه 30 كيس * 28 ق"]
[5,"6222000917773","سنتان","سولا فواكه 30 كيس * 28 ق","كرتونة",null,null,null,null,null,null,null,null,null,null,null,null,null,null,null,null,0,"سولا فواكه 12 كيس * 50 ق",0,"","","","","","","","","","","","","","","",0,"سولا فواكه 12 كيس * 50 ق"]
[6,"6222000917780","سنتان","سولا فواكه 12 كيس * 100 ق","كرتونة",null,null,null,null,null,null,null,null,null,null,null,null,null,null,104,null,104,"سولا فواكه 12 كيس * 100 ق",104,"","","","","","","","","","","","","",104,"",104,"سولا فواكه 12 كيس * 100 ق"]
[7,6222000916295,"سنتان","سولا فواكة 6 كيس * 800 جم","كرتونة",null,null,null,null,null,null,null,null,null,null,null,null,null,null,null,null,0,"سولا ف 12 ع * 200 ق",0,"","","","","","","","","","","","","","","",0,"سولا ف 12 ع * 200 ق"]
[8,6222000912525,"سنتان","سولا ف 12 ع * 200 ق","كرتونة",null,null,null,null,null,null,null,null,null,null,null,null,null,null,null,null,0,"سولا ف 12 ع * 240 ق",0,"","","","","","","","","","","","","","","",0,"سولا ف 12 ع * 240 ق"]
[9,"6222000912518","سنتان","سولا نعناع 12 ع * 200 ق","كرتونة",null,null,null,null,null,null,null,null,null,null,null,22,null,null,null,null,22,"سولا فواكة 6 كيس * 800 جم",0,"","","","","","","","","","","","","","","",0,"سولا فواكة 6 كيس * 800 جم"]
[10,6222000912525,"سنتان","سولا ف 12 ع * 240 ق","كرتونة",null,null,null,null,null,null,null,null,null,null,null,null,null,null,null,null,0,"سوبر فينا 10 كيلو نعناع",179,"","","","","","","","","","","","",24,"",155,179,"سوبر فينا 10 كيلو نعناع"]
[11,"6222000908566","سنتان","سولا فواكة 5 ك","كرتونة",null,null,null,null,null,null,null,null,null,null,null,null,null,null,null,null,0,"سولا نعناع فلوباك 10 ك",0,"","","","","","","","","","","","","","","",0,"سولا نعناع فلوباك 10 ك"]
[12,"6222000908573","سنتان","سولا نعناع 5 ك","كرتونة",null,null,null,null,null,null,null,null,59,null,null,null,null,null,null,null,59,"سولا نعناع 5 ك",59,"","","","","","","",59,"","","","","","","",59,"سولا نعناع 5 ك"]
[13,"00743","سنة","قهوة 12 ع * 200 ق","كرتونة",null,null,null,null,null,null,null,null,null,null,null,null,null,null,null,null,0,"سولا نعناع 30 كيس * 28 ق",0,"","","","","","","","","","","","","","","",0,"سولا نعناع 30 كيس * 28 ق"]
[14,"6222000917452","سنة","قهوة 12 ع * 240 ق","كرتونة",null,null,null,null,null,null,null,null,null,null,null,null,null,null,27,null,27,"نعناع 12كيس 50 ق 4جم",3,"","","","","","","","","","","","","",3,"",3,"نعناع 12كيس 50 ق 4جم"]
[15,6222000901758,"سنة","سولا قهوه 10 كيلو","كرتونة",null,null,null,null,null,null,null,null,null,null,null,null,null,15.5,50,null,65.5,"سولا نعناع 12 كيس * 100 ق",0,"","","","","","","","","","","","","","","",0,"سولا نعناع 12 كيس * 100 ق"]
[16,6222000912020,"سنة","قهوة 5 ك","كرتونة",null,null,null,null,null,null,null,null,null,null,null,null,null,null,null,null,0,"سولا نعناع 12 ع * 200 ق",22,"","","","","","","","","","",22,"","","","",22,"سولا نعناع 12 ع * 200 ق"]
[17,6222000909815,"سنة","قهوة 12 كيس * 80 ق / 90 ق","كرتونة",null,null,null,null,null,null,null,null,null,null,null,null,85,null,65,null,150,"نعناع 12 ع * 240 ق",0,"","","","","","","","","","","","","","","",0,"نعناع 12 ع * 240 ق"]
[18,6222000908610,"سنة","قهوة 30 كيس * 18 ق / 25 ق","كرتونة",null,null,null,null,null,null,null,null,null,null,null,null,null,null,null,null,0,"سولا قهوه 10 كيلو",65.5,"","","","","","","","","","","","",15.5,50,"",65.5,"سولا قهوه 10 كيلو"]
[19,6222000909891,"سنة","قهوة 30 كيس * 12قطعه","كرتونة",null,null,null,null,null,null,null,null,null,null,null,null,null,null,null,null,0,"قهوة 5 ك",0,{"$f":"IFERROR(IF(INDEX($G$4:$U$94,MATCH(TRIM($W22),$D$4:$D$94,0),MATCH(Y$3,$G$3:$U$3,0))=0,\"\",INDEX($G$4:$U$94,MATCH(TRIM($W22),$D$4:$D$94,0),MATCH(Y$3,$G$3:$U$3,0))),\"\")","v":""},"","","","","","","","","","","","","","",0,"قهوة 5 ك"]
[20,"00744","سنة","زبدة 12 ع * 200 ق","كرتونة",null,null,null,null,null,null,null,null,null,null,null,null,null,64,null,null,64,"قهوة 30 كيس * 12قطعه",0,"","","","","","","","","","","","","","","",0,"قهوة 30 كيس * 12قطعه"]
[21,6222000901642,"سنة","سولا زبده 10 كيلو","كرتونة",null,null,null,null,null,null,null,null,null,null,null,null,null,null,18,null,18,"قهوة 30 كيس * 15قطعه",0,"","","","","","","","","","","","","","","",0,"قهوة 30 كيس * 15قطعه"]
[22,6222000912037,"سنة","زبدة 5 ك","كرتونة",null,null,null,null,null,null,null,null,null,null,null,null,null,null,null,null,0,"قهوة 30 كيس * 18 ق / 25 ق",0,"","","","","","","","","","","","","","","",0,"قهوة 30 كيس * 18 ق / 25 ق"]
[23,6222000917124,"سنة","زبدة بالشيكولاته 12 علبة * 240 ق","كرتونة",null,null,null,null,null,null,null,null,null,null,null,null,null,null,64,null,64,"قهوة 12 كيس * 55 ق",0,"","","","","","","","","","","","","","","",0,"قهوة 12 كيس * 55 ق"]
[24,6222000918732,"سنة","زبدة بالشيكولاته 10 ك","كرتونة",null,null,null,null,null,null,null,null,null,null,null,null,null,null,34,null,34,"قهوة 12 كيس * 80 ق / 90 ق",150,"","","","","","","","","","","",85,"",65,"",150,"قهوة 12 كيس * 80 ق / 90 ق"]
[25,6222000909808,"سنة","زبدة 12 كيس * 80 ق / 90 ق","كرتونة",null,null,null,null,null,null,null,null,null,null,null,null,null,null,null,null,0,"قهوة 12 كيس * 120 ق",0,"","","","","","","","","","","","","","","",0,"قهوة 12 كيس * 120 ق"]
[26,6222000907583,"سنة","زبدة 30 كيس * 18 ق / 25 ق","كرتونة",null,null,null,null,null,null,null,null,null,null,110,null,null,null,null,null,110,"قهوة 12 ع * 200 ق",0,"","","","","","","","","","","","","","","",0,"قهوة 12 ع * 200 ق"]
[27,6222000909884,"سنة","زبدة 30 كيس * 12قطعه","كرتونة",null,null,null,null,null,null,null,null,null,null,null,null,null,61,48,null,109,"قهوة 12 ع * 240 ق",27,"","","","","","","","","","","","","",27,"",27,"قهوة 12 ع * 240 ق"]
[28,6222000909884,"سنة","زبدة 30 كيس * 15 قطعه","كرتونة",null,null,null,null,null,null,null,null,null,null,null,null,null,null,null,null,0,"قهوه20كيس*150جرام",0,"","","","","","","","","","","","","","","",0,"قهوه20كيس*150جرام"]
[29,6222000905688,"سنة","زبدة 12 كيس * 55 قطعه","كرتونة",null,null,null,null,null,null,null,null,null,null,null,null,null,null,null,null,0,"سولا زبده 10 كيلو",18,"","","","","","","","","","","","","",18,"",18,"سولا زبده 10 كيلو"]
[30,171,"سنة","زبدة 12 كيس * 120 ق","كرتونة",null,null,null,null,null,null,null,null,null,null,null,null,null,41,null,45,86,"زبدة 5 ك",0,"","","","","","","","","","","","","","","",0,"زبدة 5 ك"]
[31,6222000910064,"سنة","زبدة 10 شنطة * 800 جم","كرتونة",null,null,null,null,null,null,null,null,null,null,null,null,null,null,null,null,0,"زبدة 30 كيس * 12قطعه",109,"","","","","","","","","","","","",61,48,"",109,"زبدة 30 كيس * 12قطعه"]
[32,6222000912501,"9 أشهر","عسلية 12 ع * 200 ق","كرتونة",null,null,null,null,null,null,null,null,null,null,null,null,null,null,null,null,0,"زبدة 30 كيس * 15 قطعه",0,"","","","","","","","","","","","","","","",0,"زبدة 30 كيس * 15 قطعه"]
[33,6222000912457,"9 أشهر","عسلية  5 ك","كرتونة",null,null,null,null,null,null,null,null,null,null,null,null,null,null,null,null,0,"زبدة 30 كيس * 18 ق / 25 ق",110,"","","","","","","","","",110,"","","","","",110,"زبدة 30 كيس * 18 ق / 25 ق"]
[34,6222000901611,"سنة","اكلير سايب 10 كيلو","كرتونة",null,null,null,null,null,null,null,null,null,null,null,null,null,43,55,null,98,"زبدة 12 كيس * 55 قطعه",0,"","","","","","","","","","","","","","","",0,"زبدة 12 كيس * 55 قطعه"]
[35,6222000909907,"سنة","اكلير  30 كيس * 9 ق / 10 ق","كرتونة",null,null,null,null,null,null,null,null,null,null,null,null,null,134,null,null,134,"زبدة 12 كيس * 80 ق / 90 ق",0,"","","","","","","","","","","","","","","",0,"زبدة 12 كيس * 80 ق / 90 ق"]
[36,6222000909907,"سنة","اكلير 30 كيس * 12 قطعه","كرتونة",null,null,null,null,null,null,null,null,null,null,null,null,null,null,null,null,0,"زبدة 12 كيس * 120 ق",86,{"$f":"IFERROR(IF(INDEX($G$4:$U$94,MATCH(TRIM($W39),$D$4:$D$94,0),MATCH(Y$3,$G$3:$U$3,0))=0,\"\",INDEX($G$4:$U$94,MATCH(TRIM($W39),$D$4:$D$94,0),MATCH(Y$3,$G$3:$U$3,0))),\"\")","v":""},"","","","","","","","","","","",41,"",45,86,"زبدة 12 كيس * 120 ق"]
[37,6222000911498,"سنة","اكلير سولا 5 كيلو ","كرتونة",null,null,null,null,null,null,null,null,null,null,null,null,null,null,null,null,0,"زبدة 12 ع * 200 ق",64,"","","","","","","","","","","","",64,"","",64,"زبدة 12 ع * 200 ق"]
[38,6222000912778,"سنة","اكلير 12كيس * 65 ق / 70 ق","كرتونة",null,null,null,null,null,null,null,null,null,null,null,null,null,null,null,null,0,"زبدة 10 شنطة * 800 جم",0,"","","","","","","","","","","","","","","",0,"زبدة 10 شنطة * 800 جم"]
[39,6222000912778,"سنة","اكلير 12 كيس * 100 قطعة","كرتونة",null,null,null,null,null,null,null,null,null,null,null,null,null,137,null,null,137,"زبدة بالشيكولاته 10 ك",34,"","","","","","","","","","","","","",34,"",34,"زبدة بالشيكولاته 10 ك"]
[40,6222000912822,"سنة","اكلير 30 كيس * 15 ق / 20 ق","كرتونة",null,null,null,null,null,null,null,null,null,null,null,null,null,null,null,null,0,"زبدة بالشيكولاته 30 كيس * 15 قطعه",0,"","","","","","","","","","","","","","","",0,"زبدة بالشيكولاته 30 كيس * 15 قطعه"]
[41,6222000905701,"سنة","اكلير 12كيس 45 ق","كرتونة",null,null,null,null,null,null,null,null,null,null,null,null,null,220,null,null,220,"زبدة بالشيكولاته 12 كيس * 55 قطعه",0,"","","","","","","","","","","","","","","",0,"زبدة بالشيكولاته 12 كيس * 55 قطعه"]
[42,6222000912532,"سنة","اكلير 12 علبة * 160 ق","كرتونة",null,null,null,null,null,null,null,null,null,null,null,null,null,null,null,null,0,"زبدة بالشيكولاته 12 كيس * 120 ق",0,"","","","","","","","","","","","","","","",0,"زبدة بالشيكولاته 12 كيس * 120 ق"]
[43,6222000912532,"سنة","اكلير 12 علبة 200 ق","كرتونة",null,null,null,null,null,null,null,null,null,null,null,null,null,35,null,null,35,"زبدة بالشيكولاته 12 علبة * 240 ق",64,"","","","","","","","","","","","","",64,"",64,"زبدة بالشيكولاته 12 علبة * 240 ق"]
[44,6222000901697,"سنة","طوفي 10 كجم","كرتونة",null,null,null,null,null,null,null,null,null,null,null,null,null,38,46,55,139,"عسلية  5 ك",0,"","","","","","","","","","","","","","","",0,"عسلية 5 ك"]
[45,6222000911481,"سنة","طوفي بردايس 5كيلو","كرتونة",null,null,null,null,null,null,null,null,null,null,null,null,null,null,null,null,0,"عسلية 12 ع * 200 ق",0,"","","","","","","","","","","","","","","",0,"عسلية 12 ع * 200 ق"]
[46,6222000908276,"سنة","طوفي 30 كيس * 25 قطعه","كرتونة",null,null,null,null,null,null,null,null,null,null,null,null,null,null,null,null,0,"اكلير سايب 10 كيلو",98,"","","","","","","","","","","","",43,55,"",98,"اكلير سايب 10 كيلو"]
[47,6222000908276,"سنة","طوفى 30 كيس * 28 ق","كرتونة",null,null,null,null,null,null,null,null,null,null,null,null,null,null,100,null,100,"اكلير  30 كيس * 9 ق / 10 ق",0,"","","","","","","","","","","","","","","",0,"اكلير 30 كيس * 9 ق / 10 ق"]
[48,6222000909921,"سنة","طوفي 30 كيس * 12قطعه","كرتونة",null,null,null,null,null,null,null,null,null,null,null,null,null,null,null,null,0,"اكلير 30 كيس * 12 قطعه",0,"","","","","","","","","","","","","","","",0,"اكلير 30 كيس * 12 قطعه"]
[49,6222000909839,"سنة","طوفي 12 كيس * 90 ق","كرتونة",null,null,null,null,null,null,null,null,null,null,null,null,null,null,11,null,11,"اكلير 30 كيس * 15 ق / 20 ق",0,"","","","","","","","","","","","","","","",0,"اكلير 30 كيس * 15 ق / 20 ق"]
[50,6222000905718,"سنة","طوفى 12كيس * 100 ق","كرتونة",null,null,null,null,null,null,null,null,null,null,null,null,null,null,97,null,97,"اكلير 12كيس 45 ق",220,"","","","","","","","","","","","",220,"","",220,"اكلير 12كيس 45 ق"]
[51,6222000908825,"سنة","طوفى 12 ع * 200 ق","كرتونة",null,null,null,null,null,null,null,null,null,null,null,null,null,null,null,null,0,"اكلير 12كيس * 65 ق / 70 ق",0,"","","","","","","","","","","","","","","",0,"اكلير 12كيس * 65 ق / 70 ق"]
[52,6222000912556,"سنة","طوفي 12 علبه * 240 ق","كرتونة",null,null,null,null,null,null,null,null,null,null,null,null,null,29,45,null,74,"اكلير 12 كيس * 100 قطعة",137,"","","","","","","","","","","","",137,"","",137,"اكلير 12 كيس * 100 قطعة"]
[53,6222000907637,"سنة","شيكولاته بوتيك 16 علبه * 50 قطعة","كرتونة",null,null,null,null,null,null,null,null,null,6,null,null,null,null,null,null,6,"اكلير 12 علبة * 160 ق",0,{"$f":"IFERROR(IF(INDEX($G$4:$U$94,MATCH(TRIM($W56),$D$4:$D$94,0),MATCH(Y$3,$G$3:$U$3,0))=0,\"\",INDEX($G$4:$U$94,MATCH(TRIM($W56),$D$4:$D$94,0),MATCH(Y$3,$G$3:$U$3,0))),\"\")","v":""},"","","","","","","","","","","","","","",0,"اكلير 12 علبة * 160 ق"]
[54,6222000903295,"سنة","شيكولاته بوتيك 6 علبه * 1.25 كيلو","كرتونة",null,null,null,null,null,null,null,null,null,null,null,null,null,null,null,null,0,"اكلير 12 علبة 200 ق",35,"","","","","","","","","","","","",35,"","",35,"اكلير 12 علبة 200 ق"]
[55,6222000912006,"سنة","شيكولاته بوتيك حليب 4 ك","كرتونة",null,null,null,null,null,null,null,null,null,null,null,null,null,null,null,null,0,"طوفي 10 كجم",139,"","","","","","","","","","","","",38,46,55,139,"طوفي 10 كجم"]
[56,6222000911993,"سنة","شيكولاته بوتيك كراميل 4 ك","كرتونة",null,null,null,null,null,null,null,null,null,null,null,null,null,null,null,null,0,"طوفي 30 كيس * 12قطعه",0,"","","","","","","","","","","","","","","",0,"طوفي 30 كيس * 12قطعه"]
[57,6222000912013,"سنة","شيكولاته بوتيك بندق 4 ك","كرتونة",null,null,null,null,null,null,null,null,null,null,null,null,null,null,null,null,0,"طوفي 30 كيس * 25 قطعه",0,"","","","","","","","","","","","","","","",0,"طوفي 30 كيس * 25 قطعه"]
[58,6222000964197,"سنة","شيكوهند سايب 10 كجم","كرتونة",null,null,null,null,null,null,null,null,null,null,null,null,null,null,null,null,0,"طوفى 30 كيس * 28 ق",100,"","","","","","","","","","","","","",100,"",100,"طوفى 30 كيس * 28 ق"]
[59,6222000906630,"سنة","سوفت شيكوهند 5 ك","كرتونة",null,null,null,null,null,null,null,null,null,null,null,null,null,null,40,null,40,"طوفي 12 كيس * 90 ق",11,"","","","","","","","","","","","","",11,"",11,"طوفي 12 كيس * 90 ق"]
[60,6222000612549,"سنة","شيكوهند سوفت 12 ع * 100 ق","كرتونة",null,null,null,null,null,null,null,null,null,null,null,null,null,null,null,null,0,"طوفى 12كيس * 100 ق",97,"","","","","","","","","","","","","",97,"",97,"طوفى 12كيس * 100 ق"]
[61,6222000915243,"سنة","بار شيكوهند 3 ك","كرتونة",null,null,null,null,null,null,null,null,null,null,null,null,null,null,null,50,50,"طوفى 12 ع * 200 ق",0,"","","","","","","","","","","","","","","",0,"طوفى 12 ع * 200 ق"]
[62,6222000902519,"9 أشهر","ويفر ايليت  مغطس بنى 12 *12","كرتونة",null,null,null,null,null,null,null,null,null,null,null,null,null,null,null,null,0,"طوفي 12 علبه * 240 ق",74,"","","","","","","","","","","","",29,45,"",74,"طوفي 12 علبه * 240 ق"]
[63,6222000902557,"9 أشهر","ويفر ايليت مغطس ابيض  12 * 12","كرتونة",null,null,null,null,null,null,null,null,null,null,null,null,null,null,null,null,0,"طوفي شيكولاته 12 كيس * 25 ق",0,"","","","","","","","","","","","","","","",0,"طوفي شيكولاته 12 كيس * 25 ق"]
[64,6222000902564,"9 أشهر"," ويفر ايليت مغطس فراولة 12*12","كرتونة",null,null,null,null,null,null,null,null,null,null,null,null,null,null,null,null,0,"طوفي شيكولاته 12 علبة * 100 ق",0,"","","","","","","","","","","","","","","",0,"طوفي شيكولاته 12 علبة * 100 ق"]
[65,6222000910200,"9 أشهر","ايليت ماكس سادة ش 12 باكو 6 قطع","كرتونة",null,null,null,null,null,null,null,null,null,null,null,null,null,263,null,null,263,"طوفي زبدة 12 كيس * 25 ق",0,"","","","","","","","","","","","","","","",0,"طوفي زبدة 12 كيس * 25 ق"]
[66,6222000910514,"9 أشهر","ايليت  ماكس سادة فانيليا 12 باكو * 6 قطع","كرتونة",null,null,null,null,null,null,null,null,null,null,null,null,null,215,null,null,{"$f":"SUM(G69:U69)","v":215},"طوفي زبدة 12 علبة * 100 ق",{"$f":"AN69","v":0},"","","","","","","","","","","","","","","",{"$f":"SUM(Y69:AM69)","v":0},{"$f":"TRIM(CLEAN(SUBSTITUTE(SUBSTITUTE(SUBSTITUTE(W69,CHAR(10),\"\"),CHAR(13),\"\"),CHAR(9),\"\")))","v":"طوفي زبدة 12 علبة * 100 ق"}]
[67,6222000909976,"9 أشهر","ويفر مربع  3 كيلو ايليت  ابيض","كرتونة",null,null,null,null,null,null,null,null,null,null,null,74,null,null,50,null,124,"شيكولاته بوتيك 16 علبه * 50 قطعة",6,"","","","","","","","",6,"","","","","","",6,"شيكولاته بوتيك 16 علبه * 50 قطعة"]
[68,6222000909983,"9 أشهر","ويفر مربع  3 كيلو ايليت  شيكولاته","كرتونة",null,null,null,null,null,null,null,null,null,null,null,null,null,null,null,null,0,"شيكولاته بوتيك 6 علبه * 1.25 كيلو",0,"","","","","","","","","","","","","","","",0,"شيكولاته بوتيك 6 علبه * 1.25 كيلو"]
[69,6222000909969,"9 أشهر","ويفر مربع  3 كيلو ايليت  فراوله","كرتونة",null,null,null,null,null,null,null,null,null,null,null,69,null,null,50,null,119,"شيكولاته بوتيك حليب 4 ك",0,"","","","","","","","","","","","","","","",0,"شيكولاته بوتيك حليب 4 ك"]
[70,6888000909953,"9 أشهر","ويفر مربع 3 كيلو ايليت جوز هند","كرتونة",null,null,null,null,null,null,null,null,null,null,null,null,null,null,null,null,0,"شيكولاته بوتيك كراميل 4 ك",0,{"$f":"IFERROR(IF(INDEX($G$4:$U$94,MATCH(TRIM($W73),$D$4:$D$94,0),MATCH(Y$3,$G$3:$U$3,0))=0,\"\",INDEX($G$4:$U$94,MATCH(TRIM($W73),$D$4:$D$94,0),MATCH(Y$3,$G$3:$U$3,0))),\"\")","v":""},"","","","","","","","","","","","","","",0,"شيكولاته بوتيك كراميل 4 ك"]
[71,622200097116,"9 أشهر","ويفر فرحه 5 كيلو","كرتونة",null,null,null,null,null,null,null,null,null,null,null,36,null,null,null,null,36,"شيكولاته بوتيك بندق 4 ك",0,"","","","","","","","","","","","","","","",0,"شيكولاته بوتيك بندق 4 ك"]
[72,6222000912372,"9 أشهر","ويفر ايليت مربع بايتس 3 ك بني","كرتونة",null,null,null,null,null,null,null,null,null,null,null,null,null,null,null,null,0,"شيكوهند سايب 10 كجم",0,"","","","","","","","","","","","","","","",0,"شيكوهند سايب 10 كجم"]
[73,6222000912488,"9 أشهر","بسكوت اكشن سادة شاي 6 ع * 12 ق","كرتونة",null,null,null,null,null,null,null,null,null,null,null,null,null,null,null,null,0,"سوفت شيكوهند 5 ك",40,"","","","","","","","","","","","","",40,"",40,"سوفت شيكوهند 5 ك"]
[74,6222000914383,"9 أشهر","بسكوت اكشن سادة شاي 6 ع * 12 ق ( نباتى )","كرتونة",null,null,null,null,null,null,null,null,null,null,null,null,null,null,null,null,0,"شيكوهند سوفت 12 كيس * 28 ق",0,"","","","","","","","","","","","","","","",0,"شيكوهند سوفت 12 كيس * 28 ق"]
[75,6222000916165,"9 أشهر","ويفر اكشن مغطس بنى 12ع * 12 ق ( 5 جنية )","كرتونة",null,null,null,null,null,null,null,null,null,null,28,null,null,null,null,null,28,"شيكوهند سوفت 12 كيس * 60 ق",0,"","","","","","","","","","","","","","","",0,"شيكوهند سوفت 12 كيس * 60 ق"]
[76,6222000916172,"9 أشهر","ويفر اكشن مغطس أبيض 12ع * 12 ق ( 5 جنية )","كرتونة",null,null,null,null,null,null,null,null,null,null,null,null,null,null,null,null,0,"شيكوهند سوفت 12 ع * 100 ق",0,"","","","","","","","","","","","","","","",0,"شيكوهند سوفت 12 ع * 100 ق"]
[77,2810,"9 أشهر","ويفر اكشن مغطس أبيض 8ع * 12 ق ( 5 جنية )","كرتونة",null,null,null,null,null,null,null,null,null,null,null,null,null,null,null,null,0,"بار شيكوهند 3 ك",50,"","","","","","","","","","","","","","",50,50,"بار شيكوهند 3 ك"]
[78,6222000912365,"9 أشهر","بايتس  مربع 6ع * 50ق  بنى","كرتونة",null,null,null,null,null,null,null,null,null,null,29,null,null,null,null,null,29,"ويفر ايليت  مغطس بنى 12 *12",0,"","","","","","","","","","","","","","","",0,"ويفر ايليت مغطس بنى 12 *12"]
[79,6222000902083,"9 أشهر","بايتس مربع 6 ع * 50 ق ابيض ","كرتونة",null,null,null,null,null,null,null,null,null,null,null,null,null,null,null,null,0,"ويفر ايليت مغطس ابيض  12 * 12",0,"","","","","","","","","","","","","","","",0,"ويفر ايليت مغطس ابيض 12 * 12"]
[80,6222000913904,"9 أشهر","بايتس مربع 6 ع * 50 ق فراولة ","كرتونة",null,null,null,null,null,null,null,null,null,null,null,null,null,null,null,null,0," ويفر ايليت مغطس فراولة 12*12",0,"","","","","","","","","","","","","","","",0,"ويفر ايليت مغطس فراولة 12*12"]
[81,"6222000916738","9 أشهر","ويفر بوتيك مربع 9 كيس * 500 جم","كرتونة",null,null,null,null,null,null,null,null,null,null,null,null,null,null,null,null,0,"ايليت ماكس سادة ش 12 باكو 6 قطع",263,"","","","","","","","","","","","",263,"","",263,"ايليت ماكس سادة ش 12 باكو 6 قطع"]
[82,"002797","4 أشهر","كورن عائلي 15 كيس","كرتونة",null,null,null,null,null,null,null,null,null,null,null,null,null,211,null,null,{"$f":"SUM(G85:U85)","v":211},"ايليت  ماكس سادة فانيليا 12 باكو * 6 قطع",0,"","","","","","","","","","","","","","","",0,"ايليت ماكس سادة فانيليا 12 باكو * 6 قطع"]
[83,"002796","6 أشهر","فاير فنجرز 15 كيس","كرتونة",null,null,null,null,null,null,null,null,null,null,null,null,null,254,null,null,254,"ويفر مربع  3 كيلو ايليت  ابيض",0,"","","","","","","","","","","","","","","",0,"ويفر مربع 3 كيلو ايليت ابيض"]
[84,"001766","6 أشهر","اسبيشيال أطعم  15 كيس","كرتونة",null,null,null,null,null,null,null,null,null,null,null,213,null,null,null,null,213,"ويفر مربع  3 كيلو ايليت  شيكولاته",0,"","","","","","","","","","","","","","","",0,"ويفر مربع 3 كيلو ايليت شيكولاته"]
[85,"EG-670026743-3002","6 أشهر","شيل أوت شيبس 15 كيس سعر الكيس 10 جنية","كرتونة",null,null,null,null,null,null,null,null,null,null,null,2,null,187,null,null,189,"ويفر مربع  3 كيلو ايليت  فراوله",0,"","","","","","","","","","","","","","","",0,"ويفر مربع 3 كيلو ايليت فراوله"]
[86,"6224001574221","سنة","زى كولا مشروب غازى 275 حلى","كرتونة",null,null,null,null,null,null,null,null,null,null,254,null,null,700,null,null,954,"ويفر مربع 3 كيلو ايليت جوز هند",0,"","","","","","","","","","","","","","","",0,"ويفر مربع 3 كيلو ايليت جوز هند"]
[87,"2798","9 أشهر","اهلا بالعيد 8 كيس * 660 جم","كرتونة",null,null,null,null,null,null,null,null,null,null,null,null,null,null,null,null,0,"ويفر فرحه 5 كيلو",36,{"$f":"IFERROR(IF(INDEX($G$4:$U$94,MATCH(TRIM($W90),$D$4:$D$94,0),MATCH(Y$3,$G$3:$U$3,0))=0,\"\",INDEX($G$4:$U$94,MATCH(TRIM($W90),$D$4:$D$94,0),MATCH(Y$3,$G$3:$U$3,0))),\"\")","v":""},"","","","","","","","","",36,"","","","",36,"ويفر فرحه 5 كيلو"]
[88,"00695","سنة","قهوه20كيس*150جرام","كرتونة",null,null,null,null,null,null,null,null,null,null,null,null,null,null,null,null,0,"ويفر ايليت مربع بايتس 3 ك بني",0,"","","","","","","","","","","","","","","",0,"ويفر ايليت مربع بايتس 3 ك بني"]
[89,"6222000912518","سنتان","نعناع 12 ع * 240 ق","كرتونة",null,null,null,null,null,null,null,null,null,null,null,null,null,null,null,null,0,"بسكوت اكشن سادة شاي 6 ع * 12 ق",0,"","","","","","","","","","","","","","","",0,"بسكوت اكشن سادة شاي 6 ع * 12 ق"]
[90,"002827",null,"سولا فواكة فلوباك 10 ك","كرتونة",null,null,null,null,null,null,null,null,null,null,null,null,null,null,55,null,55,"بسكوت اكشن سادة شاي 6 ع * 12 ق ( نباتى )",0,"","","","","","","","","","","","","","","",0,"بسكوت اكشن سادة شاي 6 ع * 12 ق ( نباتى )"]
[91,null,null,null,null,null,null,null,null,null,null,null,null,null,null,null,null,null,null,null,null,0,"ويفر اكشن مغطس بنى 12ع * 12 ق ( 5 جنية )",28,"","","","","","","","","",28,"","","","","",28,"ويفر اكشن مغطس بنى 12ع * 12 ق ( 5 جنية )"]
[92,null,null,null,null,null,null,null,null,null,null,null,null,null,null,null,null,null,null,null,null,0,"ويفر اكشن مغطس أبيض 12ع * 12 ق ( 5 جنية )",0,"","","","","","","","","","","","","","","",0,"ويفر اكشن مغطس أبيض 12ع * 12 ق ( 5 جنية )"]
[93,null,null,null,null,null,null,null,null,null,null,null,null,null,null,null,null,null,null,null,null,0,"ويفر اكشن مغطس أبيض 8ع * 12 ق ( 5 جنية )",0,"","","","","","","","","","","","","","","",0,"ويفر اكشن مغطس أبيض 8ع * 12 ق ( 5 جنية )"]
[94,null,null,null,null,null,null,null,null,null,null,null,null,null,null,null,null,null,null,null,null,0,"بايتس  مربع 6ع * 50ق  بنى",0,"","","","","","","","","","","","","","","",0,"بايتس مربع 6ع * 50ق بنى"]
[95,null,null,null,null,null,null,null,null,null,null,null,null,null,null,null,null,null,null,null,null,0,"بايتس مربع 6 ع * 50 ق ابيض ",0,"","","","","","","","","","","","","","","",0,"بايتس مربع 6 ع * 50 ق ابيض"]
[96,null,null,null,null,null,null,null,null,null,null,null,null,null,null,null,null,null,null,null,null,0,"ويفر  4 علبه * 50 قطعه ابيض بايتس",0,"","","","","","","","","","","","","","","",0,"ويفر 4 علبه * 50 قطعه ابيض بايتس"]
[97,null,null,null,null,null,null,null,null,null,null,null,null,null,null,null,null,null,null,null,null,0,"ويفر  5 علبه * 50 قطعه ابيض بايتس",0,"","","","","","","","","","","","","","","",0,"ويفر 5 علبه * 50 قطعه ابيض بايتس"]
[98,null,null,null,null,null,null,null,null,null,null,null,null,null,null,null,null,null,null,null,null,0,"ويفر  7 علبه * 50 قطعه ابيض بايتس",0,"","","","","","","","","","","","","","","",0,"ويفر 7 علبه * 50 قطعه ابيض بايتس"]
[99,null,null,null,null,null,null,null,null,null,null,null,null,null,null,null,null,null,null,null,null,0,"بايتس مربع 6 ع * 50 ق فراولة ",0,"","","","","","","","","","","","","","","",0,"بايتس مربع 6 ع * 50 ق فراولة"]
[100,null,null,null,null,null,null,null,null,null,null,null,null,null,null,null,null,null,null,null,null,0,"ويفر  4 علبه * 50 قطعه فراولة بايتس",0,"","","","","","","","","","","","","","","",0,"ويفر 4 علبه * 50 قطعه فراولة بايتس"]
[101,null,null,null,null,null,null,null,null,null,null,null,null,null,null,null,null,null,null,null,null,0,"ويفر بوتيك مربع 9 كيس * 500 جم",0,"","","","","","","","","","","","","","","",0,"ويفر بوتيك مربع 9 كيس * 500 جم"]
[102,null,null,null,null,null,null,null,null,null,null,null,null,null,null,null,null,null,null,null,null,0,"ايليت عرض خاص ",0,"","","","","","","","","","","","","","","",0,"ايليت عرض خاص"]
[103,null,null,null,null,null,null,null,null,null,null,null,null,null,null,null,null,null,null,null,null,0,"اهلا بالعيد 8 كيس * 660 جم",0,"","","","","","","","","","","","","","","",0,"اهلا بالعيد 8 كيس * 660 جم"]
[104,null,null,null,null,null,null,null,null,null,null,null,null,null,null,null,null,null,null,null,null,0,"كورن عائلي 15 كيس",211,{"$f":"IFERROR(IF(INDEX($G$4:$U$94,MATCH(TRIM($W107),$D$4:$D$94,0),MATCH(Y$3,$G$3:$U$3,0))=0,\"\",INDEX($G$4:$U$94,MATCH(TRIM($W107),$D$4:$D$94,0),MATCH(Y$3,$G$3:$U$3,0))),\"\")","v":""},"","","","","","","","","","","",211,"","",211,"كورن عائلي 15 كيس"]
[105,null,null,null,null,null,null,null,null,null,null,null,null,null,null,null,null,null,null,null,null,0,"فاير فنجرز 15 كيس",254,"","","","","","","","","","","","",254,"","",254,"فاير فنجرز 15 كيس"]
[106,null,null,null,null,null,null,null,null,null,null,null,null,null,null,null,null,null,null,null,null,0,"اسبيشيال أطعم  15 كيس",0,"","","","","","","","","","","","","","","",0,"اسبيشيال أطعم 15 كيس"]
[107,null,null,null,null,null,null,null,null,null,null,null,null,null,null,null,null,null,null,null,null,0,"شيل أوت شيبس 15 كيس سعر الكيس 10 جنية",189,"","","","","","","","","","",2,"",187,"","",189,"شيل أوت شيبس 15 كيس سعر الكيس 10 جنية"]
[null,null,null,null,null,null,null,null,null,null,null,null,null,null,null,null,null,null,null,null,null,0,"زى كولا مشروب غازى 275 حلى",954,"","","","","","","","","",254,"","",700,"","",954,"زى كولا مشروب غازى 275 حلى"]
[108,null,null,null,null,null,null,null,null,null,null,null,null,null,null,null,null,null,null,null,null,0,"زبدة 12 علبة * 240 ق",0,"","","","","","","","","","","","","","","",0,"زبدة 12 علبة * 240 ق"]
["الاجمالى",null,null,null,null,{"$f":"SUM(F4:F112)","v":0},0,0,0,0,0,0,0,59,6,421,416,85,2723.5,1012,{"$f":"SUM(U4:U112)","v":405},{"$f":"SUM(V4:V111)","v":5127.5},null,{"$f":"SUM(X4:X112)","v":4091.5},{"$f":"SUM(Y4:Y112)","v":0},{"$f":"SUM(Z4:Z112)","v":0},0,0,0,0,0,59,6,392,60,85,2322.5,862,305,{"$f":"SUM(AN4:AN112)","v":4091.5}]
[]
[null,null,null,null,null,null,null,null,null,null,null,null,null,null,null,null,null,null,null,null,null,null,null,null,null,null,null,null,null,null,null,null,null,{"$f":"P113-AH113","v":29},{"$f":"Q113-AI113","v":356},null,{"$f":"S113-AK113","v":401},{"$f":"T113-AL113","v":150}]
[]
[null,null,null,null,null,null,null,null,null,null,null,null,null,null,null,null,null,null,null,null,null,{"$f":"V113-AN113","v":1036}]

{"sheet":"الرصيد 3 (2)","index":8,"n_rows":117,"n_cols":41,"rows_kept":117,"cut":false,"hidden":false,"merged":[[1,22,1,38],[1,39,2,39],[112,0,112,4],[0,0,0,21],[0,22,0,38],[1,0,2,0],[1,1,2,1],[1,2,2,2],[1,3,2,3],[1,4,2,4],[1,5,2,5],[1,11,1,19],[1,21,2,21]]}
["رصيد توكيل (   توكيل نجع حمادى    ) عن يوم (   الخميس 9/13  )",null,null,null,null,null,null,null,null,null,null,null,null,null,null,null,null,null,null,null,null,null,"شيت به معادلات عادية "]
["م","الكود","مدة \nالصلاحية","الصنف","الوحدة","الرصيد\n الدفترى\nبالكرتونة\n ",null,null,null,null,null,null,null,null,null,null,null,null,null,null,null,"الرصيد\n الفعلى\nبالكرتونة\n","تنسيق الارقام مع اسم الصنف والتاريخ المقابل لها",null,null,null,null,null,null,null,null,null,null,null,null,null,null,null,null,"الرصيد\n الفعلى\nبالكرتونة\n"]
[null,null,null,null,null,null,"2024-07-01","2024-08-01","2024-09-01","2024-10-01","2024-11-01","2024-12-01","2025-01-01","2025-02-01","2025-03-01","2025-04-01","2025-05-01","2025-06-01","2025-07-01","2025-08-01","2025-09-01",null,"اسم الصنف","الرصيد","2024-07-01","2024-08-01","2024-09-01","2024-10-01","2024-11-01","2024-12-01","2025-01-01","2025-02-01","2025-03-01","2025-04-01","2025-05-01","2025-06-01","2025-07-01","2025-08-01","2025-09-01",null,{"$f":"IFERROR(IF(INDEX($G$4:$U$94,MATCH(SUBSTITUTE(TRIM($W4),CHAR(160),\" \"),SUBSTITUTE(TRIM($D$4:$D$94),CHAR(160),\" \"),0),MATCH(Y$3,$G$3:$U$3,0))=0,\"\",INDEX($G$4:$U$94,MATCH(SUBSTITUTE(TRIM($W4),CHAR(160),\" \"),SUBSTITUTE(TRIM($D$4:$D$94),CHAR(160),\" \"),0),MATCH(Y$3,$G$3:$U$3,0))),\"\")","v":""}]
[1,6222000901529,"سنتان","سوبر فينا 10 كيلو","كرتونة",null,null,null,null,null,null,null,null,null,null,null,null,null,52,50,100,{"$f":"SUM(G4:U4)","v":202},"سوبر فينا 10 كيلو",{"$f":"AN4","v":202},{"$f":"IFERROR(IF(INDEX($G$4:$U$94,MATCH(SUBSTITUTE(TRIM($W4),\" \",CHAR(160)),$D$4:$D$94,0),MATCH(Y$3,$G$3:$U$3,0))=0,\"\",INDEX($G$4:$U$94,MATCH(SUBSTITUTE(TRIM($W4),\" \",CHAR(160)),$D$4:$D$94,0),MATCH(Y$3,$G$3:$U$3,0))),\"\")","v":""},{"$f":"IFERROR(IF(INDEX($G$4:$U$94,MATCH(SUBSTITUTE(TRIM($W4),\" \",CHAR(160)),$D$4:$D$94,0),MATCH(Z$3,$G$3:$U$3,0))=0,\"\",INDEX($G$4:$U$94,MATCH(SUBSTITUTE(TRIM($W4),\" \",CHAR(160)),$D$4:$D$94,0),MATCH(Z$3,$G$3:$U$3,0))),\"\")","v":""},"","","","","","","","","","",52,50,100,{"$f":"SUM(Y4:AM4)","v":202},{"$f":"TRIM(CLEAN(SUBSTITUTE(SUBSTITUTE(SUBSTITUTE(W4,CHAR(10),\"\"),CHAR(13),\"\"),CHAR(9),\"\")))","v":"سوبر فينا 10 كيلو"}]
[2,6222000901536,"سنتان","سوبر فينا 10 كيلو نعناع","كرتونة",null,null,null,null,null,null,null,null,null,null,null,null,null,24,null,155,{"$f":"SUM(G5:U5)","v":179},"سولا فواكة فلوباك 10 ك",{"$f":"AN5","v":55},{"$f":"IFERROR(IF(INDEX($G$4:$U$94,MATCH(TRIM($W5),$D$4:$D$94,0),MATCH(Y$3,$G$3:$U$3,0))=0,\"\",INDEX($G$4:$U$94,MATCH(TRIM($W5),$D$4:$D$94,0),MATCH(Y$3,$G$3:$U$3,0))),\"\")","v":""},{"$f":"IFERROR(IF(INDEX($G$4:$U$94,MATCH(TRIM($W5),$D$4:$D$94,0),MATCH(Z$3,$G$3:$U$3,0))=0,\"\",INDEX($G$4:$U$94,MATCH(TRIM($W5),$D$4:$D$94,0),MATCH(Z$3,$G$3:$U$3,0))),\"\")","v":""},"","","","","","","","","","","",55,"",{"$f":"SUM(Y5:AM5)","v":55},{"$f":"TRIM(CLEAN(SUBSTITUTE(SUBSTITUTE(SUBSTITUTE(W5,CHAR(10),\"\"),CHAR(13),\"\"),CHAR(9),\"\")))","v":"سولا فواكة فلوباك 10 ك"}]
[3,6222000911733,"سنتان","نعناع 12كيس 50 ق 4جم","كرتونة",null,null,null,null,null,null,null,null,null,null,null,null,null,null,3,null,3,"سولا فواكة 5 ك",0,"","","","","","","","","","","","","","","",0,"سولا فواكة 5 ك"]
[4,6222000911764,"سنتان","سولا فواكه 12 كيس * 50 ق","كرتونة",null,null,null,null,null,null,null,null,null,null,null,null,null,null,null,null,0,"سولا فواكه 30 كيس * 28 ق",0,"","","","","","","","","","","","","","","",0,"سولا فواكه 30 كيس * 28 ق"]
[5,"6222000917773","سنتان","سولا فواكه 30 كيس * 28 ق","كرتونة",null,null,null,null,null,null,null,null,null,null,null,null,null,null,null,null,0,"سولا فواكه 12 كيس * 50 ق",0,"","","","","","","","","","","","","","","",0,"سولا فواكه 12 كيس * 50 ق"]
[6,"6222000917780","سنتان","سولا فواكه 12 كيس * 100 ق","كرتونة",null,null,null,null,null,null,null,null,null,null,null,null,null,null,104,null,104,"سولا فواكه 12 كيس * 100 ق",104,"","","","","","","","","","","","","",104,"",104,"سولا فواكه 12 كيس * 100 ق"]
[7,6222000916295,"سنتان","سولا فواكة 6 كيس * 800 جم","كرتونة",null,null,null,null,null,null,null,null,null,null,null,null,null,null,null,null,0,"سولا ف 12 ع * 200 ق",0,"","","","","","","","","","","","","","","",0,"سولا ف 12 ع * 200 ق"]
[8,6222000912525,"سنتان","سولا ف 12 ع * 200 ق","كرتونة",null,null,null,null,null,null,null,null,null,null,null,null,null,null,null,null,0,"سولا ف 12 ع * 240 ق",0,"","","","","","","","","","","","","","","",0,"سولا ف 12 ع * 240 ق"]
[9,"6222000912518","سنتان","سولا نعناع 12 ع * 200 ق","كرتونة",null,null,null,null,null,null,null,null,null,null,null,22,null,null,null,null,22,"سولا فواكة 6 كيس * 800 جم",0,"","","","","","","","","","","","","","","",0,"سولا فواكة 6 كيس * 800 جم"]
[10,6222000912525,"سنتان","سولا ف 12 ع * 240 ق","كرتونة",null,null,null,null,null,null,null,null,null,null,null,null,null,null,null,null,0,"سوبر فينا 10 كيلو نعناع",179,"","","","","","","","","","","","",24,"",155,179,"سوبر فينا 10 كيلو نعناع"]
[11,"6222000908566","سنتان","سولا فواكة 5 ك","كرتونة",null,null,null,null,null,null,null,null,null,null,null,null,null,null,null,null,0,"سولا نعناع فلوباك 10 ك",0,"","","","","","","","","","","","","","","",0,"سولا نعناع فلوباك 10 ك"]
[12,"6222000908573","سنتان","سولا نعناع 5 ك","كرتونة",null,null,null,null,null,null,null,null,59,null,null,null,null,null,null,null,59,"سولا نعناع 5 ك",59,"","","","","","","",59,"","","","","","","",59,"سولا نعناع 5 ك"]
[13,"00743","سنة","قهوة 12 ع * 200 ق","كرتونة",null,null,null,null,null,null,null,null,null,null,null,null,null,null,null,null,0,"سولا نعناع 30 كيس * 28 ق",0,"","","","","","","","","","","","","","","",0,"سولا نعناع 30 كيس * 28 ق"]
[14,"6222000917452","سنة","قهوة 12 ع * 240 ق","كرتونة",null,null,null,null,null,null,null,null,null,null,null,null,null,null,27,null,27,"نعناع 12كيس 50 ق 4جم",3,"","","","","","","","","","","","","",3,"",3,"نعناع 12كيس 50 ق 4جم"]
[15,6222000901758,"سنة","سولا قهوه 10 كيلو","كرتونة",null,null,null,null,null,null,null,null,null,null,null,null,null,15.5,50,null,65.5,"سولا نعناع 12 كيس * 100 ق",0,"","","","","","","","","","","","","","","",0,"سولا نعناع 12 كيس * 100 ق"]
[16,6222000912020,"سنة","قهوة 5 ك","كرتونة",null,null,null,null,null,null,null,null,null,null,null,null,null,null,null,null,0,"سولا نعناع 12 ع * 200 ق",22,"","","","","","","","","","",22,"","","","",22,"سولا نعناع 12 ع * 200 ق"]
[17,6222000909815,"سنة","قهوة 12 كيس * 80 ق / 90 ق","كرتونة",null,null,null,null,null,null,null,null,null,null,null,null,85,null,65,null,150,"نعناع 12 ع * 240 ق",0,"","","","","","","","","","","","","","","",0,"نعناع 12 ع * 240 ق"]
[18,6222000908610,"سنة","قهوة 30 كيس * 18 ق / 25 ق","كرتونة",null,null,null,null,null,null,null,null,null,null,null,null,null,null,null,null,0,"سولا قهوه 10 كيلو",65.5,"","","","","","","","","","","","",15.5,50,"",65.5,"سولا قهوه 10 كيلو"]
[19,6222000909891,"سنة","قهوة 30 كيس * 12قطعه","كرتونة",null,null,null,null,null,null,null,null,null,null,null,null,null,null,null,null,0,"قهوة 5 ك",0,"","","","","","","","","","","","","","","",0,"قهوة 5 ك"]
[20,"00744","سنة","زبدة 12 ع * 200 ق","كرتونة",null,null,null,null,null,null,null,null,null,null,null,null,null,64,null,null,64,"قهوة 30 كيس * 12قطعه",0,"","","","","","","","","","","","","","","",0,"قهوة 30 كيس * 12قطعه"]
[21,6222000901642,"سنة","سولا زبده 10 كيلو","كرتونة",null,null,null,null,null,null,null,null,null,null,null,null,null,null,18,null,18,"قهوة 30 كيس * 15قطعه",0,"","","","","","","","","","","","","","","",0,"قهوة 30 كيس * 15قطعه"]
[22,6222000912037,"سنة","زبدة 5 ك","كرتونة",null,null,null,null,null,null,null,null,null,null,null,null,null,null,null,null,0,"قهوة 30 كيس * 18 ق / 25 ق",0,"","","","","","","","","","","","","","","",0,"قهوة 30 كيس * 18 ق / 25 ق"]
[23,6222000917124,"سنة","زبدة بالشيكولاته 12 علبة * 240 ق","كرتونة",null,null,null,null,null,null,null,null,null,null,null,null,null,null,64,null,64,"قهوة 12 كيس * 55 ق",0,"","","","","","","","","","","","","","","",0,"قهوة 12 كيس * 55 ق"]
[24,6222000918732,"سنة","زبدة بالشيكولاته 10 ك","كرتونة",null,null,null,null,null,null,null,null,null,null,null,null,null,null,34,null,34,"قهوة 12 كيس * 80 ق / 90 ق",150,"","","","","","","","","","","",85,"",65,"",150,"قهوة 12 كيس * 80 ق / 90 ق"]
[25,6222000909808,"سنة","زبدة 12 كيس * 80 ق / 90 ق","كرتونة",null,null,null,null,null,null,null,null,null,null,null,null,null,null,null,null,0,"قهوة 12 كيس * 120 ق",0,"","","","","","","","","","","","","","","",0,"قهوة 12 كيس * 120 ق"]
[26,6222000907583,"سنة","زبدة 30 كيس * 18 ق / 25 ق","كرتونة",null,null,null,null,null,null,null,null,null,null,110,null,null,null,null,null,110,"قهوة 12 ع * 200 ق",0,"","","","","","","","","","","","","","","",0,"قهوة 12 ع * 200 ق"]
[27,6222000909884,"سنة","زبدة 30 كيس * 12قطعه","كرتونة",null,null,null,null,null,null,null,null,null,null,null,null,null,61,48,null,109,"قهوة 12 ع * 240 ق",27,"","","","","","","","","","","","","",27,"",27,"قهوة 12 ع * 240 ق"]
[28,6222000909884,"سنة","زبدة 30 كيس * 15 قطعه","كرتونة",null,null,null,null,null,null,null,null,null,null,null,null,null,null,null,null,0,"قهوه20كيس*150جرام",0,"","","","","","","","","","","","","","","",0,"قهوه20كيس*150جرام"]
[29,6222000905688,"سنة","زبدة 12 كيس * 55 قطعه","كرتونة",null,null,null,null,null,null,null,null,null,null,null,null,null,null,null,null,0,"سولا زبده 10 كيلو",18,"","","","","","","","","","","","","",18,"",18,"سولا زبده 10 كيلو"]
[30,171,"سنة","زبدة 12 كيس * 120 ق","كرتونة",null,null,null,null,null,null,null,null,null,null,null,null,null,41,null,45,86,"زبدة 5 ك",0,"","","","","","","","","","","","","","","",0,"زبدة 5 ك"]
[31,6222000910064,"سنة","زبدة 10 شنطة * 800 جم","كرتونة",null,null,null,null,null,null,null,null,null,null,null,null,null,null,null,null,0,"زبدة 30 كيس * 12قطعه",109,"","","","","","","","","","","","",61,48,"",109,"زبدة 30 كيس * 12قطعه"]
[32,6222000912501,"9 أشهر","عسلية 12 ع * 200 ق","كرتونة",null,null,null,null,null,null,null,null,null,null,null,null,null,null,null,null,0,"زبدة 30 كيس * 15 قطعه",0,"","","","","","","","","","","","","","","",0,"زبدة 30 كيس * 15 قطعه"]
[33,6222000912457,"9 أشهر","عسلية  5 ك","كرتونة",null,null,null,null,null,null,null,null,null,null,null,null,null,null,null,null,0,"زبدة 30 كيس * 18 ق / 25 ق",110,{"$f":"IFERROR(IF(INDEX($G$4:$U$94,MATCH(TRIM($W36),$D$4:$D$94,0),MATCH(Y$3,$G$3:$U$3,0))=0,\"\",INDEX($G$4:$U$94,MATCH(TRIM($W36),$D$4:$D$94,0),MATCH(Y$3,$G$3:$U$3,0))),\"\")","v":""},"","","","","","","","",110,"","","","","",110,"زبدة 30 كيس * 18 ق / 25 ق"]
[34,6222000901611,"سنة","اكلير سايب 10 كيلو","كرتونة",null,null,null,null,null,null,null,null,null,null,null,null,null,43,55,null,98,"زبدة 12 كيس * 55 قطعه",0,"","","","","","","","","","","","","","","",0,"زبدة 12 كيس * 55 قطعه"]
[35,6222000909907,"سنة","اكلير  30 كيس * 9 ق / 10 ق","كرتونة",null,null,null,null,null,null,null,null,null,null,null,null,null,134,null,null,134,"زبدة 12 كيس * 80 ق / 90 ق",0,"","","","","","","","","","","","","","","",0,"زبدة 12 كيس * 80 ق / 90 ق"]
[36,6222000909907,"سنة","اكلير 30 كيس * 12 قطعه","كرتونة",null,null,null,null,null,null,null,null,null,null,null,null,null,null,null,null,0,"زبدة 12 كيس * 120 ق",86,"","","","","","","","","","","","",41,"",45,86,"زبدة 12 كيس * 120 ق"]
[37,6222000911498,"سنة","اكلير سولا 5 كيلو ","كرتونة",null,null,null,null,null,null,null,null,null,null,null,null,null,null,null,null,0,"زبدة 12 ع * 200 ق",64,"","","","","","","","","","","","",64,"","",64,"زبدة 12 ع * 200 ق"]
[38,6222000912778,"سنة","اكلير 12كيس * 65 ق / 70 ق","كرتونة",null,null,null,null,null,null,null,null,null,null,null,null,null,null,null,null,0,"زبدة 10 شنطة * 800 جم",0,"","","","","","","","","","","","","","","",0,"زبدة 10 شنطة * 800 جم"]
[39,6222000912778,"سنة","اكلير 12 كيس * 100 قطعة","كرتونة",null,null,null,null,null,null,null,null,null,null,null,null,null,137,null,null,137,"زبدة بالشيكولاته 10 ك",34,"","","","","","","","","","","","","",34,"",34,"زبدة بالشيكولاته 10 ك"]
[40,6222000912822,"سنة","اكلير 30 كيس * 15 ق / 20 ق","كرتونة",null,null,null,null,null,null,null,null,null,null,null,null,null,null,null,null,0,"زبدة بالشيكولاته 30 كيس * 15 قطعه",0,"","","","","","","","","","","","","","","",0,"زبدة بالشيكولاته 30 كيس * 15 قطعه"]
[41,6222000905701,"سنة","اكلير 12كيس 45 ق","كرتونة",null,null,null,null,null,null,null,null,null,null,null,null,null,220,null,null,220,"زبدة بالشيكولاته 12 كيس * 55 قطعه",0,"","","","","","","","","","","","","","","",0,"زبدة بالشيكولاته 12 كيس * 55 قطعه"]
[42,6222000912532,"سنة","اكلير 12 علبة * 160 ق","كرتونة",null,null,null,null,null,null,null,null,null,null,null,null,null,null,null,null,0,"زبدة بالشيكولاته 12 كيس * 120 ق",0,"","","","","","","","","","","","","","","",0,"زبدة بالشيكولاته 12 كيس * 120 ق"]
[43,6222000912532,"سنة","اكلير 12 علبة 200 ق","كرتونة",null,null,null,null,null,null,null,null,null,null,null,null,null,35,null,null,35,"زبدة بالشيكولاته 12 علبة * 240 ق",64,"","","","","","","","","","","","","",64,"",64,"زبدة بالشيكولاته 12 علبة * 240 ق"]
[44,6222000901697,"سنة","طوفي 10 كجم","كرتونة",null,null,null,null,null,null,null,null,null,null,null,null,null,38,46,55,139,"عسلية  5 ك",0,"","","","","","","","","","","","","","","",0,"عسلية 5 ك"]
[45,6222000911481,"سنة","طوفي بردايس 5كيلو","كرتونة",null,null,null,null,null,null,null,null,null,null,null,null,null,null,null,null,0,"عسلية 12 ع * 200 ق",0,"","","","","","","","","","","","","","","",0,"عسلية 12 ع * 200 ق"]
[46,6222000908276,"سنة","طوفي 30 كيس * 25 قطعه","كرتونة",null,null,null,null,null,null,null,null,null,null,null,null,null,null,null,null,0,"اكلير سايب 10 كيلو",98,"","","","","","","","","","","","",43,55,"",98,"اكلير سايب 10 كيلو"]
[47,6222000908276,"سنة","طوفى 30 كيس * 28 ق","كرتونة",null,null,null,null,null,null,null,null,null,null,null,null,null,null,100,null,100,"اكلير  30 كيس * 9 ق / 10 ق",0,"","","","","","","","","","","","","","","",0,"اكلير 30 كيس * 9 ق / 10 ق"]
[48,6222000909921,"سنة","طوفي 30 كيس * 12قطعه","كرتونة",null,null,null,null,null,null,null,null,null,null,null,null,null,null,null,null,0,"اكلير 30 كيس * 12 قطعه",0,"","","","","","","","","","","","","","","",0,"اكلير 30 كيس * 12 قطعه"]
[49,6222000909839,"سنة","طوفي 12 كيس * 90 ق","كرتونة",null,null,null,null,null,null,null,null,null,null,null,null,null,null,11,null,11,"اكلير 30 كيس * 15 ق / 20 ق",0,"","","","","","","","","","","","","","","",0,"اكلير 30 كيس * 15 ق / 20 ق"]
[50,6222000905718,"سنة","طوفى 12كيس * 100 ق","كرتونة",null,null,null,null,null,null,null,null,null,null,null,null,null,null,97,null,97,"اكلير 12كيس 45 ق",220,{"$f":"IFERROR(IF(INDEX($G$4:$U$94,MATCH(TRIM($W53),$D$4:$D$94,0),MATCH(Y$3,$G$3:$U$3,0))=0,\"\",INDEX($G$4:$U$94,MATCH(TRIM($W53),$D$4:$D$94,0),MATCH(Y$3,$G$3:$U$3,0))),\"\")","v":""},"","","","","","","","","","","",220,"","",220,"اكلير 12كيس 45 ق"]
[51,6222000908825,"سنة","طوفى 12 ع * 200 ق","كرتونة",null,null,null,null,null,null,null,null,null,null,null,null,null,null,null,null,0,"اكلير 12كيس * 65 ق / 70 ق",0,"","","","","","","","","","","","","","","",0,"اكلير 12كيس * 65 ق / 70 ق"]
[52,6222000912556,"سنة","طوفي 12 علبه * 240 ق","كرتونة",null,null,null,null,null,null,null,null,null,null,null,null,null,29,45,null,74,"اكلير 12 كيس * 100 قطعة",137,"","","","","","","","","","","","",137,"","",137,"اكلير 12 كيس * 100 قطعة"]
[53,6222000907637,"سنة","شيكولاته بوتيك 16 علبه * 50 قطعة","كرتونة",null,null,null,null,null,null,null,null,null,6,null,null,null,null,null,null,6,"اكلير 12 علبة * 160 ق",0,"","","","","","","","","","","","","","","",0,"اكلير 12 علبة * 160 ق"]
[54,6222000903295,"سنة","شيكولاته بوتيك 6 علبه * 1.25 كيلو","كرتونة",null,null,null,null,null,null,null,null,null,null,null,null,null,null,null,null,0,"اكلير 12 علبة 200 ق",35,"","","","","","","","","","","","",35,"","",35,"اكلير 12 علبة 200 ق"]
[55,6222000912006,"سنة","شيكولاته بوتيك حليب 4 ك","كرتونة",null,null,null,null,null,null,null,null,null,null,null,null,null,null,null,null,0,"طوفي 10 كجم",139,"","","","","","","","","","","","",38,46,55,139,"طوفي 10 كجم"]
[56,6222000911993,"سنة","شيكولاته بوتيك كراميل 4 ك","كرتونة",null,null,null,null,null,null,null,null,null,null,null,null,null,null,null,null,0,"طوفي 30 كيس * 12قطعه",0,"","","","","","","","","","","","","","","",0,"طوفي 30 كيس * 12قطعه"]
[57,6222000912013,"سنة","شيكولاته بوتيك بندق 4 ك","كرتونة",null,null,null,null,null,null,null,null,null,null,null,null,null,null,null,null,0,"طوفي 30 كيس * 25 قطعه",0,"","","","","","","","","","","","","","","",0,"طوفي 30 كيس * 25 قطعه"]
[58,6222000964197,"سنة","شيكوهند سايب 10 كجم","كرتونة",null,null,null,null,null,null,null,null,null,null,null,null,null,null,null,null,0,"طوفى 30 كيس * 28 ق",100,"","","","","","","","","","","","","",100,"",100,"طوفى 30 كيس * 28 ق"]
[59,6222000906630,"سنة","سوفت شيكوهند 5 ك","كرتونة",null,null,null,null,null,null,null,null,null,null,null,null,null,null,40,null,40,"طوفي 12 كيس * 90 ق",11,"","","","","","","","","","","","","",11,"",11,"طوفي 12 كيس * 90 ق"]
[60,6222000612549,"سنة","شيكوهند سوفت 12 ع * 100 ق","كرتونة",null,null,null,null,null,null,null,null,null,null,null,null,null,null,null,null,0,"طوفى 12كيس * 100 ق",97,"","","","","","","","","","","","","",97,"",97,"طوفى 12كيس * 100 ق"]
[61,6222000915243,"سنة","بار شيكوهند 3 ك","كرتونة",null,null,null,null,null,null,null,null,null,null,null,null,null,null,null,50,50,"طوفى 12 ع * 200 ق",0,"","","","","","","","","","","","","","","",0,"طوفى 12 ع * 200 ق"]
[62,6222000902519,"9 أشهر","ويفر ايليت  مغطس بنى 12 *12","كرتونة",null,null,null,null,null,null,null,null,null,null,null,null,null,null,null,null,0,"طوفي 12 علبه * 240 ق",74,"","","","","","","","","","","","",29,45,"",74,"طوفي 12 علبه * 240 ق"]
[63,6222000902557,"9 أشهر","ويفر ايليت مغطس ابيض  12 * 12","كرتونة",null,null,null,null,null,null,null,null,null,null,null,null,null,null,null,null,0,"طوفي شيكولاته 12 كيس * 25 ق",0,"","","","","","","","","","","","","","","",0,"طوفي شيكولاته 12 كيس * 25 ق"]
[64,6222000902564,"9 أشهر"," ويفر ايليت مغطس فراولة 12*12","كرتونة",null,null,null,null,null,null,null,null,null,null,null,null,null,null,null,null,0,"طوفي شيكولاته 12 علبة * 100 ق",0,"","","","","","","","","","","","","","","",0,"طوفي شيكولاته 12 علبة * 100 ق"]
[65,6222000910200,"9 أشهر","ايليت ماكس سادة ش 12 باكو 6 قطع","كرتونة",null,null,null,null,null,null,null,null,null,null,null,null,null,263,null,null,263,"طوفي زبدة 12 كيس * 25 ق",0,"","","","","","","","","","","","","","","",0,"طوفي زبدة 12 كيس * 25 ق"]
[66,6222000910514,"9 أشهر","ايليت  ماكس سادة فانيليا 12 باكو * 6 قطع","كرتونة",null,null,null,null,null,null,null,null,null,null,null,null,null,215,null,null,{"$f":"SUM(G69:U69)","v":215},"طوفي زبدة 12 علبة * 100 ق",{"$f":"AN69","v":0},"","","","","","","","","","","","","","","",{"$f":"SUM(Y69:AM69)","v":0},{"$f":"TRIM(CLEAN(SUBSTITUTE(SUBSTITUTE(SUBSTITUTE(W69,CHAR(10),\"\"),CHAR(13),\"\"),CHAR(9),\"\")))","v":"طوفي زبدة 12 علبة * 100 ق"}]
[67,6222000909976,"9 أشهر","ويفر مربع  3 كيلو ايليت  ابيض","كرتونة",null,null,null,null,null,null,null,null,null,null,null,74,null,null,50,null,124,"شيكولاته بوتيك 16 علبه * 50 قطعة",6,{"$f":"IFERROR(IF(INDEX($G$4:$U$94,MATCH(TRIM($W70),$D$4:$D$94,0),MATCH(Y$3,$G$3:$U$3,0))=0,\"\",INDEX($G$4:$U$94,MATCH(TRIM($W70),$D$4:$D$94,0),MATCH(Y$3,$G$3:$U$3,0))),\"\")","v":""},"","","","","","","",6,"","","","","","",6,"شيكولاته بوتيك 16 علبه * 50 قطعة"]
[68,6222000909983,"9 أشهر","ويفر مربع  3 كيلو ايليت  شيكولاته","كرتونة",null,null,null,null,null,null,null,null,null,null,null,null,null,null,null,null,0,"شيكولاته بوتيك 6 علبه * 1.25 كيلو",0,"","","","","","","","","","","","","","","",0,"شيكولاته بوتيك 6 علبه * 1.25 كيلو"]
[69,6222000909969,"9 أشهر","ويفر مربع  3 كيلو ايليت  فراوله","كرتونة",null,null,null,null,null,null,null,null,null,null,null,69,null,null,50,null,119,"شيكولاته بوتيك حليب 4 ك",0,"","","","","","","","","","","","","","","",0,"شيكولاته بوتيك حليب 4 ك"]
[70,6888000909953,"9 أشهر","ويفر مربع 3 كيلو ايليت جوز هند","كرتونة",null,null,null,null,null,null,null,null,null,null,null,null,null,null,null,null,0,"شيكولاته بوتيك كراميل 4 ك",0,"","","","","","","","","","","","","","","",0,"شيكولاته بوتيك كراميل 4 ك"]
[71,622200097116,"9 أشهر","ويفر فرحه 5 كيلو","كرتونة",null,null,null,null,null,null,null,null,null,null,null,36,null,null,null,null,36,"شيكولاته بوتيك بندق 4 ك",0,"","","","","","","","","","","","","","","",0,"شيكولاته بوتيك بندق 4 ك"]
[72,6222000912372,"9 أشهر","ويفر ايليت مربع بايتس 3 ك بني","كرتونة",null,null,null,null,null,null,null,null,null,null,null,null,null,null,null,null,0,"شيكوهند سايب 10 كجم",0,"","","","","","","","","","","","","","","",0,"شيكوهند سايب 10 كجم"]
[73,6222000912488,"9 أشهر","بسكوت اكشن سادة شاي 6 ع * 12 ق","كرتونة",null,null,null,null,null,null,null,null,null,null,null,null,null,null,null,null,0,"سوفت شيكوهند 5 ك",40,"","","","","","","","","","","","","",40,"",40,"سوفت شيكوهند 5 ك"]
[74,6222000914383,"9 أشهر","بسكوت اكشن سادة شاي 6 ع * 12 ق ( نباتى )","كرتونة",null,null,null,null,null,null,null,null,null,null,null,null,null,null,null,null,0,"شيكوهند سوفت 12 كيس * 28 ق",0,"","","","","","","","","","","","","","","",0,"شيكوهند سوفت 12 كيس * 28 ق"]
[75,6222000916165,"9 أشهر","ويفر اكشن مغطس بنى 12ع * 12 ق ( 5 جنية )","كرتونة",null,null,null,null,null,null,null,null,null,null,28,null,null,null,null,null,28,"شيكوهند سوفت 12 كيس * 60 ق",0,"","","","","","","","","","","","","","","",0,"شيكوهند سوفت 12 كيس * 60 ق"]
[76,6222000916172,"9 أشهر","ويفر اكشن مغطس أبيض 12ع * 12 ق ( 5 جنية )","كرتونة",null,null,null,null,null,null,null,null,null,null,null,null,null,null,null,null,0,"شيكوهند سوفت 12 ع * 100 ق",0,"","","","","","","","","","","","","","","",0,"شيكوهند سوفت 12 ع * 100 ق"]
[77,2810,"9 أشهر","ويفر اكشن مغطس أبيض 8ع * 12 ق ( 5 جنية )","كرتونة",null,null,null,null,null,null,null,null,null,null,null,null,null,null,null,null,0,"بار شيكوهند 3 ك",50,"","","","","","","","","","","","","","",50,50,"بار شيكوهند 3 ك"]
[78,6222000912365,"9 أشهر","بايتس  مربع 6ع * 50ق  بنى","كرتونة",null,null,null,null,null,null,null,null,null,null,29,null,null,null,null,null,29,"ويفر ايليت  مغطس بنى 12 *12",0,"","","","","","","","","","","","","","","",0,"ويفر ايليت مغطس بنى 12 *12"]
[79,6222000902083,"9 أشهر","بايتس مربع 6 ع * 50 ق ابيض ","كرتونة",null,null,null,null,null,null,null,null,null,null,null,null,null,null,null,null,0,"ويفر ايليت مغطس ابيض  12 * 12",0,"","","","","","","","","","","","","","","",0,"ويفر ايليت مغطس ابيض 12 * 12"]
[80,6222000913904,"9 أشهر","بايتس مربع 6 ع * 50 ق فراولة ","كرتونة",null,null,null,null,null,null,null,null,null,null,null,null,null,null,null,null,0," ويفر ايليت مغطس فراولة 12*12",0,"","","","","","","","","","","","","","","",0,"ويفر ايليت مغطس فراولة 12*12"]
[81,"6222000916738","9 أشهر","ويفر بوتيك مربع 9 كيس * 500 جم","كرتونة",null,null,null,null,null,null,null,null,null,null,null,null,null,null,null,null,0,"ايليت ماكس سادة ش 12 باكو 6 قطع",263,"","","","","","","","","","","","",263,"","",263,"ايليت ماكس سادة ش 12 باكو 6 قطع"]
[82,"002797","4 أشهر","كورن عائلي 15 كيس","كرتونة",null,null,null,null,null,null,null,null,null,null,null,null,null,211,null,null,{"$f":"SUM(G85:U85)","v":211},"ايليت  ماكس سادة فانيليا 12 باكو * 6 قطع",0,"","","","","","","","","","","","","","","",0,"ايليت ماكس سادة فانيليا 12 باكو * 6 قطع"]
[83,"002796","6 أشهر","فاير فنجرز 15 كيس","كرتونة",null,null,null,null,null,null,null,null,null,null,null,null,null,254,null,null,254,"ويفر مربع  3 كيلو ايليت  ابيض",0,"","","","","","","","","","","","","","","",0,"ويفر مربع 3 كيلو ايليت ابيض"]
[84,"001766","6 أشهر","اسبيشيال أطعم  15 كيس","كرتونة",null,null,null,null,null,null,null,null,null,null,null,213,null,null,null,null,213,"ويفر مربع  3 كيلو ايليت  شيكولاته",0,{"$f":"IFERROR(IF(INDEX($G$4:$U$94,MATCH(TRIM($W87),$D$4:$D$94,0),MATCH(Y$3,$G$3:$U$3,0))=0,\"\",INDEX($G$4:$U$94,MATCH(TRIM($W87),$D$4:$D$94,0),MATCH(Y$3,$G$3:$U$3,0))),\"\")","v":""},"","","","","","","","","","","","","","",0,"ويفر مربع 3 كيلو ايليت شيكولاته"]
[85,"EG-670026743-3002","6 أشهر","شيل أوت شيبس 15 كيس سعر الكيس 10 جنية","كرتونة",null,null,null,null,null,null,null,null,null,null,null,2,null,187,null,null,189,"ويفر مربع  3 كيلو ايليت  فراوله",0,"","","","","","","","","","","","","","","",0,"ويفر مربع 3 كيلو ايليت فراوله"]
[86,"6224001574221","سنة","زى كولا مشروب غازى 275 حلى","كرتونة",null,null,null,null,null,null,null,null,null,null,254,null,null,700,null,null,954,"ويفر مربع 3 كيلو ايليت جوز هند",0,"","","","","","","","","","","","","","","",0,"ويفر مربع 3 كيلو ايليت جوز هند"]
[87,"2798","9 أشهر","اهلا بالعيد 8 كيس * 660 جم","كرتونة",null,null,null,null,null,null,null,null,null,null,null,null,null,null,null,null,0,"ويفر فرحه 5 كيلو",36,"","","","","","","","","","",36,"","","","",36,"ويفر فرحه 5 كيلو"]
[88,"00695","سنة","قهوه20كيس*150جرام","كرتونة",null,null,null,null,null,null,null,null,null,null,null,null,null,null,null,null,0,"ويفر ايليت مربع بايتس 3 ك بني",0,"","","","","","","","","","","","","","","",0,"ويفر ايليت مربع بايتس 3 ك بني"]
[89,"6222000912518","سنتان","نعناع 12 ع * 240 ق","كرتونة",null,null,null,null,null,null,null,null,null,null,null,null,null,null,null,null,0,"بسكوت اكشن سادة شاي 6 ع * 12 ق",0,"","","","","","","","","","","","","","","",0,"بسكوت اكشن سادة شاي 6 ع * 12 ق"]
[90,"002827",null,"سولا فواكة فلوباك 10 ك","كرتونة",null,null,null,null,null,null,null,null,null,null,null,null,null,null,55,null,55,"بسكوت اكشن سادة شاي 6 ع * 12 ق ( نباتى )",0,"","","","","","","","","","","","","","","",0,"بسكوت اكشن سادة شاي 6 ع * 12 ق ( نباتى )"]
[91,null,null,null,null,null,null,null,null,null,null,null,null,null,null,null,null,null,null,null,null,0,"ويفر اكشن مغطس بنى 12ع * 12 ق ( 5 جنية )",28,"","","","","","","","","",28,"","","","","",28,"ويفر اكشن مغطس بنى 12ع * 12 ق ( 5 جنية )"]
[92,null,null,null,null,null,null,null,null,null,null,null,null,null,null,null,null,null,null,null,null,0,"ويفر اكشن مغطس أبيض 12ع * 12 ق ( 5 جنية )",0,"","","","","","","","","","","","","","","",0,"ويفر اكشن مغطس أبيض 12ع * 12 ق ( 5 جنية )"]
[93,null,null,null,null,null,null,null,null,null,null,null,null,null,null,null,null,null,null,null,null,0,"ويفر اكشن مغطس أبيض 8ع * 12 ق ( 5 جنية )",0,"","","","","","","","","","","","","","","",0,"ويفر اكشن مغطس أبيض 8ع * 12 ق ( 5 جنية )"]
[94,null,null,null,null,null,null,null,null,null,null,null,null,null,null,null,null,null,null,null,null,0,"بايتس  مربع 6ع * 50ق  بنى",0,"","","","","","","","","","","","","","","",0,"بايتس مربع 6ع * 50ق بنى"]
[95,null,null,null,null,null,null,null,null,null,null,null,null,null,null,null,null,null,null,null,null,0,"بايتس مربع 6 ع * 50 ق ابيض ",0,"","","","","","","","","","","","","","","",0,"بايتس مربع 6 ع * 50 ق ابيض"]
[96,null,null,null,null,null,null,null,null,null,null,null,null,null,null,null,null,null,null,null,null,0,"ويفر  4 علبه * 50 قطعه ابيض بايتس",0,"","","","","","","","","","","","","","","",0,"ويفر 4 علبه * 50 قطعه ابيض بايتس"]
[97,null,null,null,null,null,null,null,null,null,null,null,null,null,null,null,null,null,null,null,null,0,"ويفر  5 علبه * 50 قطعه ابيض بايتس",0,"","","","","","","","","","","","","","","",0,"ويفر 5 علبه * 50 قطعه ابيض بايتس"]
[98,null,null,null,null,null,null,null,null,null,null,null,null,null,null,null,null,null,null,null,null,0,"ويفر  7 علبه * 50 قطعه ابيض بايتس",0,"","","","","","","","","","","","","","","",0,"ويفر 7 علبه * 50 قطعه ابيض بايتس"]
[99,null,null,null,null,null,null,null,null,null,null,null,null,null,null,null,null,null,null,null,null,0,"بايتس مربع 6 ع * 50 ق فراولة ",0,"","","","","","","","","","","","","","","",0,"بايتس مربع 6 ع * 50 ق فراولة"]
[100,null,null,null,null,null,null,null,null,null,null,null,null,null,null,null,null,null,null,null,null,0,"ويفر  4 علبه * 50 قطعه فراولة بايتس",0,"","","","","","","","","","","","","","","",0,"ويفر 4 علبه * 50 قطعه فراولة بايتس"]
[101,null,null,null,null,null,null,null,null,null,null,null,null,null,null,null,null,null,null,null,null,0,"ويفر بوتيك مربع 9 كيس * 500 جم",0,{"$f":"IFERROR(IF(INDEX($G$4:$U$94,MATCH(TRIM($W104),$D$4:$D$94,0),MATCH(Y$3,$G$3:$U$3,0))=0,\"\",INDEX($G$4:$U$94,MATCH(TRIM($W104),$D$4:$D$94,0),MATCH(Y$3,$G$3:$U$3,0))),\"\")","v":""},"","","","","","","","","","","","","","",0,"ويفر بوتيك مربع 9 كيس * 500 جم"]
[102,null,null,null,null,null,null,null,null,null,null,null,null,null,null,null,null,null,null,null,null,0,"ايليت عرض خاص ",0,"","","","","","","","","","","","","","","",0,"ايليت عرض خاص"]
[103,null,null,null,null,null,null,null,null,null,null,null,null,null,null,null,null,null,null,null,null,0,"اهلا بالعيد 8 كيس * 660 جم",0,"","","","","","","","","","","","","","","",0,"اهلا بالعيد 8 كيس * 660 جم"]
[104,null,null,null,null,null,null,null,null,null,null,null,null,null,null,null,null,null,null,null,null,0,"كورن عائلي 15 كيس",211,"","","","","","","","","","","","",211,"","",211,"كورن عائلي 15 كيس"]
[105,null,null,null,null,null,null,null,null,null,null,null,null,null,null,null,null,null,null,null,null,0,"فاير فنجرز 15 كيس",254,"","","","","","","","","","","","",254,"","",254,"فاير فنجرز 15 كيس"]
[106,null,null,null,null,null,null,null,null,null,null,null,null,null,null,null,null,null,null,null,null,0,"اسبيشيال أطعم  15 كيس",0,"","","","","","","","","","","","","","","",0,"اسبيشيال أطعم 15 كيس"]
[107,null,null,null,null,null,null,null,null,null,null,null,null,null,null,null,null,null,null,null,null,0,"شيل أوت شيبس 15 كيس سعر الكيس 10 جنية",189,"","","","","","","","","","",2,"",187,"","",189,"شيل أوت شيبس 15 كيس سعر الكيس 10 جنية"]
[null,null,null,null,null,null,null,null,null,null,null,null,null,null,null,null,null,null,null,null,null,0,"زى كولا مشروب غازى 275 حلى",954,"","","","","","","","","",254,"","",700,"","",954,"زى كولا مشروب غازى 275 حلى"]
[108,null,null,null,null,null,null,null,null,null,null,null,null,null,null,null,null,null,null,null,null,0,"زبدة 12 علبة * 240 ق",0,"","","","","","","","","","","","","","","",0,"زبدة 12 علبة * 240 ق"]
["الاجمالى",null,null,null,null,{"$f":"SUM(F4:F112)","v":0},0,0,0,0,0,0,0,59,6,421,416,85,2723.5,1012,{"$f":"SUM(U4:U112)","v":405},{"$f":"SUM(V4:V111)","v":5127.5},null,{"$f":"SUM(X4:X112)","v":4293.5},{"$f":"SUM(Y4:Y112)","v":0},{"$f":"SUM(Z4:Z112)","v":0},0,0,0,0,0,59,6,392,60,85,2374.5,912,405,{"$f":"SUM(AN4:AN112)","v":4293.5}]
[]
[null,null,null,null,null,null,null,null,null,null,null,null,null,null,null,null,null,null,null,null,null,null,null,null,null,null,null,null,null,null,null,null,null,{"$f":"P113-AH113","v":29},{"$f":"Q113-AI113","v":356},null,{"$f":"S113-AK113","v":349},{"$f":"T113-AL113","v":100}]
[]
[null,null,null,null,null,null,null,null,null,null,null,null,null,null,null,null,null,null,null,null,null,{"$f":"V113-AN113","v":834}]

{"sheet":"الرصيد 3","index":9,"n_rows":128,"n_cols":40,"rows_kept":128,"cut":false,"hidden":false,"merged":[[1,22,1,38],[1,39,2,39],[125,0,125,4],[0,22,0,39],[0,0,0,21],[1,0,2,0],[1,1,2,1],[1,2,2,2],[1,3,2,3],[1,4,2,4],[1,5,2,5],[1,11,1,19],[1,21,2,21]]}
["رصيد توكيل (   توكيل نجع حمادى    ) عن يوم (   الخميس 9/13  )",null,null,null,null,null,null,null,null,null,null,null,null,null,null,null,null,null,null,null,null,null," "]
["م","الكود","مدة \nالصلاحية","الصنف","الوحدة","الرصيد\n الدفترى\nبالكرتونة\n ",null,null,null,null,null,null,null,null,null,null,null,null,null,null,null,"الرصيد\n الفعلى\nبالكرتونة\n","تنسيق الارقام مع اسم الصنف والتاريخ المقابل لها",null,null,null,null,null,null,null,null,null,null,null,null,null,null,null,null,"الرصيد\n الفعلى\nبالكرتونة\n"]
[null,null,null,null,null,null,"2024-08-01","2024-09-01","2024-10-01","2024-11-01","2024-12-01","2025-01-01","2025-02-01","2025-03-01","2025-04-01","2025-05-01","2025-06-01","2025-07-01","2025-08-01","2025-09-01","2025-10-01",null,"اسم الصنف","الرصيد","2024-08-01","2024-09-01","2024-10-01","2024-11-01","2024-12-01","2025-01-01","2025-02-01","2025-03-01","2025-04-01","2025-05-01","2025-06-01","2025-07-01","2025-08-01","2025-09-01","2025-10-01"]
[1,6222000901529,"سنتان","سوبر فينا 10 كيلو","كرتونة",null,null,null,null,null,null,null,null,null,null,null,null,null,null,null,62,{"$f":"SUM(G4:U4)","v":62},{"$f":"D4","v":"سوبر فينا 10 كيلو"},{"$f":"AN4","v":62},null,null,null,null,null,null,null,null,null,null,null,null,null,null,62,{"$f":"SUM(Y4:AM4)","v":62}]
[2,"002827","سنتان","سولا فواكة فلوباك 10 ك","كرتونة",null,null,null,null,null,null,null,null,null,null,null,null,null,null,113,null,{"$f":"SUM(G5:U5)","v":113},{"$f":"D5","v":"سولا فواكة فلوباك 10 ك"},113,null,null,null,null,null,null,null,null,null,null,null,null,null,113,null,113]
[3,"6222000908566","سنتان","سولا فواكة 5 ك","كرتونة",null,null,null,null,null,null,8,null,null,null,null,null,null,null,null,null,8,"سولا فواكة 5 ك",8,null,null,null,null,null,8,null,null,null,null,null,null,null,null,null,8]
[4,"6222000917773","سنتان","سولا فواكه 30 كيس * 28 ق","كرتونة",null,null,null,null,null,null,null,null,null,null,null,null,84,null,null,null,84,"سولا فواكه 30 كيس * 28 ق",84,null,null,null,null,null,null,null,null,null,null,null,84,null,null,null,84]
[5,6222000911764,"سنتان","سولا فواكه 12 كيس * 50 ق","كرتونة",null,null,null,null,null,null,null,null,null,null,null,null,null,null,null,null,0,"سولا فواكه 12 كيس * 50 ق",0,null,null,null,null,null,null,null,null,null,null,null,null,null,null,null,0]
[6,"6222000917780","سنتان","سولا فواكه 12 كيس * 100 ق","كرتونة",null,null,null,null,null,null,null,null,null,null,null,null,null,null,null,null,0,"سولا فواكه 12 كيس * 100 ق",0,null,null,null,null,null,null,null,null,null,null,null,null,null,null,null,0]
[7,6222000912525,"سنتان","سولا ف 12 ع * 200 ق","كرتونة",null,null,null,null,null,null,null,null,null,null,null,null,null,null,null,null,0,"سولا ف 12 ع * 200 ق",0,null,null,null,null,null,null,null,null,null,null,null,null,null,null,null,0]
[8,"002806","سنتان","سولا ف 12 ع * 240 ق","كرتونة",null,null,null,null,null,null,null,null,null,null,null,null,null,null,8,30,38,"سولا ف 12 ع * 240 ق",38,null,null,null,null,null,null,null,null,null,null,null,null,null,8,30,38]
[9,6222000901536,"سنتان","سوبر فينا 10 كيلو نعناع","كرتونة",null,null,null,null,null,null,null,null,null,null,null,null,null,null,null,13,13,"سوبر فينا 10 كيلو نعناع",13,null,null,null,null,null,null,null,null,null,null,null,null,null,null,13,13]
[10,"002828","سنتان","سولا نعناع فلوباك 10 ك","كرتونة",null,null,null,null,null,null,null,null,null,null,null,null,null,null,27,null,27,"سولا نعناع فلوباك 10 ك",27,null,null,null,null,null,null,null,null,null,null,null,null,null,27,null,27]
[11,"6222000908573","سنتان","سولا نعناع 5 ك","كرتونة",null,null,null,null,null,null,30,null,null,null,null,null,null,null,null,null,30,"سولا نعناع 5 ك",30,null,null,null,null,null,30,null,null,null,null,null,null,null,null,null,30]
[12,6222000917629,"سنتان","سولا نعناع 30 كيس * 28 ق","كرتونة",null,null,null,null,null,null,null,null,null,null,null,null,null,null,null,null,0,"سولا نعناع 30 كيس * 28 ق",0,null,null,null,null,null,null,null,null,null,null,null,null,null,null,null,0]
[13,"6222000911733","سنتان","نعناع 12كيس 50 ق 4جم","كرتونة",null,null,null,null,null,null,null,null,null,null,null,null,null,null,null,null,0,"نعناع 12كيس 50 ق 4جم",0,null,null,null,null,null,null,null,null,null,null,null,null,null,null,null,0]
[14,6222000917612,"سنتان","سولا نعناع 12 كيس * 100 ق","كرتونة",null,null,null,null,null,null,null,null,null,null,null,null,null,null,90,null,90,"سولا نعناع 12 كيس * 100 ق",90,null,null,null,null,null,null,null,null,null,null,null,null,null,90,null,90]
[15,"6222000912518","سنتان","سولا نعناع 12 ع * 200 ق","كرتونة",null,null,null,null,null,null,null,null,null,null,null,null,36,null,null,null,36,"سولا نعناع 12 ع * 200 ق",36,null,null,null,null,null,null,null,null,null,null,null,36,null,null,null,36]
[16,"002807","سنتان","نعناع 12 ع * 240 ق","كرتونة",null,null,null,null,null,null,null,null,null,null,null,null,null,null,null,null,0,"نعناع 12 ع * 240 ق",0,null,null,null,null,null,null,null,null,null,null,null,null,null,null,null,0]
[17,6222000901758,"سنة","سولا قهوه 10 كيلو","كرتونة",null,null,null,null,null,null,null,null,null,null,null,null,null,null,83,null,83,"سولا قهوه 10 كيلو",83,null,null,null,null,null,null,null,null,null,null,null,null,null,83,null,83]
[18,6222000912020,"سنة","قهوة 5 ك","كرتونة",null,null,null,null,null,null,null,null,null,null,null,null,null,null,null,null,0,"قهوة 5 ك",0,null,null,null,null,null,null,null,null,null,null,null,null,null,null,null,0]
[19,"6222000909891","سنة","قهوة 30 كيس * 12قطعه","كرتونة",null,null,null,null,null,null,null,null,null,null,null,null,null,null,null,null,0,"قهوة 30 كيس * 12قطعه",0,null,null,null,null,null,null,null,null,null,null,null,null,null,null,null,0]
[20,"6222000909891","سنة","قهوة 30 كيس * 15قطعه","كرتونة",null,null,null,null,null,null,null,null,null,null,null,null,null,null,null,null,0,"قهوة 30 كيس * 15قطعه",0,null,null,null,null,null,null,null,null,null,null,null,null,null,null,null,0]
[21,6222000908610,"سنة","قهوة 30 كيس * 18 ق / 25 ق","كرتونة",null,null,null,null,null,null,null,null,null,null,null,null,null,null,32,null,32,"قهوة 30 كيس * 18 ق / 25 ق",32,null,null,null,null,null,null,null,null,null,null,null,null,null,32,null,32]
[22,"269","سنة","قهوة 12 كيس * 55 ق","كرتونة",null,null,null,null,null,null,null,null,null,null,null,null,null,null,100,null,100,"قهوة 12 كيس * 55 ق",100,null,null,null,null,null,null,null,null,null,null,null,null,null,100,null,100]
[23,6222000909815,"سنة","قهوة 12 كيس * 80 ق / 90 ق","كرتونة",null,null,null,null,null,null,null,null,null,null,null,null,null,null,48,null,48,"قهوة 12 كيس * 80 ق / 90 ق",48,null,null,null,null,null,null,null,null,null,null,null,null,null,48,null,48]
[24,6222000909815,"سنة","قهوة 12 كيس * 120 ق","كرتونة",null,null,null,null,null,null,null,null,null,null,null,null,null,null,null,null,0,"قهوة 12 كيس * 120 ق",0,null,null,null,null,null,null,null,null,null,null,null,null,null,null,null,0]
[25,"00743","سنة","قهوة 12 ع * 200 ق","كرتونة",null,null,null,null,null,null,null,null,null,null,null,null,null,null,null,null,0,"قهوة 12 ع * 200 ق",0,null,null,null,null,null,null,null,null,null,null,null,null,null,null,null,0]
[26,"002804","سنة","قهوة 12 ع * 240 ق","كرتونة",null,null,null,null,null,null,null,null,null,null,null,null,null,88,62,null,150,"قهوة 12 ع * 240 ق",150,null,null,null,null,null,null,null,null,null,null,null,null,88,62,null,150]
[27,"6222000910118","سنة","قهوه20كيس*150جرام","كرتونة",null,null,null,null,null,null,null,null,null,null,null,null,null,null,null,null,0,"قهوه20كيس*150جرام",0,null,null,null,null,null,null,null,null,null,null,null,null,null,null,null,0]
[28,6222000901642,"سنة","سولا زبده 10 كيلو","كرتونة",null,null,null,null,null,null,null,null,null,null,null,null,null,95,null,null,95,"سولا زبده 10 كيلو",95,null,null,null,null,null,null,null,null,null,null,null,null,95,null,null,95]
[29,6222000912037,"سنة","زبدة 5 ك","كرتونة",null,null,null,null,null,null,null,null,null,null,null,null,null,null,null,null,0,"زبدة 5 ك",0,null,null,null,null,null,null,null,null,null,null,null,null,null,null,null,0]
[30,"6222000913331","سنة","زبدة 30 كيس * 12قطعه","كرتونة",null,null,null,null,null,null,null,null,null,null,null,null,null,null,null,null,0,"زبدة 30 كيس * 12قطعه",0,null,null,null,null,null,null,null,null,null,null,null,null,null,null,null,0]
[31,"00704","سنة","زبدة 30 كيس * 15 قطعه","كرتونة",null,null,null,null,null,null,null,null,null,null,null,null,null,16,null,null,16,"زبدة 30 كيس * 15 قطعه",16,null,null,null,null,null,null,null,null,null,null,null,null,16,null,null,16]
[32,6222000907583,"سنة","زبدة 30 كيس * 18 ق / 25 ق","كرتونة",null,null,null,null,null,null,null,null,null,null,null,null,null,null,null,null,0,"زبدة 30 كيس * 18 ق / 25 ق",0,null,null,null,null,null,null,null,null,null,null,null,null,null,null,null,0]
[33,6222000905688,"سنة","زبدة 12 كيس * 55 قطعه","كرتونة",null,null,null,null,null,null,null,null,null,null,null,null,null,null,null,null,0,"زبدة 12 كيس * 55 قطعه",0,null,null,null,null,null,null,null,null,null,null,null,null,null,null,null,0]
[34,6222000909808,"سنة","زبدة 12 كيس * 80 ق / 90 ق","كرتونة",null,null,null,null,null,null,null,null,null,null,null,null,null,null,null,null,0,"زبدة 12 كيس * 80 ق / 90 ق",0,null,null,null,null,null,null,null,null,null,null,null,null,null,null,null,0]
[35,"171","سنة","زبدة 12 كيس * 120 ق","كرتونة",null,null,null,null,null,null,null,null,null,null,null,null,null,24,null,null,24,"زبدة 12 كيس * 120 ق",24,null,null,null,null,null,null,null,null,null,null,null,null,24,null,null,24]
[36,"00744","سنة","زبدة 12 ع * 200 ق","كرتونة",null,null,null,null,null,null,null,null,null,null,null,null,38,null,null,null,38,"زبدة 12 ع * 200 ق",38,null,null,null,null,null,null,null,null,null,null,null,38,null,null,null,38]
[37,"6222000917056","سنة","زبدة 12 علبة * 240 ق","كرتونة",null,null,null,null,null,null,null,null,null,null,null,null,null,null,139,null,139,"زبدة 12 علبة * 240 ق",139,null,null,null,null,null,null,null,null,null,null,null,null,null,139,null,139]
[38,6222000910064,"سنة","زبدة 10 شنطة * 800 جم","كرتونة",null,null,null,null,null,null,null,null,null,null,null,null,null,null,null,null,0,"زبدة 10 شنطة * 800 جم",0,null,null,null,null,null,null,null,null,null,null,null,null,null,null,null,0]
[39,6222000918732,"سنة","زبدة بالشيكولاته 10 ك","كرتونة",null,null,null,null,null,null,null,null,null,null,null,null,null,null,170,null,170,"زبدة بالشيكولاته 10 ك",170,null,null,null,null,null,null,null,null,null,null,null,null,null,170,null,170]
[40,"6222000917148","سنة","زبدة بالشيكولاته 30 كيس * 15 قطعه","كرتونة",null,null,null,null,null,null,null,null,null,null,null,null,null,null,40,null,40,"زبدة بالشيكولاته 30 كيس * 15 قطعه",40,null,null,null,null,null,null,null,null,null,null,null,null,null,40,null,40]
[41,"6222000917155","سنة","زبدة بالشيكولاته 12 كيس * 55 قطعه","كرتونة",null,null,null,null,null,null,null,null,null,null,null,null,null,null,65,null,65,"زبدة بالشيكولاته 12 كيس * 55 قطعه",65,null,null,null,null,null,null,null,null,null,null,null,null,null,65,null,65]
[42,"002820","سنة","زبدة بالشيكولاته 12 كيس * 120 ق","كرتونة",null,null,null,null,null,null,null,null,null,null,null,null,null,null,70,null,70,"زبدة بالشيكولاته 12 كيس * 120 ق",70,null,null,null,null,null,null,null,null,null,null,null,null,null,70,null,70]
[43,6222000917124,"سنة","زبدة بالشيكولاته 12 علبة * 240 ق","كرتونة",null,null,null,null,null,null,null,null,null,null,null,null,null,null,119,null,119,"زبدة بالشيكولاته 12 علبة * 240 ق",119,null,null,null,null,null,null,null,null,null,null,null,null,null,119,null,119]
[44,6222000912457,"9 أشهر","عسلية  5 ك","كرتونة",null,null,null,null,null,null,null,null,null,null,null,null,null,null,null,null,0,"عسلية  5 ك",0,null,null,null,null,null,null,null,null,null,null,null,null,null,null,null,0]
[45,6222000912501,"9 أشهر","عسلية 12 ع * 200 ق","كرتونة",null,null,null,null,null,null,null,null,null,null,null,null,null,null,null,null,0,"عسلية 12 ع * 200 ق",0,null,null,null,null,null,null,null,null,null,null,null,null,null,null,null,0]
[46,6222000901611,"سنة","اكلير سايب 10 كيلو","كرتونة",null,null,null,null,null,null,null,null,null,null,null,null,178,null,105,null,283,"اكلير سايب 10 كيلو",283,null,null,null,null,null,null,null,null,null,null,null,178,null,105,null,283]
[47,6222000909907,"سنة","اكلير  30 كيس * 9 ق / 10 ق","كرتونة",null,null,null,null,null,null,null,null,null,null,null,null,null,null,null,null,0,"اكلير  30 كيس * 9 ق / 10 ق",0,null,null,null,null,null,null,null,null,null,null,null,null,null,null,null,0]
[48,"00706","سنة","اكلير 30 كيس * 12 قطعه","كرتونة",null,null,null,null,null,null,null,null,null,null,null,null,123,null,null,null,123,"اكلير 30 كيس * 12 قطعه",123,null,null,null,null,null,null,null,null,null,null,null,123,null,null,null,123]
[49,6222000912822,"سنة","اكلير 30 كيس * 15 ق / 20 ق","كرتونة",null,null,null,null,null,null,null,null,null,null,null,null,null,null,null,null,0,"اكلير 30 كيس * 15 ق / 20 ق",0,null,null,null,null,null,null,null,null,null,null,null,null,null,null,null,0]
[50,6222000905701,"سنة","اكلير 12كيس 45 ق","كرتونة",null,null,null,null,null,null,null,null,null,null,null,null,50,null,null,null,50,"اكلير 12كيس 45 ق",50,null,null,null,null,null,null,null,null,null,null,null,50,null,null,null,50]
[51,6222000912778,"سنة","اكلير 12كيس * 65 ق / 70 ق","كرتونة",null,null,null,null,null,null,null,null,null,null,null,null,null,null,null,null,0,"اكلير 12كيس * 65 ق / 70 ق",0,null,null,null,null,null,null,null,null,null,null,null,null,null,null,null,0]
[52,"00680","سنة","اكلير 12 كيس * 100 قطعة","كرتونة",null,null,null,null,null,null,null,null,null,null,null,null,null,81,null,null,81,"اكلير 12 كيس * 100 قطعة",81,null,null,null,null,null,null,null,null,null,null,null,null,81,null,null,81]
[53,6222000912532,"سنة","اكلير 12 علبة * 160 ق","كرتونة",null,null,null,null,null,null,null,null,null,null,null,null,null,null,null,null,0,"اكلير 12 علبة * 160 ق",0,null,null,null,null,null,null,null,null,null,null,null,null,null,null,null,0]
[54,"00748","سنة","اكلير 12 علبة 200 ق","كرتونة",null,null,null,null,null,null,null,null,null,null,null,null,62,null,null,null,62,"اكلير 12 علبة 200 ق",62,null,null,null,null,null,null,null,null,null,null,null,62,null,null,null,62]
[55,"002836","سنة","اكلير سايب 10 ك spanish latie  اسبانيش","كرتونة",null,null,null,null,null,null,null,null,null,null,null,null,null,null,null,null,0,"اكلير سايب 10 ك spanish latie  اسبانيش",0,null,null,null,null,null,null,null,null,null,null,null,null,null,null,null,0]
[56,"6222000918909","سنة","اكلير 12علبة * 200 ق اسبانيش spanish latie","كرتونة",null,null,null,null,null,null,null,null,null,null,null,null,null,null,null,null,0,"اكلير 12علبة * 200 ق اسبانيش spanish latie",0,null,null,null,null,null,null,null,null,null,null,null,null,null,null,null,0]
[57,6222000901697,"سنة","طوفي 10 كجم","كرتونة",null,null,null,null,null,null,null,null,null,null,null,null,null,null,180,151,331,"طوفي 10 كجم",331,null,null,null,null,null,null,null,null,null,null,null,null,null,180,151,331]
[58,6222000909921,"سنة","طوفي 30 كيس * 12قطعه","كرتونة",null,null,null,null,null,null,null,null,null,null,null,null,null,null,null,null,0,"طوفي 30 كيس * 12قطعه",0,null,null,null,null,null,null,null,null,null,null,null,null,null,null,null,0]
[59,"002821","سنة","طوفي 30 كيس * 25 قطعه","كرتونة",null,null,null,null,null,null,null,null,null,null,null,null,null,null,null,null,0,"طوفي 30 كيس * 25 قطعه",0,null,null,null,null,null,null,null,null,null,null,null,null,null,null,null,0]
[60,6222000908276,"سنة","طوفى 30 كيس * 28 ق","كرتونة",null,null,null,null,null,null,null,null,null,null,null,null,null,null,120,null,120,"طوفى 30 كيس * 28 ق",120,null,null,null,null,null,null,null,null,null,null,null,null,null,120,null,120]
[61,6222000909839,"سنة","طوفي 12 كيس * 90 ق","كرتونة",null,null,null,null,null,null,null,null,null,null,null,null,null,null,null,null,0,"طوفي 12 كيس * 90 ق",0,null,null,null,null,null,null,null,null,null,null,null,null,null,null,null,0]
[62,6222000905718,"سنة","طوفى 12كيس * 100 ق","كرتونة",null,null,null,null,null,null,null,null,null,null,null,null,null,9,42,null,51,"طوفى 12كيس * 100 ق",51,null,null,null,null,null,null,null,null,null,null,null,null,9,42,null,51]
[63,6222000908825,"سنة","طوفى 12 ع * 200 ق","كرتونة",null,null,null,null,null,null,null,null,null,null,null,null,null,null,null,null,0,"طوفى 12 ع * 200 ق",0,null,null,null,null,null,null,null,null,null,null,null,null,null,null,null,0]
[64,6222000912556,"سنة","طوفي 12 علبه * 240 ق","كرتونة",null,null,null,null,null,null,null,null,null,null,null,null,null,null,119,null,119,"طوفي 12 علبه * 240 ق",119,null,null,null,null,null,null,null,null,null,null,null,null,null,119,null,119]
[65,"6222000918534","سنة","طوفي شيكولاته 12 كيس * 25 ق","كرتونة",null,null,null,null,null,null,null,null,null,null,null,null,null,null,null,null,0,"طوفي شيكولاته 12 كيس * 25 ق",{"$f":"AN68","v":0},null,null,null,null,null,null,null,null,null,null,null,null,null,null,null,{"$f":"SUM(Y68:AM68)","v":0}]
[66,"6222000918831","سنة","طوفي شيكولاته 12 علبة * 100 ق","كرتونة",null,null,null,null,null,null,null,null,null,null,null,null,null,null,41,null,{"$f":"SUM(G69:U69)","v":41},{"$f":"D69","v":"طوفي شيكولاته 12 علبة * 100 ق"},41,null,null,null,null,null,null,null,null,null,null,null,null,null,41,null,41]
[67,"002821","سنة","طوفي زبدة 12 كيس * 25 ق","كرتونة",null,null,null,null,null,null,null,null,null,null,null,null,null,null,47,null,47,"طوفي زبدة 12 كيس * 25 ق",47,null,null,null,null,null,null,null,null,null,null,null,null,null,47,null,47]
[68,6222000918800,"سنة","طوفي زبدة 10ك ","كرتونة",null,null,null,null,null,null,null,null,null,null,null,null,null,null,46,null,46,"طوفي زبدة 10ك ",46,null,null,null,null,null,null,null,null,null,null,null,null,null,46,null,46]
[69,2840,"سنة","طوفي زبدة 12 علبه *100 قطعه ","كرتونة",null,null,null,null,null,null,null,null,null,null,null,null,null,null,null,34,34,"طوفي زبدة 12 علبه *100 قطعه ",34,null,null,null,null,null,null,null,null,null,null,null,null,null,null,34,34]
[70,6222000903295,"سنة","شيكولاته بوتيك 6 علبه * 1.25 كيلو","كرتونة",null,null,null,null,null,null,null,null,null,null,null,null,null,null,null,null,0,"شيكولاته بوتيك 6 علبه * 1.25 كيلو",0,null,null,null,null,null,null,null,null,null,null,null,null,null,null,null,0]
[71,6222000912006,"سنة","شيكولاته بوتيك حليب 4 ك","كرتونة",null,null,null,null,null,null,null,null,null,null,null,null,null,null,null,null,0,"شيكولاته بوتيك حليب 4 ك",0,null,null,null,null,null,null,null,null,null,null,null,null,null,null,null,0]
[72,6222000911993,"سنة","شيكولاته بوتيك كراميل 4 ك","كرتونة",null,null,null,null,null,null,null,null,null,null,null,null,null,null,null,null,0,"شيكولاته بوتيك كراميل 4 ك",0,null,null,null,null,null,null,null,null,null,null,null,null,null,null,null,0]
[73,6222000912013,"سنة","شيكولاته بوتيك بندق 4 ك","كرتونة",null,null,null,null,null,null,null,null,null,null,null,null,null,null,null,null,0,"شيكولاته بوتيك بندق 4 ك",0,null,null,null,null,null,null,null,null,null,null,null,null,null,null,null,0]
[74,"002837","سنة","شيكولاته صوابع بنى 3 كيلو دوبل تويست","كرتونة",null,null,null,null,null,null,null,null,null,null,null,null,null,null,null,49,49,"شيكولاته صوابع بنى 3 كيلو دوبل تويست",49,null,null,null,null,null,null,null,null,null,null,null,null,null,null,49,49]
[75,6222000919548,"سنة","شيكولاته صوابع ابيض 3 كيلو دوبل تويست","كرتونة",null,null,null,null,null,null,null,null,null,null,null,null,null,null,null,39,39,"شيكولاته صوابع ابيض 3 كيلو دوبل تويست",39,null,null,null,null,null,null,null,null,null,null,null,null,null,null,39,39]
[76,6222000964197,"سنة","شيكوهند سايب 10 كجم","كرتونة",null,null,null,null,null,null,null,null,null,null,null,null,null,null,null,null,0,"شيكوهند سايب 10 كجم",0,null,null,null,null,null,null,null,null,null,null,null,null,null,null,null,0]
[77,6222000906630,"سنة","سوفت شيكوهند 5 ك","كرتونة",null,null,null,null,null,null,null,null,null,null,null,null,null,null,154,null,154,"سوفت شيكوهند 5 ك",154,null,null,null,null,null,null,null,null,null,null,null,null,null,154,null,154]
[78,"6222000918077","سنة","شيكوهند سوفت 12 كيس * 28 ق","كرتونة",null,null,null,null,null,null,null,null,null,null,null,null,null,null,30,null,30,"شيكوهند سوفت 12 كيس * 28 ق",30,null,null,null,null,null,null,null,null,null,null,null,null,null,30,null,30]
[79,6222000918084,"سنة","شيكوهند سوفت 12 كيس * 60 ق","كرتونة",null,null,null,null,null,null,null,null,null,null,null,null,null,null,45,null,45,"شيكوهند سوفت 12 كيس * 60 ق",45,null,null,null,null,null,null,null,null,null,null,null,null,null,45,null,45]
[80,6222000612549,"سنة","شيكوهند سوفت 12 ع * 100 ق","كرتونة",null,null,null,null,null,null,null,null,null,null,null,null,null,null,98,null,98,"شيكوهند سوفت 12 ع * 100 ق",98,null,null,null,null,null,null,null,null,null,null,null,null,null,98,null,98]
[81,6222000915243,"سنة","بار شيكوهند 3 ك","كرتونة",null,null,null,null,null,null,null,null,null,null,null,null,null,null,46,50,96,"بار شيكوهند 3 ك",96,null,null,null,null,null,null,null,null,null,null,null,null,null,46,50,96]
[82,6222000902519,"9 أشهر","ويفر ايليت  مغطس بنى 12 *12","كرتونة",null,null,null,null,null,null,null,null,null,null,null,null,null,null,null,null,0,"ويفر ايليت  مغطس بنى 12 *12",0,null,null,null,null,null,null,null,null,null,null,null,null,null,null,null,0]
[83,6222000902557,"9 أشهر","ويفر ايليت مغطس ابيض  12 * 12","كرتونة",null,null,null,null,null,null,null,null,null,null,null,null,null,null,null,null,0,"ويفر ايليت مغطس ابيض  12 * 12",0,null,null,null,null,null,null,null,null,null,null,null,null,null,null,null,0]
[84,6222000902564,"9 أشهر"," ويفر ايليت مغطس فراولة 12*12","كرتونة",null,null,null,null,null,null,null,null,null,null,null,null,null,null,null,null,0," ويفر ايليت مغطس فراولة 12*12",0,null,null,null,null,null,null,null,null,null,null,null,null,null,null,null,0]
[85,6222000910200,"9 أشهر","ايليت ماكس سادة ش 12 باكو 6 قطع","كرتونة",null,null,null,null,null,null,null,null,null,null,null,null,375,null,null,null,375,"ايليت ماكس سادة ش 12 باكو 6 قطع",375,null,null,null,null,null,null,null,null,null,null,null,375,null,null,null,375]
[86,6222000910514,"9 أشهر","ايليت  ماكس سادة فانيليا 12 باكو * 6 قطع","كرتونة",null,null,null,null,null,null,null,null,null,null,null,null,190,null,null,120,310,"ايليت  ماكس سادة فانيليا 12 باكو * 6 قطع",310,null,null,null,null,null,null,null,null,null,null,null,190,null,null,120,310]
[87,6222000909976,"9 أشهر","ويفر مربع  3 كيلو ايليت  ابيض","كرتونة",null,null,null,null,null,null,null,null,null,null,null,null,null,null,44,null,44,"ويفر مربع  3 كيلو ايليت  ابيض",44,null,null,null,null,null,null,null,null,null,null,null,null,null,44,null,44]
[88,6222000909983,"9 أشهر","ويفر مربع  3 كيلو ايليت  شيكولاته","كرتونة",null,null,null,null,null,null,null,null,null,null,null,null,null,null,16,null,16,"ويفر مربع  3 كيلو ايليت  شيكولاته",16,null,null,null,null,null,null,null,null,null,null,null,null,null,16,null,16]
[89,6222000909969,"9 أشهر","ويفر مربع  3 كيلو ايليت  فراوله","كرتونة",null,null,null,null,null,null,null,null,null,null,null,null,null,null,22,null,22,"ويفر مربع  3 كيلو ايليت  فراوله",22,null,null,null,null,null,null,null,null,null,null,null,null,null,22,null,22]
[90,"6888000909952","9 أشهر","ويفر مربع 3 كيلو ايليت جوز هند","كرتونة",null,null,null,null,null,null,null,null,null,null,null,null,null,null,null,null,0,"ويفر مربع 3 كيلو ايليت جوز هند",0,null,null,null,null,null,null,null,null,null,null,null,null,null,null,null,0]
[91,622200097116,"9 أشهر","ويفر فرحه 5 كيلو","كرتونة",null,null,null,null,null,null,null,null,null,null,null,null,null,null,178,100,278,"ويفر فرحه 5 كيلو",278,null,null,null,null,null,null,null,null,null,null,null,null,null,178,100,278]
[92,null,"9 أشهر","ويفر ايليت مربع بايتس 3ك بنى","كرتونة",null,null,null,null,null,null,null,null,null,null,null,null,null,null,null,null,0,"ويفر ايليت مربع بايتس 3ك بنى",0,null,null,null,null,null,null,null,null,null,null,null,null,null,null,null,0]
[93,6222000912488,"سنة","بسكوت اكشن سادة شاي 6 ع * 12 ق","كرتونة",null,null,null,null,null,null,null,null,null,null,null,null,null,null,null,null,0,"بسكوت اكشن سادة شاي 6 ع * 12 ق",0,null,null,null,null,null,null,null,null,null,null,null,null,null,null,null,0]
[94,6222000914383,"سنة","بسكوت اكشن سادة شاي 6 ع * 12 ق ( نباتى )","كرتونة",null,null,null,null,null,null,null,null,null,null,null,null,null,null,null,null,0,"بسكوت اكشن سادة شاي 6 ع * 12 ق ( نباتى )",0,null,null,null,null,null,null,null,null,null,null,null,null,null,null,null,0]
[95,6222000916165,"9 أشهر","ويفر اكشن مغطس بنى 12ع * 12 ق ( 5 جنية )","كرتونة",null,null,null,null,null,null,null,null,null,null,null,null,null,null,741,175,916,"ويفر اكشن مغطس بنى 12ع * 12 ق ( 5 جنية )",916,null,null,null,null,null,null,null,null,null,null,null,null,null,741,175,916]
[96,6222000916172,"9 أشهر","ويفر اكشن مغطس أبيض 12ع * 12 ق ( 5 جنية )","كرتونة",null,null,null,null,null,null,null,null,null,null,null,null,null,null,null,225,225,"ويفر اكشن مغطس أبيض 12ع * 12 ق ( 5 جنية )",225,null,null,null,null,null,null,null,null,null,null,null,null,null,null,225,225]
[97,"002810","9 أشهر","ويفر اكشن مغطس أبيض 8ع * 12 ق ( 5 جنية )","كرتونة",null,null,null,null,null,null,null,null,null,null,null,null,null,null,null,null,0,"ويفر اكشن مغطس أبيض 8ع * 12 ق ( 5 جنية )",0,null,null,null,null,null,null,null,null,null,null,null,null,null,null,null,0]
[98,6222000912365,"9 أشهر","بايتس  مربع 6ع * 50ق  بنى","كرتونة",null,null,null,null,null,null,null,null,null,null,null,null,null,null,659,310,969,"بايتس  مربع 6ع * 50ق  بنى",969,null,null,null,null,null,null,null,null,null,null,null,null,null,659,310,969]
[99,"6222000912396","9 أشهر","بايتس مربع 6 ع * 50 ق ابيض ","كرتونة",null,null,null,null,null,null,null,null,null,null,null,null,null,null,482,330,812,"بايتس مربع 6 ع * 50 ق ابيض ",812,null,null,null,null,null,null,null,null,null,null,null,null,null,482,330,812]
[100,"404","9 أشهر","ويفر  4 علبه * 50 قطعه ابيض بايتس","كرتونة",null,null,null,null,null,null,null,null,null,null,null,null,null,null,null,null,0,"ويفر  4 علبه * 50 قطعه ابيض بايتس",0,null,null,null,null,null,null,null,null,null,null,null,null,null,null,null,0]
[101,"406","9 أشهر","ويفر  5 علبه * 50 قطعه ابيض بايتس","كرتونة",null,null,null,null,null,null,null,null,null,null,null,null,null,null,null,null,0,"ويفر  5 علبه * 50 قطعه ابيض بايتس",0,null,null,null,null,null,null,null,null,null,null,null,null,null,null,null,0]
[102,"343","9 أشهر","ويفر  7 علبه * 50 قطعه ابيض بايتس","كرتونة",null,null,null,null,null,null,null,null,null,null,null,null,null,null,null,null,0,"ويفر  7 علبه * 50 قطعه ابيض بايتس",0,null,null,null,null,null,null,null,null,null,null,null,null,null,null,null,0]
[103,"6222000902601","9 أشهر","بايتس مربع 6 ع * 50 ق فراولة ","كرتونة",null,null,null,null,null,null,null,null,null,null,null,null,null,null,null,621,621,"بايتس مربع 6 ع * 50 ق فراولة ",621,null,null,null,null,null,null,null,null,null,null,null,null,null,null,621,621]
[104,"002829","9 أشهر","ويفر  4 علبه * 50 قطعه فراولة بايتس","كرتونة",null,null,null,null,null,null,null,null,null,null,null,null,null,null,null,null,0,"ويفر  4 علبه * 50 قطعه فراولة بايتس",0,null,null,null,null,null,null,null,null,null,null,null,null,null,null,null,0]
[105,"6222000916738","9 أشهر","ويفر بوتيك مربع 9 كيس * 500 جم","كرتونة",null,null,null,null,null,null,null,null,null,null,null,null,null,null,null,null,0,"ويفر بوتيك مربع 9 كيس * 500 جم",0,null,null,null,null,null,null,null,null,null,null,null,null,null,null,null,0]
[106,2841,"9 أشهر","ويفر صوابع ميني ٣ كيلو تربل شيكولاته","كرتونة",null,null,null,null,null,null,null,null,null,null,null,null,null,null,null,200,200,"ويفر صوابع ميني ٣ كيلو تربل شيكولاته",200,null,null,null,null,null,null,null,null,null,null,null,null,null,null,200,200]
[107,"6222000919494","9 أشهر","ويفر صوابع ميني ٣ كيلو ابيض حشو شيكولاته","كرتونة",null,null,null,null,null,null,null,null,null,null,null,null,null,null,32,null,32,"ويفر صوابع ميني ٣ كيلو ابيض حشو شيكولاته",32,null,null,null,null,null,null,null,null,null,null,null,null,null,32,null,32]
[108,"002843","9 أشهر","ويفر صوابع ميني ٣ كيلو بنى حشو فرولة ","كرتونة",null,null,null,null,null,null,null,null,null,null,null,null,null,null,null,151,151,"ويفر صوابع ميني ٣ كيلو بنى حشو فرولة ",151,null,null,null,null,null,null,null,null,null,null,null,null,null,null,151,151]
[109,2845,"9 أشهر","ويفر صوابع ميني ٣ كيلو بنى حشو سودانى  ","كرتونة",null,null,null,null,null,null,null,null,null,null,null,null,null,null,null,95,95,"ويفر صوابع ميني ٣ كيلو بنى حشو سودانى  ",95,null,null,null,null,null,null,null,null,null,null,null,null,null,null,95,95]
[110,"002846","9 أشهر","ويفر صوابع ميني ٣ كيلو ابيض حشو برتقال ","كرتونة",null,null,null,null,null,null,null,null,null,null,null,null,null,null,null,147,147,"ويفر صوابع ميني ٣ كيلو ابيض حشو برتقال ",147,null,null,null,null,null,null,null,null,null,null,null,null,null,null,147,147]
[110,"002798","9 أشهر","اهلا بالعيد 8 كيس * 660 جم","كرتونة",null,null,null,null,null,null,null,null,null,null,2,null,null,null,null,null,2,"اهلا بالعيد 8 كيس * 660 جم",2,null,null,null,null,null,null,null,null,null,2,null,null,null,null,null,2]
[112,"002797","6 أشهر","كورن عائلي جبنة 15 كيس","كرتونة",null,null,null,null,null,null,null,null,null,null,null,null,null,null,null,875,875,"كورن عائلي جبنة 15 كيس",875,null,null,null,null,null,null,null,null,null,null,null,null,null,null,875,875]
[113,"001766","6 أشهر","اسبيشيال أطعم  15 كيس","كرتونة",null,null,null,null,null,null,null,null,null,null,null,null,null,null,null,248,248,"اسبيشيال أطعم  15 كيس",248,null,null,null,null,null,null,null,null,null,null,null,null,null,null,248,248]
[114,"002847"," 9أشهر","سناكس سودانى 20 كيس  15جنية ","كرتونة",null,null,null,null,null,null,null,null,null,null,null,null,null,null,null,48,48,"سناكس سودانى 20 كيس  15جنية ",48,null,null,null,null,null,null,null,null,null,null,null,null,null,null,48,48]
[115,"6224001574221","سنة","زى كولا مشروب غازى 275 حلى","كرتونة",null,null,null,null,null,null,null,null,null,null,null,null,46,null,null,null,46,"زى كولا مشروب غازى 275 حلى",46,null,null,null,null,null,null,null,null,null,null,null,46,null,null,null,46]
[null,null,null,null,null,null,null,null,null,null,null,null,null,null,null,null,null,null,null,null,null,0,0,0,null,null,null,null,null,null,null,null,null,null,null,null,null,null,null,0]
[null,null,null,null,null,null,null,null,null,null,null,null,null,null,null,null,null,null,null,null,null,0,0,0,null,null,null,null,null,null,null,null,null,null,null,null,null,null,null,0]
[null,null,null,null,null,null,null,null,null,null,null,null,null,null,null,null,null,null,null,null,null,0,0,0,null,null,null,null,null,null,null,null,null,null,null,null,null,null,null,0]
[null,null,null,null,null,null,null,null,null,null,null,null,null,null,null,null,null,null,null,null,null,0,0,0,null,null,null,null,null,null,null,null,null,null,null,null,null,null,null,0]
[null,null,null,null,null,null,null,null,null,null,null,null,null,null,null,null,null,null,null,null,null,0,null,0,null,null,null,null,null,null,null,null,null,null,null,null,null,null,null,0]
[null,null,null,null,null,null,null,null,null,null,null,null,null,null,null,null,null,null,null,null,null,0,null,0,null,null,null,null,null,null,null,null,null,null,null,null,null,null,null,0]
[null,null,null,null,null,null,null,null,null,null,null,null,null,null,null,null,null,null,null,null,null,0,null,{"$f":"AN125","v":0},null,null,null,null,null,null,null,null,null,null,null,null,null,null,null,{"$f":"SUM(Y125:AM125)","v":0}]
["الاجمالى",null,null,null,null,{"$f":"SUM(F4:F125)","v":0},0,0,0,0,0,38,0,0,0,2,0,1182,313,4413,{"$f":"SUM(U4:U125)","v":4073},{"$f":"SUM(V4:V125)","v":10021},null,{"$f":"SUM(X4:X125)","v":10021},{"$f":"SUM(Y4:Y125)","v":0},0,0,0,0,38,0,0,0,2,0,1182,313,4413,4073,{"$f":"SUM(AN4:AN125)","v":10021}]
[]
[null,null,null,null,null,null,null,null,null,null,null,null,null,null,null,null,null,null,null,null,null,null,null,null,{"$f":"G126-Y126","v":0},{"$f":"H126-Z126","v":0},0,0,0,0,0,0,0,{"$f":"P126-AH126","v":0},{"$f":"Q126-AI126","v":0},{"$f":"R126-AJ126","v":0},{"$f":"S126-AK126","v":0},{"$f":"T126-AL126","v":0},{"$f":"U126-AM126","v":0}]